Publisher Label,Publisher URI,"Directorate code","Directorate","Service code","Service","Revenue or capital code","Revenue capital","Cost centre","Cost centre description","Bvsub Category","Bvsub description","Bvsum code","Bvsum description","Account code","Account description","Transaction No","Period","Transaction Date","Amount","Classification code","Classification description","Supplier ID","Supplier description","Company registration number","Company registration number Uri","VAT registration number"
"London Borough of Redbridge","http://opendatacommunities.org/doc/london-borough-council/redbridge","9BNONBVO","Outside the BVACOP Objective Structure","9CNONBVO","Outside the BVACOP Objective Structure","CAP","Capital","C2221","Street Lighting Renewals LBR","99-NONBV","Capital, Balance Sheet and Control","50E","Capital - Contract Payments","9150","Main Contract","3217444","201211",01/02/2012 00:00:00,-60375,"21555","Construction Contractors - General","REDACTED DATA","MAY GURNEY LIMITED","873179","http://opencorporates.com/companies/gb/873179","105540018"
"London Borough of Redbridge","http://opendatacommunities.org/doc/london-borough-council/redbridge","9BNONBVO","Outside the BVACOP Objective Structure","9CNONBVO","Outside the BVACOP Objective Structure","CAP","Capital","C2223","Highways Preventative Maintenance LBR","99-NONBV","Capital, Balance Sheet and Control","50E","Capital - Contract Payments","9150","Main Contract","3221389","201211",28/02/2012 00:00:00,12316.97,"18632","Civil Engineers","REDACTED DATA","KENSON CONTRACTORS BENINGTON LTD","1314691","http://opencorporates.com/companies/gb/1314691","301629589"
"London Borough of Redbridge","http://opendatacommunities.org/doc/london-borough-council/redbridge","9BNONBVO","Outside the BVACOP Objective Structure","9CNONBVO","Outside the BVACOP Objective Structure","CAP","Capital","C2221","Street Lighting Renewals LBR","99-NONBV","Capital, Balance Sheet and Control","50E","Capital - Contract Payments","9150","Main Contract","3217447","201211",01/02/2012 00:00:00,-84525,"21555","Construction Contractors - General","REDACTED DATA","MAY GURNEY LIMITED","873179","http://opencorporates.com/companies/gb/873179","105540018"
"London Borough of Redbridge","http://opendatacommunities.org/doc/london-borough-council/redbridge","9BNONBVO","Outside the BVACOP Objective Structure","9CNONBVO","Outside the BVACOP Objective Structure","CAP","Capital","C2221","Street Lighting Renewals LBR","99-NONBV","Capital, Balance Sheet and Control","50E","Capital - Contract Payments","9150","Main Contract","3217445","201211",01/02/2012 00:00:00,-9720.86,"21555","Construction Contractors - General","REDACTED DATA","MAY GURNEY LIMITED","873179","http://opencorporates.com/companies/gb/873179","105540018"
"London Borough of Redbridge","http://opendatacommunities.org/doc/london-borough-council/redbridge","6BADULTSOCIA","Adult Social Care","6CADLEARNDIS","Adults Under 65 with Learning Disabilities","REV","Revenue","R4215","LD Direct Payments","06-TRANSFER","Transfer Payments","06B","Social Services Clients","7053","Direct Payments","3218518","201211",13/02/2012 00:00:00,-47.62,"56800","Payroll Services","REDACTED DATA","HUMAN MANAGEMENT ASSISTANCE-CLIENT ACCOUNT","4752026","http://opencorporates.com/companies/gb/4752026","815230071"
"London Borough of Redbridge","http://opendatacommunities.org/doc/london-borough-council/redbridge","6BADULTSOCIA","Adult Social Care","6CADLEARNDIS","Adults Under 65 with Learning Disabilities","REV","Revenue","R4215","LD Direct Payments","06-TRANSFER","Transfer Payments","06B","Social Services Clients","7053","Direct Payments","3218673","201211",13/02/2012 00:00:00,542.4,"56800","Payroll Services","REDACTED DATA","HUMAN MANAGEMENT ASSISTANCE-CLIENT ACCOUNT","4752026","http://opencorporates.com/companies/gb/4752026","815230071"
"London Borough of Redbridge","http://opendatacommunities.org/doc/london-borough-council/redbridge","6BADULTSOCIA","Adult Social Care","6CADLEARNDIS","Adults Under 65 with Learning Disabilities","REV","Revenue","R4215","LD Direct Payments","06-TRANSFER","Transfer Payments","06B","Social Services Clients","7053","Direct Payments","3218772","201211",13/02/2012 00:00:00,813.6,"56800","Payroll Services","REDACTED DATA","HUMAN MANAGEMENT ASSISTANCE-CLIENT ACCOUNT","4752026","http://opencorporates.com/companies/gb/4752026","815230071"
"London Borough of Redbridge","http://opendatacommunities.org/doc/london-borough-council/redbridge","6BADULTSOCIA","Adult Social Care","6CADLEARNDIS","Adults Under 65 with Learning Disabilities","REV","Revenue","R4215","LD Direct Payments","06-TRANSFER","Transfer Payments","06B","Social Services Clients","7053","Direct Payments","3218602","201211",13/02/2012 00:00:00,1130,"56800","Payroll Services","REDACTED DATA","HUMAN MANAGEMENT ASSISTANCE-CLIENT ACCOUNT","4752026","http://opencorporates.com/companies/gb/4752026","815230071"
"London Borough of Redbridge","http://opendatacommunities.org/doc/london-borough-council/redbridge","6BADULTSOCIA","Adult Social Care","6CADMENHLTH","Adults Under 65 with Mental Health Needs","REV","Revenue","R4190","MH - Residential Care","05-THIRD","Third Party Payments","05F","Voluntary associations","6802","Residential Homes","90302594","201211",01/02/2012 00:00:00,4040,"64710","Residential Care Homes","REDACTED DATA","CONSENSA CARE LTD","3969383","http://opencorporates.com/companies/gb/3969383",""
"London Borough of Redbridge","http://opendatacommunities.org/doc/london-borough-council/redbridge","9BNONBVO","Outside the BVACOP Objective Structure","9CNONBVO","Outside the BVACOP Objective Structure","CAP","Capital","C2223","Highways Preventative Maintenance LBR","99-NONBV","Capital, Balance Sheet and Control","50E","Capital - Contract Payments","9150","Main Contract","3220754","201211",28/02/2012 00:00:00,9369.08,"18632","Civil Engineers","REDACTED DATA","KENSON CONTRACTORS BENINGTON LTD","1314691","http://opencorporates.com/companies/gb/1314691","301629589"
"London Borough of Redbridge","http://opendatacommunities.org/doc/london-borough-council/redbridge","6BADULTSOCIA","Adult Social Care","6CADPHYSDIS","Adults Under 65 with Phys Disab or Sensory Impair","REV","Revenue","R4276","Link Place","02-PREMISES","Premises","02A","Repairs, alteration and maintenance of buildings","3022","Legionella Disinfection (H&S)","787361","201211",27/01/2012 00:00:00,275.3,"31589","Engineering Services","REDACTED DATA","HERTEL (UK) LTD","1215183","http://opencorporates.com/companies/gb/1215183","772766000"
"London Borough of Redbridge","http://opendatacommunities.org/doc/london-borough-council/redbridge","6BADULTSOCIA","Adult Social Care","6CADPHYSDIS","Adults Under 65 with Phys Disab or Sensory Impair","REV","Revenue","R4214","PD Direct Payments","06-TRANSFER","Transfer Payments","06B","Social Services Clients","7053","Direct Payments","3218472","201211",13/02/2012 00:00:00,542.4,"56800","Payroll Services","REDACTED DATA","HUMAN MANAGEMENT ASSISTANCE-CLIENT ACCOUNT","4752026","http://opencorporates.com/companies/gb/4752026","815230071"
"London Borough of Redbridge","http://opendatacommunities.org/doc/london-borough-council/redbridge","6BADULTSOCIA","Adult Social Care","6CADPHYSDIS","Adults Under 65 with Phys Disab or Sensory Impair","REV","Revenue","R4214","PD Direct Payments","06-TRANSFER","Transfer Payments","06B","Social Services Clients","7053","Direct Payments","3218497","201211",13/02/2012 00:00:00,587.6,"56800","Payroll Services","REDACTED DATA","HUMAN MANAGEMENT ASSISTANCE-CLIENT ACCOUNT","4752026","http://opencorporates.com/companies/gb/4752026","815230071"
"London Borough of Redbridge","http://opendatacommunities.org/doc/london-borough-council/redbridge","6BSOCIALSERV","Social Services","6CCHILLOOKED","Children Looked After","REV","Revenue","R2120","CLAFH - Care Purchasing","05-THIRD","Third Party Payments","05H","Private contractors","6907","Private Homes","60167901","201211",10/02/2012 00:00:00,-1993.45,"64710","Residential Care Homes","REDACTED DATA","HOLIBROOK HOUSE LTD","5259566","http://opencorporates.com/companies/gb/5259566",""
"London Borough of Redbridge","http://opendatacommunities.org/doc/london-borough-council/redbridge","6BSOCIALSERV","Social Services","6CCHILLOOKED","Children Looked After","REV","Revenue","R2120","CLAFH - Care Purchasing","05-THIRD","Third Party Payments","05H","Private contractors","6907","Private Homes","60166567","201211",23/01/2012 00:00:00,1999,"64710","Residential Care Homes","REDACTED DATA","POTTON HOMES LTD","6339219","http://opencorporates.com/companies/gb/6339219",""
"London Borough of Redbridge","http://opendatacommunities.org/doc/london-borough-council/redbridge","6BSOCIALSERV","Social Services","6CCHILLOOKED","Children Looked After","REV","Revenue","R2120","CLAFH - Care Purchasing","05-THIRD","Third Party Payments","05H","Private contractors","6907","Private Homes","60167490","201211",07/02/2012 00:00:00,1993.45,"64710","Residential Care Homes","REDACTED DATA","HOLIBROOK HOUSE LTD","5259566","http://opencorporates.com/companies/gb/5259566",""
"London Borough of Redbridge","http://opendatacommunities.org/doc/london-borough-council/redbridge","6BSOCIALSERV","Social Services","6CCHILLOOKED","Children Looked After","REV","Revenue","R2120","CLAFH - Care Purchasing","05-THIRD","Third Party Payments","05H","Private contractors","6907","Private Homes","60167490","201211",07/02/2012 00:00:00,4298.55,"64710","Residential Care Homes","REDACTED DATA","HOLIBROOK HOUSE LTD","5259566","http://opencorporates.com/companies/gb/5259566",""
"London Borough of Redbridge","http://opendatacommunities.org/doc/london-borough-council/redbridge","3BNONSCHFUND","Non-School Funding","3CNONSCH","Non Schools","REV","Revenue","R3932","Aldersbrook CC","04-SUPPLIES","Supplies And Services","04A","Equipment, furniture and materials","5510","Materials","60168275","201211",13/02/2012 00:00:00,-59.9,"29340","Educational Equipment & Supplies","REDACTED DATA","FINDEL EDUCATION LTD","1135827","http://opencorporates.com/companies/gb/1135827","125688644"
"London Borough of Redbridge","http://opendatacommunities.org/doc/london-borough-council/redbridge","6BADULTSOCIA","Adult Social Care","6CADLEARNDIS","Adults Under 65 with Learning Disabilities","REV","Revenue","R4188","LD - Residential Care","09-INCOME","Income","09C","Customer & Client Receipts","8555","Accommodation Charges","90302008","201211",01/02/2012 00:00:00,-361.6,"64710","Residential Care Homes","REDACTED DATA","THE OUTLOOK FOUNDATION (JEAN MARSHALL HOUSE)","2438015","http://opencorporates.com/companies/gb/2438015",""
"London Borough of Redbridge","http://opendatacommunities.org/doc/london-borough-council/redbridge","6BADULTSOCIA","Adult Social Care","6CADLEARNDIS","Adults Under 65 with Learning Disabilities","REV","Revenue","R4188","LD - Residential Care","05-THIRD","Third Party Payments","05F","Voluntary associations","6802","Residential Homes","90302128","201211",01/02/2012 00:00:00,5044.24,"64710","Residential Care Homes","REDACTED DATA","ROBINIA LIFESKILLS LTD","",,""
"London Borough of Redbridge","http://opendatacommunities.org/doc/london-borough-council/redbridge","6BADULTSOCIA","Adult Social Care","6CADLEARNDIS","Adults Under 65 with Learning Disabilities","REV","Revenue","R4188","LD - Residential Care","05-THIRD","Third Party Payments","05F","Voluntary associations","6802","Residential Homes","90302012","201211",01/02/2012 00:00:00,5334.84,"64710","Residential Care Homes","REDACTED DATA","LIVABILITY","5967087","http://opencorporates.com/companies/gb/5967087",""
"London Borough of Redbridge","http://opendatacommunities.org/doc/london-borough-council/redbridge","6BADULTSOCIA","Adult Social Care","6CADLEARNDIS","Adults Under 65 with Learning Disabilities","REV","Revenue","R4188","LD - Residential Care","05-THIRD","Third Party Payments","05F","Voluntary associations","6802","Residential Homes","90302008","201211",01/02/2012 00:00:00,5987.68,"64710","Residential Care Homes","REDACTED DATA","THE OUTLOOK FOUNDATION (JEAN MARSHALL HOUSE)","2438015","http://opencorporates.com/companies/gb/2438015",""
"London Borough of Redbridge","http://opendatacommunities.org/doc/london-borough-council/redbridge","6BADULTSOCIA","Adult Social Care","6COLDINCMENT","Older People (65 or over) incl. Older Mentally Ill","REV","Revenue","R4211","Older People Direct Payments","09-INCOME","Income","09C","Customer & Client Receipts","8545","Direct Payments Income","3218436","201211",13/02/2012 00:00:00,113,"56800","Payroll Services","REDACTED DATA","HUMAN MANAGEMENT ASSISTANCE-CLIENT ACCOUNT","4752026","http://opencorporates.com/companies/gb/4752026","815230071"
"London Borough of Redbridge","http://opendatacommunities.org/doc/london-borough-council/redbridge","6BADULTSOCIA","Adult Social Care","6COLDINCMENT","Older People (65 or over) incl. Older Mentally Ill","REV","Revenue","R4211","Older People Direct Payments","06-TRANSFER","Transfer Payments","06B","Social Services Clients","7053","Direct Payments","3218703","201211",13/02/2012 00:00:00,395.52,"56800","Payroll Services","REDACTED DATA","HUMAN MANAGEMENT ASSISTANCE-CLIENT ACCOUNT","4752026","http://opencorporates.com/companies/gb/4752026","815230071"
"London Borough of Redbridge","http://opendatacommunities.org/doc/london-borough-council/redbridge","6BADULTSOCIA","Adult Social Care","6COLDINCMENT","Older People (65 or over) incl. Older Mentally Ill","REV","Revenue","R4211","Older People Direct Payments","06-TRANSFER","Transfer Payments","06B","Social Services Clients","7053","Direct Payments","3218705","201211",13/02/2012 00:00:00,711.92,"43419","Home Care Services","REDACTED DATA","MOHAMMED ARIF","",,""
"London Borough of Redbridge","http://opendatacommunities.org/doc/london-borough-council/redbridge","6BADULTSOCIA","Adult Social Care","6COLDINCMENT","Older People (65 or over) incl. Older Mentally Ill","REV","Revenue","R4378","OP Residential","05-THIRD","Third Party Payments","05F","Voluntary associations","6802","Residential Homes","90302216","201211",01/02/2012 00:00:00,2190.4,"53350","Nursing Homes","REDACTED DATA","BUPA CARE HOMES(SEABROOKE MANOR)","",,"239731641"
"London Borough of Redbridge","http://opendatacommunities.org/doc/london-borough-council/redbridge","6BADULTSOCIA","Adult Social Care","6CCHILLOOKED","Children Looked After","REV","Revenue","R2119","CLAFH - Supportive Accommodation","05-THIRD","Third Party Payments","05H","Private contractors","6910","Care Packages","60165936","201211",16/01/2012 00:00:00,925,"1266","Accommodation Agencies - Residential","REDACTED DATA","REAL LIFE","",,""
"London Borough of Redbridge","http://opendatacommunities.org/doc/london-borough-council/redbridge","6BADULTSOCIA","Adult Social Care","6CCHILLOOKED","Children Looked After","REV","Revenue","R2119","CLAFH - Supportive Accommodation","05-THIRD","Third Party Payments","05H","Private contractors","6910","Care Packages","3221490","201211",21/02/2012 00:00:00,25,"47846","Letting Agents","REDACTED DATA","XCHANGE PROPERTY SERVICES LTD","4331388","http://opencorporates.com/companies/gb/4331388",""
"London Borough of Redbridge","http://opendatacommunities.org/doc/london-borough-council/redbridge","6BADULTSOCIA","Adult Social Care","6COLDINCMENT","Older People (65 or over) incl. Older Mentally Ill","REV","Revenue","R4378","OP Residential","05-THIRD","Third Party Payments","05F","Voluntary associations","6802","Residential Homes","90302322","201211",01/02/2012 00:00:00,44,"64710","Residential Care Homes","REDACTED DATA","WINTERTON HOUSE","",,""
"London Borough of Redbridge","http://opendatacommunities.org/doc/london-borough-council/redbridge","6BADULTSOCIA","Adult Social Care","6COLDINCMENT","Older People (65 or over) incl. Older Mentally Ill","REV","Revenue","R4211","Older People Direct Payments","06-TRANSFER","Transfer Payments","06B","Social Services Clients","7053","Direct Payments","3218769","201211",13/02/2012 00:00:00,474.6,"90005","Home Care Services DP","REDACTED DATA","REDACTED DATA","",,""
"London Borough of Redbridge","http://opendatacommunities.org/doc/london-borough-council/redbridge","6BADULTSOCIA","Adult Social Care","6COTHADSERV","Other Adult Services","REV","Revenue","R4281","National Assistance Act HIV","06-TRANSFER","Transfer Payments","06B","Social Services Clients","7051","Asylum Seekers","90302619","201211",14/02/2012 00:00:00,621.43,"98758","Statutory Payments to Individuals","REDACTED DATA","REDACTED DATA","",,""
"London Borough of Redbridge","http://opendatacommunities.org/doc/london-borough-council/redbridge","6BADULTSOCIA","Adult Social Care","6COLDINCMENT","Older People (65 or over) incl. Older Mentally Ill","REV","Revenue","R4211","Older People Direct Payments","06-TRANSFER","Transfer Payments","06B","Social Services Clients","7053","Direct Payments","3218664","201211",13/02/2012 00:00:00,723.2,"90005","Home Care Services DP","REDACTED DATA","REDACTED DATA","",,""
"London Borough of Redbridge","http://opendatacommunities.org/doc/london-borough-council/redbridge","6BADULTSOCIA","Adult Social Care","6COLDINCMENT","Older People (65 or over) incl. Older Mentally Ill","REV","Revenue","R4385","OP Nursing","09-INCOME","Income","09C","Customer & Client Receipts","8557","Nursing Home Charges","90302281","201211",01/02/2012 00:00:00,-700.04,"53350","Nursing Homes","REDACTED DATA","THE CHESTNUTS","",,""
"London Borough of Redbridge","http://opendatacommunities.org/doc/london-borough-council/redbridge","6BADULTSOCIA","Adult Social Care","6COLDINCMENT","Older People (65 or over) incl. Older Mentally Ill","REV","Revenue","R4385","OP Nursing","09-INCOME","Income","09C","Customer & Client Receipts","8557","Nursing Home Charges","90302333","201211",01/02/2012 00:00:00,-434.8,"53350","Nursing Homes","REDACTED DATA","WOODLANDS NURSING HOME","",,""
"London Borough of Redbridge","http://opendatacommunities.org/doc/london-borough-council/redbridge","6BADULTSOCIA","Adult Social Care","6COLDINCMENT","Older People (65 or over) incl. Older Mentally Ill","REV","Revenue","R4385","OP Nursing","05-THIRD","Third Party Payments","05H","Private contractors","6909","Nursing Homes","90301758","201211",01/02/2012 00:00:00,434.8,"64710","Residential Care Homes","REDACTED DATA","ABBEY CARE COMPLEX LTD","4832515","http://opencorporates.com/companies/gb/4832515",""
"London Borough of Redbridge","http://opendatacommunities.org/doc/london-borough-council/redbridge","6BADULTSOCIA","Adult Social Care","6COLDINCMENT","Older People (65 or over) incl. Older Mentally Ill","REV","Revenue","R4385","OP Nursing","05-THIRD","Third Party Payments","05H","Private contractors","6909","Nursing Homes","90301906","201211",01/02/2012 00:00:00,598.4,"53350","Nursing Homes","REDACTED DATA","L M KENDON SETTLEMENT","",,""
"London Borough of Redbridge","http://opendatacommunities.org/doc/london-borough-council/redbridge","6BADULTSOCIA","Adult Social Care","6COLDINCMENT","Older People (65 or over) incl. Older Mentally Ill","REV","Revenue","R4385","OP Nursing","05-THIRD","Third Party Payments","05H","Private contractors","6909","Nursing Homes","90301950","201211",01/02/2012 00:00:00,2165.2,"53350","Nursing Homes","REDACTED DATA","MARTLANE LIMITED","4150116","http://opencorporates.com/companies/gb/4150116",""
"London Borough of Redbridge","http://opendatacommunities.org/doc/london-borough-council/redbridge","6BADULTSOCIA","Adult Social Care","6COTHADSERV","Other Adult Services","REV","Revenue","R4390","PCT HIV Home Care","05-THIRD","Third Party Payments","05A","Independent units within the council","6502","Agency Homecare (Payments To Independent Units)","90297725","201211",09/02/2012 00:00:00,832.38,"31230","Employment & Recruitment Agencies","REDACTED DATA","SHARED CARE SERVICES LTD","4704680","http://opencorporates.com/companies/gb/4704680",""
"London Borough of Redbridge","http://opendatacommunities.org/doc/london-borough-council/redbridge","6BADULTSOCIA","Adult Social Care","6COTHADSERV","Other Adult Services","REV","Revenue","R4390","PCT HIV Home Care","05-THIRD","Third Party Payments","05A","Independent units within the council","6502","Agency Homecare (Payments To Independent Units)","90299224","201211",09/02/2012 00:00:00,1535.99,"43419","Home Care Services","REDACTED DATA","FASTFLOW DE VERE CARE","",,""
"London Borough of Redbridge","http://opendatacommunities.org/doc/london-borough-council/redbridge","6BADULTSOCIA","Adult Social Care","6COTHADSERV","Other Adult Services","REV","Revenue","R4390","PCT HIV Home Care","05-THIRD","Third Party Payments","05A","Independent units within the council","6502","Agency Homecare (Payments To Independent Units)","90301474","201211",02/02/2012 00:00:00,37.5,"43419","Home Care Services","REDACTED DATA","ENARA LTD (ENARA COMMUNITY CARE)","65455420","http://opencorporates.com/companies/gb/65455420",""
"London Borough of Redbridge","http://opendatacommunities.org/doc/london-borough-council/redbridge","6BADULTSOCIA","Adult Social Care","6COLDINCMENT","Older People (65 or over) incl. Older Mentally Ill","REV","Revenue","R4378","OP Residential","05-THIRD","Third Party Payments","05F","Voluntary associations","6802","Residential Homes","90302144","201211",01/02/2012 00:00:00,301.2,"64710","Residential Care Homes","REDACTED DATA","ROWALLAN GROUP","",,""
"London Borough of Redbridge","http://opendatacommunities.org/doc/london-borough-council/redbridge","6BADULTSOCIA","Adult Social Care","6COLDINCMENT","Older People (65 or over) incl. Older Mentally Ill","REV","Revenue","R4378","OP Residential","05-THIRD","Third Party Payments","05F","Voluntary associations","6802","Residential Homes","90302380","201211",07/02/2012 00:00:00,2060.64,"53350","Nursing Homes","REDACTED DATA","JEWISH CARE (MERIT  HOUSE)","2447900","http://opencorporates.com/companies/gb/2447900","587033133"
"London Borough of Redbridge","http://opendatacommunities.org/doc/london-borough-council/redbridge","3BLEACENTFND","LEA Centrally Held School Funds","3CSCHSTRATMG","Schools Strategic Management","REV","Revenue","R3279","IT Unit - Trading Acc","04-SUPPLIES","Supplies And Services","04A","Equipment, furniture and materials","5502","Equipment Purchase","60169380","201211",23/02/2012 00:00:00,1652.8,"20623","Computer Consumables & Stationery","REDACTED DATA","XMA LIMITED","2051703","http://opencorporates.com/companies/gb/2051703",""
"London Borough of Redbridge","http://opendatacommunities.org/doc/london-borough-council/redbridge","6BADULTSOCIA","Adult Social Care","6COLDINCMENT","Older People (65 or over) incl. Older Mentally Ill","REV","Revenue","R4378","OP Residential","05-THIRD","Third Party Payments","05F","Voluntary associations","6802","Residential Homes","90302029","201211",01/02/2012 00:00:00,1818,"53350","Nursing Homes","REDACTED DATA","CARE FIRST HEALTH CARE LTD( MORNINGTON HALL)","",,""
"London Borough of Redbridge","http://opendatacommunities.org/doc/london-borough-council/redbridge","6BADULTSOCIA","Adult Social Care","6COLDINCMENT","Older People (65 or over) incl. Older Mentally Ill","REV","Revenue","R4378","OP Residential","05-THIRD","Third Party Payments","05F","Voluntary associations","6802","Residential Homes","90302308","201211",01/02/2012 00:00:00,2126.44,"53350","Nursing Homes","REDACTED DATA","THE LODGE","",,""
"London Borough of Redbridge","http://opendatacommunities.org/doc/london-borough-council/redbridge","6BADULTSOCIA","Adult Social Care","6CCHILLOOKED","Children Looked After","REV","Revenue","R2119","CLAFH - Supportive Accommodation","05-THIRD","Third Party Payments","05H","Private contractors","6910","Care Packages","3221481","201211",18/02/2012 00:00:00,25,"47846","Letting Agents","REDACTED DATA","XCHANGE PROPERTY SERVICES LTD","4331388","http://opencorporates.com/companies/gb/4331388",""
"London Borough of Redbridge","http://opendatacommunities.org/doc/london-borough-council/redbridge","6BADULTSOCIA","Adult Social Care","6CADPHYSDIS","Adults Under 65 with Phys Disab or Sensory Impair","REV","Revenue","R4214","PD Direct Payments","06-TRANSFER","Transfer Payments","06B","Social Services Clients","7053","Direct Payments","3218422","201211",13/02/2012 00:00:00,949.2,"56800","Payroll Services","REDACTED DATA","HUMAN MANAGEMENT ASSISTANCE-CLIENT ACCOUNT","4752026","http://opencorporates.com/companies/gb/4752026","815230071"
"London Borough of Redbridge","http://opendatacommunities.org/doc/london-borough-council/redbridge","9BNONBVO","Outside the BVACOP Objective Structure","9CNONBVO","Outside the BVACOP Objective Structure","REV","Revenue","R7702","Vehicle Workshop","04-SUPPLIES","Supplies And Services","04A","Equipment, furniture and materials","5510","Materials","630809","201211",12/12/2011 00:00:00,-8.12,"20390","Commercial Vehicle Servicing, Repairs, Parts and Accessories","REDACTED DATA","MOTOR PARTS DIRECT","",,"689972642"
"London Borough of Redbridge","http://opendatacommunities.org/doc/london-borough-council/redbridge","6BADULTSOCIA","Adult Social Care","6CADLEARNDIS","Adults Under 65 with Learning Disabilities","REV","Revenue","R4241","ONEL ? Continuing Care","05-THIRD","Third Party Payments","05A","Independent units within the council","6502","Agency Homecare (Payments To Independent Units)","90304195","201211",16/02/2012 00:00:00,45.36,"53280","Nursing Agencies","REDACTED DATA","IMMACULATE HEALTHCARE SERVICES LIMITED","",,""
"London Borough of Redbridge","http://opendatacommunities.org/doc/london-borough-council/redbridge","6BADULTSOCIA","Adult Social Care","6CADPHYSDIS","Adults Under 65 with Phys Disab or Sensory Impair","REV","Revenue","R4214","PD Direct Payments","06-TRANSFER","Transfer Payments","06B","Social Services Clients","7053","Direct Payments","3218610","201211",13/02/2012 00:00:00,485.92,"56800","Payroll Services","REDACTED DATA","HUMAN MANAGEMENT ASSISTANCE-CLIENT ACCOUNT","4752026","http://opencorporates.com/companies/gb/4752026","815230071"
"London Borough of Redbridge","http://opendatacommunities.org/doc/london-borough-council/redbridge","6BADULTSOCIA","Adult Social Care","6CADPHYSDIS","Adults Under 65 with Phys Disab or Sensory Impair","REV","Revenue","R4393","PD Home Care","05-THIRD","Third Party Payments","05A","Independent units within the council","6502","Agency Homecare (Payments To Independent Units)","90303472","201211",27/02/2012 00:00:00,12.91,"31230","Employment & Recruitment Agencies","REDACTED DATA","TAYLOR GORDON & CO LTD T/AS PLAN PERSONNEL & PLAN CARE","",,"190680845"
"London Borough of Redbridge","http://opendatacommunities.org/doc/london-borough-council/redbridge","6BADULTSOCIA","Adult Social Care","6COTHADSERV","Other Adult Services","REV","Revenue","R4390","PCT HIV Home Care","05-THIRD","Third Party Payments","05A","Independent units within the council","6502","Agency Homecare (Payments To Independent Units)","90300799","201211",10/02/2012 00:00:00,0,"31230","Employment & Recruitment Agencies","REDACTED DATA","RANDSTAD CARE  LTD","2462482","http://opencorporates.com/companies/gb/2462482","523365558"
"London Borough of Redbridge","http://opendatacommunities.org/doc/london-borough-council/redbridge","6BADULTSOCIA","Adult Social Care","6COTHADSERV","Other Adult Services","REV","Revenue","R4390","PCT HIV Home Care","05-THIRD","Third Party Payments","05A","Independent units within the council","6502","Agency Homecare (Payments To Independent Units)","90304153","201211",23/02/2012 00:00:00,166.7,"53280","Nursing Agencies","REDACTED DATA","IMMACULATE HEALTHCARE SERVICES LIMITED","",,""
"London Borough of Redbridge","http://opendatacommunities.org/doc/london-borough-council/redbridge","6BADULTSOCIA","Adult Social Care","6COTHADSERV","Other Adult Services","REV","Revenue","R4390","PCT HIV Home Care","05-THIRD","Third Party Payments","05A","Independent units within the council","6502","Agency Homecare (Payments To Independent Units)","90304180","201211",24/02/2012 00:00:00,368.12,"53280","Nursing Agencies","REDACTED DATA","IMMACULATE HEALTHCARE SERVICES LIMITED","",,""
"London Borough of Redbridge","http://opendatacommunities.org/doc/london-borough-council/redbridge","6BADULTSOCIA","Adult Social Care","6COTHADSERV","Other Adult Services","REV","Revenue","R4390","PCT HIV Home Care","05-THIRD","Third Party Payments","05A","Independent units within the council","6502","Agency Homecare (Payments To Independent Units)","90299990","201211",10/02/2012 00:00:00,534.64,"53280","Nursing Agencies","REDACTED DATA","IMMACULATE HEALTHCARE SERVICES LIMITED","",,""
"London Borough of Redbridge","http://opendatacommunities.org/doc/london-borough-council/redbridge","4BMANGT&SUPP","Management & Support Services","4CHIGHRDROUT","Highways/Roads (Routine)","REV","Revenue","R7068","Signs - Schedule 2","05-THIRD","Third Party Payments","05H","Private contractors","6915","Contractor Payments","3220465","201211",22/02/2012 00:00:00,1272.16,"21555","Construction Contractors - General","REDACTED DATA","MAY GURNEY LIMITED","873179","http://opencorporates.com/companies/gb/873179","105540018"
"London Borough of Redbridge","http://opendatacommunities.org/doc/london-borough-council/redbridge","4BMANGT&SUPP","Management & Support Services","4CHIGHRDROUT","Highways/Roads (Routine)","REV","Revenue","R7068","Signs - Schedule 2","05-THIRD","Third Party Payments","05H","Private contractors","6915","Contractor Payments","3217414","201211",01/02/2012 00:00:00,55.37,"21555","Construction Contractors - General","REDACTED DATA","MAY GURNEY LIMITED","873179","http://opencorporates.com/companies/gb/873179","105540018"
"London Borough of Redbridge","http://opendatacommunities.org/doc/london-borough-council/redbridge","4BMANGT&SUPP","Management & Support Services","4CHIGHRDROUT","Highways/Roads (Routine)","REV","Revenue","R7070","Reactive Maintenance","05-THIRD","Third Party Payments","05H","Private contractors","6915","Contractor Payments","3221229","201211",28/02/2012 00:00:00,110.83,"18632","Civil Engineers","REDACTED DATA","KENSON CONTRACTORS BENINGTON LTD","1314691","http://opencorporates.com/companies/gb/1314691","301629589"
"London Borough of Redbridge","http://opendatacommunities.org/doc/london-borough-council/redbridge","4BMANGT&SUPP","Management & Support Services","4CHIGHRDROUT","Highways/Roads (Routine)","REV","Revenue","R7068","Signs - Schedule 2","05-THIRD","Third Party Payments","05H","Private contractors","6915","Contractor Payments","3220520","201211",22/02/2012 00:00:00,398.98,"21555","Construction Contractors - General","REDACTED DATA","MAY GURNEY LIMITED","873179","http://opencorporates.com/companies/gb/873179","105540018"
"London Borough of Redbridge","http://opendatacommunities.org/doc/london-borough-council/redbridge","4BMANGT&SUPP","Management & Support Services","4CHIGHRDROUT","Highways/Roads (Routine)","REV","Revenue","R7068","Signs - Schedule 2","05-THIRD","Third Party Payments","05H","Private contractors","6915","Contractor Payments","3220472","201211",22/02/2012 00:00:00,1009.32,"21555","Construction Contractors - General","REDACTED DATA","MAY GURNEY LIMITED","873179","http://opencorporates.com/companies/gb/873179","105540018"
"London Borough of Redbridge","http://opendatacommunities.org/doc/london-borough-council/redbridge","4BMANGT&SUPP","Management & Support Services","4CHIGHRDROUT","Highways/Roads (Routine)","REV","Revenue","R7068","Signs - Schedule 2","05-THIRD","Third Party Payments","05H","Private contractors","6915","Contractor Payments","3217464","201211",01/02/2012 00:00:00,1818.49,"21555","Construction Contractors - General","REDACTED DATA","MAY GURNEY LIMITED","873179","http://opencorporates.com/companies/gb/873179","105540018"
"London Borough of Redbridge","http://opendatacommunities.org/doc/london-borough-council/redbridge","4BMANGT&SUPP","Management & Support Services","4CHIGHRDROUT","Highways/Roads (Routine)","REV","Revenue","R7068","Signs - Schedule 2","05-THIRD","Third Party Payments","05H","Private contractors","6915","Contractor Payments","3217409","201211",01/02/2012 00:00:00,4392.47,"21555","Construction Contractors - General","REDACTED DATA","MAY GURNEY LIMITED","873179","http://opencorporates.com/companies/gb/873179","105540018"
"London Borough of Redbridge","http://opendatacommunities.org/doc/london-borough-council/redbridge","2BENVIRONMEN","Environmental Services","2CWASTECOLLN","Waste Collection","REV","Revenue","R6211","Kerbside Collection","04-SUPPLIES","Supplies And Services","04K","Miscellaneous expenses","6263","Supportive Activities","60167504","201211",07/02/2012 00:00:00,3760.5,"21760","Container Mnfrs","REDACTED DATA","EGBERT H TAYLOR & COMPANY LIMITED","",,"695267487"
"London Borough of Redbridge","http://opendatacommunities.org/doc/london-borough-council/redbridge","2BENVIRONMEN","Environmental Services","2CWASTECOLLN","Waste Collection","REV","Revenue","R6211","Kerbside Collection","05-THIRD","Third Party Payments","05H","Private contractors","6915","Contractor Payments","60166972","201211",23/12/2011 00:00:00,124701.55,"83380","Waste Disposal Services","REDACTED DATA","MRS ENVIRONMENTAL SERVICES LTD","2175295","http://opencorporates.com/companies/gb/2175295","524394641"
"London Borough of Redbridge","http://opendatacommunities.org/doc/london-borough-council/redbridge","6BADULTSOCIA","Adult Social Care","6COLDINCMENT","Older People (65 or over) incl. Older Mentally Ill","REV","Revenue","R4211","Older People Direct Payments","09-INCOME","Income","09C","Customer & Client Receipts","8545","Direct Payments Income","3218740","201211",13/02/2012 00:00:00,-59.84,"56800","Payroll Services","REDACTED DATA","HUMAN MANAGEMENT ASSISTANCE-CLIENT ACCOUNT","4752026","http://opencorporates.com/companies/gb/4752026","815230071"
"London Borough of Redbridge","http://opendatacommunities.org/doc/london-borough-council/redbridge","6BADULTSOCIA","Adult Social Care","6COLDINCMENT","Older People (65 or over) incl. Older Mentally Ill","REV","Revenue","R4211","Older People Direct Payments","06-TRANSFER","Transfer Payments","06B","Social Services Clients","7053","Direct Payments","3218544","201211",13/02/2012 00:00:00,553.72,"56800","Payroll Services","REDACTED DATA","HUMAN MANAGEMENT ASSISTANCE-CLIENT ACCOUNT","4752026","http://opencorporates.com/companies/gb/4752026","815230071"
"London Borough of Redbridge","http://opendatacommunities.org/doc/london-borough-council/redbridge","6BSOCIALSERV","Social Services","6COLDINCMENT","Older People (65 or over) incl. Older Mentally Ill","REV","Revenue","R4059","Elderly Mentally ill Home Care","05-THIRD","Third Party Payments","05A","Independent units within the council","6502","Agency Homecare (Payments To Independent Units)","90299418","201211",13/02/2012 00:00:00,25.52,"43419","Home Care Services","REDACTED DATA","FASTFLOW DE VERE CARE","",,""
"London Borough of Redbridge","http://opendatacommunities.org/doc/london-borough-council/redbridge","3BNONSCHFUND","Non-School Funding","3CNONSCH","Non Schools","REV","Revenue","R3955","Redbridge Primary CC","04-SUPPLIES","Supplies And Services","04A","Equipment, furniture and materials","5502","Equipment Purchase","60167303","201211",01/02/2012 00:00:00,19.95,"29340","Educational Equipment & Supplies","REDACTED DATA","GLS EDUCATIONAL SUPPLIES LTD","",,"765934584"
"London Borough of Redbridge","http://opendatacommunities.org/doc/london-borough-council/redbridge","2BPLAN&DEVEL","Planning & Development Services","2CCOMMDEVT","Community Development","REV","Revenue","R6516","Planning Executive","04-SUPPLIES","Supplies And Services","04E","Services","5760","Interpreters","60168585","201211",16/02/2012 00:00:00,150,"48583","Local Government","REDACTED DATA","LONDON BOROUGH OF NEWHAM","",,"248481537"
"London Borough of Redbridge","http://opendatacommunities.org/doc/london-borough-council/redbridge","1BOTHEROPI&E","Other Operating Income & Expenditure","1CTRADSURDEF","Trading Account Surpluses & Deficits","REV","Revenue","R9148","Contracts Holding Account","02-PREMISES","Premises","02I","Grounds maintenance costs","4753","Trees / Recreational","60168216","201211",14/12/2011 00:00:00,245,"47051","Landscape Contractors and Gardening Services","REDACTED DATA","GAVIN JONES LTD T/A SQUIRES LANDSCAPE","2222355","http://opencorporates.com/companies/gb/2222355","493469695"
"London Borough of Redbridge","http://opendatacommunities.org/doc/london-borough-council/redbridge","9BNONBVO","Outside the BVACOP Objective Structure","9CNONBVO","Outside the BVACOP Objective Structure","BAL","Balance Sheet","B0059","DUMMY VAT ACCOUNT","99-NONBV","Capital, Balance Sheet and Control","50L","Debtors","9359","VAT only invoices","70037374","201211",13/02/2012 00:00:00,-293.82,"72460","Solicitors","REDACTED DATA","WILKIN CHAPMAN SOLICITORS","",,"127942455"
"London Borough of Redbridge","http://opendatacommunities.org/doc/london-borough-council/redbridge","9BNONBVO","Outside the BVACOP Objective Structure","9CNONBVO","Outside the BVACOP Objective Structure","BAL","Balance Sheet","B0059","DUMMY VAT ACCOUNT","99-NONBV","Capital, Balance Sheet and Control","50L","Debtors","9359","VAT only invoices","70037380","201211",17/01/2012 00:00:00,255,"72460","Solicitors","REDACTED DATA","CLYDE & CO LLP","OC326539","http://opencorporates.com/companies/gb/OC326539","243206496"
"London Borough of Redbridge","http://opendatacommunities.org/doc/london-borough-council/redbridge","4BMANGT&SUPP","Management & Support Services","4CHIGHRDROUT","Highways/Roads (Routine)","REV","Revenue","R7070","Reactive Maintenance","05-THIRD","Third Party Payments","05H","Private contractors","6915","Contractor Payments","3221123","201211",28/02/2012 00:00:00,144.35,"18632","Civil Engineers","REDACTED DATA","KENSON CONTRACTORS BENINGTON LTD","1314691","http://opencorporates.com/companies/gb/1314691","301629589"
"London Borough of Redbridge","http://opendatacommunities.org/doc/london-borough-council/redbridge","4BMANGT&SUPP","Management & Support Services","4CHIGHRDROUT","Highways/Roads (Routine)","REV","Revenue","R7075","Drainage","05-THIRD","Third Party Payments","05H","Private contractors","6915","Contractor Payments","3220441","201211",22/02/2012 00:00:00,366.64,"18632","Civil Engineers","REDACTED DATA","KENSON CONTRACTORS BENINGTON LTD","1314691","http://opencorporates.com/companies/gb/1314691","301629589"
"London Borough of Redbridge","http://opendatacommunities.org/doc/london-borough-council/redbridge","6BADULTSOCIA","Adult Social Care","6CADPHYSDIS","Adults Under 65 with Phys Disab or Sensory Impair","REV","Revenue","R4021","Carers PD Direct Payments","06-TRANSFER","Transfer Payments","06B","Social Services Clients","7053","Direct Payments","3218851","201211",13/02/2012 00:00:00,271.2,"56800","Payroll Services","REDACTED DATA","HUMAN MANAGEMENT ASSISTANCE-CLIENT ACCOUNT","4752026","http://opencorporates.com/companies/gb/4752026","815230071"
"London Borough of Redbridge","http://opendatacommunities.org/doc/london-borough-council/redbridge","6BADULTSOCIA","Adult Social Care","6CADPHYSDIS","Adults Under 65 with Phys Disab or Sensory Impair","REV","Revenue","R4214","PD Direct Payments","06-TRANSFER","Transfer Payments","06B","Social Services Clients","7053","Direct Payments","3218464","201211",13/02/2012 00:00:00,316.4,"56800","Payroll Services","REDACTED DATA","HUMAN MANAGEMENT ASSISTANCE-CLIENT ACCOUNT","4752026","http://opencorporates.com/companies/gb/4752026","815230071"
"London Borough of Redbridge","http://opendatacommunities.org/doc/london-borough-council/redbridge","3BNONSCHFUND","Non-School Funding","3CNONSCH","Non Schools","REV","Revenue","R3946","Hainault CC Nursery","01-EMPLOYEES","Employees","01A","Direct employee expenses","4","Agency Staff - Pay","60168799","201211",15/01/2012 00:00:00,41.55,"31230","Employment & Recruitment Agencies","REDACTED DATA","TAYLOR GORDON & CO LTD T/AS PLAN PERSONNEL & PLAN CARE","",,"190680845"
"London Borough of Redbridge","http://opendatacommunities.org/doc/london-borough-council/redbridge","1BOTHEROPI&E","Other Operating Income & Expenditure","1CTRADSURDEF","Trading Account Surpluses & Deficits","REV","Revenue","R9603","17-23 Clements Rd","02-PREMISES","Premises","02A","Repairs, alteration and maintenance of buildings","3037","Service Contracts","787168","201211",06/12/2011 00:00:00,47.67,"47960","Lifts - Servicing & Repairs","REDACTED DATA","APOLLO LIFTS LTD","1449230","http://opencorporates.com/companies/gb/1449230","245558443"
"London Borough of Redbridge","http://opendatacommunities.org/doc/london-borough-council/redbridge","3BNONSCHFUND","Non-School Funding","3CNONSCH","Non Schools","REV","Revenue","R3962","Early Years - 3 and 4 Year Olds","05-THIRD","Third Party Payments","05A","Independent units within the council","6517","Non-Maintained Schools","3217578","201211",10/01/2012 00:00:00,9481,"68200","Schools - Special","REDACTED DATA","AVON HOUSE SCHOOL LTD","",,""
"London Borough of Redbridge","http://opendatacommunities.org/doc/london-borough-council/redbridge","2BENVIRONMEN","Environmental Services","2CWASTECOLLN","Waste Collection","REV","Revenue","R6206","Recycling - Flats","05-THIRD","Third Party Payments","05H","Private contractors","6915","Contractor Payments","60166972","201211",23/12/2011 00:00:00,13456.68,"83380","Waste Disposal Services","REDACTED DATA","MRS ENVIRONMENTAL SERVICES LTD","2175295","http://opencorporates.com/companies/gb/2175295","524394641"
"London Borough of Redbridge","http://opendatacommunities.org/doc/london-borough-council/redbridge","6BADULTSOCIA","Adult Social Care","6CADPHYSDIS","Adults Under 65 with Phys Disab or Sensory Impair","REV","Revenue","R4214","PD Direct Payments","09-INCOME","Income","09C","Customer & Client Receipts","8545","Direct Payments Income","3218536","201211",13/02/2012 00:00:00,-107.64,"90005","Home Care Services DP","REDACTED DATA","REDACTED DATA","",,""
"London Borough of Redbridge","http://opendatacommunities.org/doc/london-borough-council/redbridge","6BADULTSOCIA","Adult Social Care","6CADPHYSDIS","Adults Under 65 with Phys Disab or Sensory Impair","REV","Revenue","R4214","PD Direct Payments","06-TRANSFER","Transfer Payments","06B","Social Services Clients","7053","Direct Payments","3218505","201211",13/02/2012 00:00:00,1107.4,"90005","Home Care Services DP","REDACTED DATA","REDACTED DATA","",,""
"London Borough of Redbridge","http://opendatacommunities.org/doc/london-borough-council/redbridge","3BLEACENTFND","LEA Centrally Held School Funds","3CASSURACCES","Assuring Access to Schools","REV","Revenue","R3016","Kearley and Tonge SG","02-PREMISES","Premises","02C","Rents","4120","Rents","40510764","201211",01/03/2012 00:00:00,2187.5,"61896","Property & Estate Management","REDACTED DATA","MELVIN J CRUMP","1807344194","http://opencorporates.com/companies/gb/1807344194",""
"London Borough of Redbridge","http://opendatacommunities.org/doc/london-borough-council/redbridge","1BCENTRALPUB","Central Services to the Public","1CLOCALTAXCO","Local Tax Collection","REV","Revenue","R5760","Council Tax Collection","04-SUPPLIES","Supplies And Services","04K","Miscellaneous expenses","6204","Bankruptcy","60169172","201211",17/02/2012 00:00:00,75,"72460","Solicitors","REDACTED DATA","WILKIN CHAPMAN SOLICITORS","",,"127942455"
"London Borough of Redbridge","http://opendatacommunities.org/doc/london-borough-council/redbridge","6BSOCIALSERV","Social Services","6CCHILLOOKED","Children Looked After","REV","Revenue","R2117","SEN and CD Care and Support Packages Social Care","06-TRANSFER","Transfer Payments","06B","Social Services Clients","7050","Agency Homecare","3220299","201211",10/02/2012 00:00:00,141.75,"43419","Home Care Services","REDACTED DATA","FASTFLOW DE VERE CARE","",,""
"London Borough of Redbridge","http://opendatacommunities.org/doc/london-borough-council/redbridge","6BADULTSOCIA","Adult Social Care","6COLDINCMENT","Older People (65 or over) incl. Older Mentally Ill","REV","Revenue","R4211","Older People Direct Payments","06-TRANSFER","Transfer Payments","06B","Social Services Clients","7053","Direct Payments","3218675","201211",13/02/2012 00:00:00,1536.8,"56800","Payroll Services","REDACTED DATA","HUMAN MANAGEMENT ASSISTANCE-CLIENT ACCOUNT","4752026","http://opencorporates.com/companies/gb/4752026","815230071"
"London Borough of Redbridge","http://opendatacommunities.org/doc/london-borough-council/redbridge","6BADULTSOCIA","Adult Social Care","6COLDINCMENT","Older People (65 or over) incl. Older Mentally Ill","REV","Revenue","R4211","Older People Direct Payments","09-INCOME","Income","09C","Customer & Client Receipts","8545","Direct Payments Income","3218710","201211",13/02/2012 00:00:00,4252.69,"56800","Payroll Services","REDACTED DATA","HUMAN MANAGEMENT ASSISTANCE-CLIENT ACCOUNT","4752026","http://opencorporates.com/companies/gb/4752026","815230071"
"London Borough of Redbridge","http://opendatacommunities.org/doc/london-borough-council/redbridge","6BADULTSOCIA","Adult Social Care","6COLDINCMENT","Older People (65 or over) incl. Older Mentally Ill","REV","Revenue","R4211","Older People Direct Payments","09-INCOME","Income","09C","Customer & Client Receipts","8545","Direct Payments Income","3218909","201211",13/02/2012 00:00:00,118.65,"56800","Payroll Services","REDACTED DATA","HUMAN MANAGEMENT ASSISTANCE-CLIENT ACCOUNT","4752026","http://opencorporates.com/companies/gb/4752026","815230071"
"London Borough of Redbridge","http://opendatacommunities.org/doc/london-borough-council/redbridge","6BADULTSOCIA","Adult Social Care","6COLDINCMENT","Older People (65 or over) incl. Older Mentally Ill","REV","Revenue","R4211","Older People Direct Payments","06-TRANSFER","Transfer Payments","06B","Social Services Clients","7053","Direct Payments","3218737","201211",13/02/2012 00:00:00,791,"56800","Payroll Services","REDACTED DATA","HUMAN MANAGEMENT ASSISTANCE-CLIENT ACCOUNT","4752026","http://opencorporates.com/companies/gb/4752026","815230071"
"London Borough of Redbridge","http://opendatacommunities.org/doc/london-borough-council/redbridge","6BADULTSOCIA","Adult Social Care","6COLDINCMENT","Older People (65 or over) incl. Older Mentally Ill","REV","Revenue","R4211","Older People Direct Payments","09-INCOME","Income","09C","Customer & Client Receipts","8545","Direct Payments Income","3218760","201211",13/02/2012 00:00:00,-46.08,"56800","Payroll Services","REDACTED DATA","HUMAN MANAGEMENT ASSISTANCE-CLIENT ACCOUNT","4752026","http://opencorporates.com/companies/gb/4752026","815230071"
"London Borough of Redbridge","http://opendatacommunities.org/doc/london-borough-council/redbridge","6BADULTSOCIA","Adult Social Care","6COLDINCMENT","Older People (65 or over) incl. Older Mentally Ill","REV","Revenue","R4211","Older People Direct Payments","06-TRANSFER","Transfer Payments","06B","Social Services Clients","7053","Direct Payments","3218896","201211",13/02/2012 00:00:00,1001.92,"56800","Payroll Services","REDACTED DATA","HUMAN MANAGEMENT ASSISTANCE-CLIENT ACCOUNT","4752026","http://opencorporates.com/companies/gb/4752026","815230071"
"London Borough of Redbridge","http://opendatacommunities.org/doc/london-borough-council/redbridge","6BADULTSOCIA","Adult Social Care","6COTHADSERV","Other Adult Services","REV","Revenue","R4389","PCT Older Person Home Care","05-THIRD","Third Party Payments","05A","Independent units within the council","6502","Agency Homecare (Payments To Independent Units)","90300971","201211",31/01/2012 00:00:00,568.89,"53350","Nursing Homes","REDACTED DATA","ELEANOR NURSING & SOCIALCARE LTD","4393038","http://opencorporates.com/companies/gb/4393038",""
"London Borough of Redbridge","http://opendatacommunities.org/doc/london-borough-council/redbridge","6BSOCIALSERV","Social Services","6CCHILLOOKED","Children Looked After","REV","Revenue","R2127","CLAFH - Fostering and Adoption","05-THIRD","Third Party Payments","05H","Private contractors","6917","Fostering Costs - Agency","60168895","201211",09/02/2012 00:00:00,2797.34,"1880","Adoption and Fostering","REDACTED DATA","FOCUS ON FOSTERING LTD","4371679","http://opencorporates.com/companies/gb/4371679",""
"London Borough of Redbridge","http://opendatacommunities.org/doc/london-borough-council/redbridge","1BOTHEROPI&E","Other Operating Income & Expenditure","1CTRADSURDEF","Trading Account Surpluses & Deficits","REV","Revenue","R9576","Broadway Chambers Service Charge Account","02-PREMISES","Premises","02A","Repairs, alteration and maintenance of buildings","3037","Service Contracts","787168","201211",06/12/2011 00:00:00,23.84,"47960","Lifts - Servicing & Repairs","REDACTED DATA","APOLLO LIFTS LTD","1449230","http://opencorporates.com/companies/gb/1449230","245558443"
"London Borough of Redbridge","http://opendatacommunities.org/doc/london-borough-council/redbridge","1BOTHEROPI&E","Other Operating Income & Expenditure","1CTRADSURDEF","Trading Account Surpluses & Deficits","REV","Revenue","R9576","Broadway Chambers Service Charge Account","02-PREMISES","Premises","02A","Repairs, alteration and maintenance of buildings","3026","Minor Maintenance","787240","201211",31/01/2012 00:00:00,148,"11040","Builders","REDACTED DATA","M & G CONSTRUCTION LTD.","1918880","http://opencorporates.com/companies/gb/1918880","406392853"
"London Borough of Redbridge","http://opendatacommunities.org/doc/london-borough-council/redbridge","3BLEACENTFND","LEA Centrally Held School Funds","3CSUPPORTSEN","Supporting Special Education Needs","REV","Revenue","R3431","Pupil Referral Unit (KS4)","01-EMPLOYEES","Employees","01A","Direct employee expenses","4","Agency Staff - Pay","60168870","201211",23/02/2012 00:00:00,405,"31230","Employment & Recruitment Agencies","REDACTED DATA","TOTAL ASSIST EDUCATION LTD","5368892","http://opencorporates.com/companies/gb/5368892","946069692"
"London Borough of Redbridge","http://opendatacommunities.org/doc/london-borough-council/redbridge","3BLEACENTFND","LEA Centrally Held School Funds","3CSUPPORTSEN","Supporting Special Education Needs","REV","Revenue","R3431","Pupil Referral Unit (KS4)","01-EMPLOYEES","Employees","01A","Direct employee expenses","4","Agency Staff - Pay","60166971","201211",31/01/2012 00:00:00,540,"31230","Employment & Recruitment Agencies","REDACTED DATA","TOTAL ASSIST EDUCATION LTD","5368892","http://opencorporates.com/companies/gb/5368892","946069692"
"London Borough of Redbridge","http://opendatacommunities.org/doc/london-borough-council/redbridge","6BSOCIALSERV","Social Services","6CCHILLOOKED","Children Looked After","REV","Revenue","R2117","SEN and CD Care and Support Packages Social Care","06-TRANSFER","Transfer Payments","06B","Social Services Clients","7050","Agency Homecare","3218106","201211",29/01/2012 00:00:00,655.53,"17020","Charities and Voluntary Organisations","REDACTED DATA","REDBRIDGE CROSSROADS CAS","2647932","http://opencorporates.com/companies/gb/2647932",""
"London Borough of Redbridge","http://opendatacommunities.org/doc/london-borough-council/redbridge","1BOTHEROPI&E","Other Operating Income & Expenditure","1CTRADSURDEF","Trading Account Surpluses & Deficits","REV","Revenue","R9154","Audit","04-SUPPLIES","Supplies And Services","04D","Printing, stationery and general office expenses","5710","Stationery","3221518","201211",09/02/2012 00:00:00,3.4,"53770","Office Stationery Supplies","REDACTED DATA","OFFICE DEPOT UK LTD (EX-GUILBERT UK)","2654682","http://opencorporates.com/companies/gb/2654682","673478594"
"London Borough of Redbridge","http://opendatacommunities.org/doc/london-borough-council/redbridge","6BADULTSOCIA","Adult Social Care","6COTHADSERV","Other Adult Services","REV","Revenue","R4389","PCT Older Person Home Care","05-THIRD","Third Party Payments","05A","Independent units within the council","6502","Agency Homecare (Payments To Independent Units)","90301141","201211",01/02/2012 00:00:00,73.6,"43419","Home Care Services","REDACTED DATA","CAREWATCH CARE SERVICES LTD","2949558","http://opencorporates.com/companies/gb/2949558","927457005"
"London Borough of Redbridge","http://opendatacommunities.org/doc/london-borough-council/redbridge","6BADULTSOCIA","Adult Social Care","6CADPHYSDIS","Adults Under 65 with Phys Disab or Sensory Impair","REV","Revenue","R4393","PD Home Care","05-THIRD","Third Party Payments","05A","Independent units within the council","6502","Agency Homecare (Payments To Independent Units)","90300362","201211",03/02/2012 00:00:00,34.5,"31230","Employment & Recruitment Agencies","REDACTED DATA","RANDSTAD CARE  LTD","2462482","http://opencorporates.com/companies/gb/2462482","523365558"
"London Borough of Redbridge","http://opendatacommunities.org/doc/london-borough-council/redbridge","9BNONBVO","Outside the BVACOP Objective Structure","9CNONBVO","Outside the BVACOP Objective Structure","REV","Revenue","R7702","Vehicle Workshop","03-TRANSPORT","Transport","03A","Direct - transport costs","5004","Petrol-Leaded","70037636","201211",07/02/2012 00:00:00,65.98,"30045","Electrical Engineers","REDACTED DATA","COUNTY ELECTRICAL SOLUTIONS LTD","6476990","http://opencorporates.com/companies/gb/6476990","924889474"
"London Borough of Redbridge","http://opendatacommunities.org/doc/london-borough-council/redbridge","9BNONBVO","Outside the BVACOP Objective Structure","9CNONBVO","Outside the BVACOP Objective Structure","REV","Revenue","R7702","Vehicle Workshop","03-TRANSPORT","Transport","03A","Direct - transport costs","5004","Petrol-Leaded","70037636","201211",07/02/2012 00:00:00,192.5,"30045","Electrical Engineers","REDACTED DATA","COUNTY ELECTRICAL SOLUTIONS LTD","6476990","http://opencorporates.com/companies/gb/6476990","924889474"
"London Borough of Redbridge","http://opendatacommunities.org/doc/london-borough-council/redbridge","3BNONSCHFUND","Non-School Funding","3CNONSCH","Non Schools","REV","Revenue","R3962","Early Years - 3 and 4 Year Olds","05-THIRD","Third Party Payments","05A","Independent units within the council","6517","Non-Maintained Schools","3217621","201211",10/01/2012 00:00:00,3960,"59760","Playgroups, Nurseries and Creches","REDACTED DATA","SOMERVILLE PRE-SCHOOL","",,""
"London Borough of Redbridge","http://opendatacommunities.org/doc/london-borough-council/redbridge","6BADULTSOCIA","Adult Social Care","6CADLEARNDIS","Adults Under 65 with Learning Disabilities","REV","Revenue","R4383","LD - External Day Care","05-THIRD","Third Party Payments","05H","Private contractors","6904","Day Centres","90301735","201211",31/01/2012 00:00:00,-23.63,"17020","Charities and Voluntary Organisations","REDACTED DATA","NORWOOD RAVENWOOD SERVICES LTD","",,""
"London Borough of Redbridge","http://opendatacommunities.org/doc/london-borough-council/redbridge","6BSOCIALSERV","Social Services","6CCHILLOOKED","Children Looked After","REV","Revenue","R2122","CLAFH - Corporate Parenting Social Care","06-TRANSFER","Transfer Payments","06B","Social Services Clients","7061","Support Package","3221505","201211",18/02/2012 00:00:00,15,"47846","Letting Agents","REDACTED DATA","XCHANGE PROPERTY SERVICES LTD","4331388","http://opencorporates.com/companies/gb/4331388",""
"London Borough of Redbridge","http://opendatacommunities.org/doc/london-borough-council/redbridge","6BADULTSOCIA","Adult Social Care","6CADLEARNDIS","Adults Under 65 with Learning Disabilities","REV","Revenue","R4383","LD - External Day Care","05-THIRD","Third Party Payments","05H","Private contractors","6904","Day Centres","90302546","201211",31/01/2012 00:00:00,1610.23,"24200","Day Centres","REDACTED DATA","EASTWAY CARE LTD","",,""
"London Borough of Redbridge","http://opendatacommunities.org/doc/london-borough-council/redbridge","6BADULTSOCIA","Adult Social Care","6CADLEARNDIS","Adults Under 65 with Learning Disabilities","REV","Revenue","R4296","Mulberry Lodge","01-EMPLOYEES","Employees","01A","Direct employee expenses","409","Agency Staff Pay","60167976","201211",03/02/2012 00:00:00,391,"43419","Home Care Services","REDACTED DATA","REDSPOT HOMECARE LTD","3966475","http://opencorporates.com/companies/gb/3966475",""
"London Borough of Redbridge","http://opendatacommunities.org/doc/london-borough-council/redbridge","6BADULTSOCIA","Adult Social Care","6CADLEARNDIS","Adults Under 65 with Learning Disabilities","REV","Revenue","R4296","Mulberry Lodge","01-EMPLOYEES","Employees","01A","Direct employee expenses","409","Agency Staff Pay","60167033","201211",31/01/2012 00:00:00,439.87,"31230","Employment & Recruitment Agencies","REDACTED DATA","CRASTER RECRUITMENT LTD","7654534","http://opencorporates.com/companies/gb/7654534","119719983"
"London Borough of Redbridge","http://opendatacommunities.org/doc/london-borough-council/redbridge","6BADULTSOCIA","Adult Social Care","6CADPHYSDIS","Adults Under 65 with Phys Disab or Sensory Impair","REV","Revenue","R4393","PD Home Care","05-THIRD","Third Party Payments","05A","Independent units within the council","6502","Agency Homecare (Payments To Independent Units)","90299376","201211",13/02/2012 00:00:00,165.88,"43419","Home Care Services","REDACTED DATA","FASTFLOW DE VERE CARE","",,""
"London Borough of Redbridge","http://opendatacommunities.org/doc/london-borough-council/redbridge","6BSOCIALSERV","Social Services","6CFAMSUPPSER","Family Support Services","REV","Revenue","R2159","CP and EI - Thackeray Drive Residential","01-EMPLOYEES","Employees","01A","Direct employee expenses","4","Agency Staff - Pay","3220752","201211",29/02/2012 00:00:00,1456,"31230","Employment & Recruitment Agencies","REDACTED DATA","MATRIX SCM LTD","2227962","http://opencorporates.com/companies/gb/2227962","918498476"
"London Borough of Redbridge","http://opendatacommunities.org/doc/london-borough-council/redbridge","6BSOCIALSERV","Social Services","6CFAMSUPPSER","Family Support Services","REV","Revenue","R2159","CP and EI - Thackeray Drive Residential","01-EMPLOYEES","Employees","01A","Direct employee expenses","4","Agency Staff - Pay","3220752","201211",29/02/2012 00:00:00,1456,"31230","Employment & Recruitment Agencies","REDACTED DATA","MATRIX SCM LTD","2227962","http://opencorporates.com/companies/gb/2227962","918498476"
"London Borough of Redbridge","http://opendatacommunities.org/doc/london-borough-council/redbridge","6BADULTSOCIA","Adult Social Care","6COLDINCMENT","Older People (65 or over) incl. Older Mentally Ill","REV","Revenue","R4391","OP Home Care","05-THIRD","Third Party Payments","05A","Independent units within the council","6502","Agency Homecare (Payments To Independent Units)","90301408","201211",02/02/2012 00:00:00,43.75,"43419","Home Care Services","REDACTED DATA","ENARA LTD (ENARA COMMUNITY CARE)","65455420","http://opencorporates.com/companies/gb/65455420",""
"London Borough of Redbridge","http://opendatacommunities.org/doc/london-borough-council/redbridge","6BADULTSOCIA","Adult Social Care","6COLDINCMENT","Older People (65 or over) incl. Older Mentally Ill","REV","Revenue","R4391","OP Home Care","05-THIRD","Third Party Payments","05A","Independent units within the council","6502","Agency Homecare (Payments To Independent Units)","90305378","201211",23/02/2012 00:00:00,46.89,"43419","Home Care Services","REDACTED DATA","ENARA LTD (ENARA COMMUNITY CARE)","65455420","http://opencorporates.com/companies/gb/65455420",""
"London Borough of Redbridge","http://opendatacommunities.org/doc/london-borough-council/redbridge","6BADULTSOCIA","Adult Social Care","6COTHADSERV","Other Adult Services","REV","Revenue","R4389","PCT Older Person Home Care","05-THIRD","Third Party Payments","05A","Independent units within the council","6502","Agency Homecare (Payments To Independent Units)","90304087","201211",10/02/2012 00:00:00,401.76,"53280","Nursing Agencies","REDACTED DATA","IMMACULATE HEALTHCARE SERVICES LIMITED","",,""
"London Borough of Redbridge","http://opendatacommunities.org/doc/london-borough-council/redbridge","6BSOCIALSERV","Social Services","6CFAMSUPPSER","Family Support Services","REV","Revenue","R2159","CP and EI - Thackeray Drive Residential","02-PREMISES","Premises","02A","Repairs, alteration and maintenance of buildings","3037","Service Contracts","787339","201211",10/02/2012 00:00:00,118.25,"35290","Fire Alarm Systems","REDACTED DATA","MULTI-ALARM SYSTEMS (GB) LTD","1020755","http://opencorporates.com/companies/gb/1020755","358056637"
"London Borough of Redbridge","http://opendatacommunities.org/doc/london-borough-council/redbridge","6BADULTSOCIA","Adult Social Care","6COTHADSERV","Other Adult Services","REV","Revenue","R4390","PCT HIV Home Care","05-THIRD","Third Party Payments","05A","Independent units within the council","6502","Agency Homecare (Payments To Independent Units)","90300142","201211",01/02/2012 00:00:00,0,"31230","Employment & Recruitment Agencies","REDACTED DATA","RANDSTAD CARE  LTD","2462482","http://opencorporates.com/companies/gb/2462482","523365558"
"London Borough of Redbridge","http://opendatacommunities.org/doc/london-borough-council/redbridge","6BADULTSOCIA","Adult Social Care","6COLDINCMENT","Older People (65 or over) incl. Older Mentally Ill","REV","Revenue","R4391","OP Home Care","05-THIRD","Third Party Payments","05A","Independent units within the council","6502","Agency Homecare (Payments To Independent Units)","90300154","201211",02/02/2012 00:00:00,80.5,"31230","Employment & Recruitment Agencies","REDACTED DATA","RANDSTAD CARE  LTD","2462482","http://opencorporates.com/companies/gb/2462482","523365558"
"London Borough of Redbridge","http://opendatacommunities.org/doc/london-borough-council/redbridge","6BADULTSOCIA","Adult Social Care","6COLDINCMENT","Older People (65 or over) incl. Older Mentally Ill","REV","Revenue","R4391","OP Home Care","05-THIRD","Third Party Payments","05A","Independent units within the council","6502","Agency Homecare (Payments To Independent Units)","90300652","201211",08/02/2012 00:00:00,133.79,"31230","Employment & Recruitment Agencies","REDACTED DATA","RANDSTAD CARE  LTD","2462482","http://opencorporates.com/companies/gb/2462482","523365558"
"London Borough of Redbridge","http://opendatacommunities.org/doc/london-borough-council/redbridge","6BADULTSOCIA","Adult Social Care","6COTHADSERV","Other Adult Services","REV","Revenue","R4390","PCT HIV Home Care","05-THIRD","Third Party Payments","05A","Independent units within the council","6502","Agency Homecare (Payments To Independent Units)","90304150","201211",23/02/2012 00:00:00,166.7,"53280","Nursing Agencies","REDACTED DATA","IMMACULATE HEALTHCARE SERVICES LIMITED","",,""
"London Borough of Redbridge","http://opendatacommunities.org/doc/london-borough-council/redbridge","6BADULTSOCIA","Adult Social Care","6COLDINCMENT","Older People (65 or over) incl. Older Mentally Ill","REV","Revenue","R4391","OP Home Care","05-THIRD","Third Party Payments","05A","Independent units within the council","6502","Agency Homecare (Payments To Independent Units)","90304426","201211",17/02/2012 00:00:00,212.75,"31230","Employment & Recruitment Agencies","REDACTED DATA","RANDSTAD CARE  LTD","2462482","http://opencorporates.com/companies/gb/2462482","523365558"
"London Borough of Redbridge","http://opendatacommunities.org/doc/london-borough-council/redbridge","6BADULTSOCIA","Adult Social Care","6COTHADSERV","Other Adult Services","REV","Revenue","R4390","PCT HIV Home Care","05-THIRD","Third Party Payments","05A","Independent units within the council","6502","Agency Homecare (Payments To Independent Units)","90299523","201211",02/02/2012 00:00:00,219.6,"43419","Home Care Services","REDACTED DATA","FASTFLOW DE VERE CARE","",,""
"London Borough of Redbridge","http://opendatacommunities.org/doc/london-borough-council/redbridge","6BADULTSOCIA","Adult Social Care","6COLDINCMENT","Older People (65 or over) incl. Older Mentally Ill","REV","Revenue","R4391","OP Home Care","05-THIRD","Third Party Payments","05A","Independent units within the council","6502","Agency Homecare (Payments To Independent Units)","90298846","201211",13/02/2012 00:00:00,271.18,"31230","Employment & Recruitment Agencies","REDACTED DATA","TAYLOR GORDON & CO LTD T/AS PLAN PERSONNEL & PLAN CARE","",,"190680845"
"London Borough of Redbridge","http://opendatacommunities.org/doc/london-borough-council/redbridge","6BADULTSOCIA","Adult Social Care","6COTHADSERV","Other Adult Services","REV","Revenue","R4390","PCT HIV Home Care","05-THIRD","Third Party Payments","05A","Independent units within the council","6502","Agency Homecare (Payments To Independent Units)","90299934","201211",02/02/2012 00:00:00,469.84,"53280","Nursing Agencies","REDACTED DATA","IMMACULATE HEALTHCARE SERVICES LIMITED","",,""
"London Borough of Redbridge","http://opendatacommunities.org/doc/london-borough-council/redbridge","6BADULTSOCIA","Adult Social Care","6COTHADSERV","Other Adult Services","REV","Revenue","R4390","PCT HIV Home Care","05-THIRD","Third Party Payments","05A","Independent units within the council","6502","Agency Homecare (Payments To Independent Units)","90303764","201211",24/02/2012 00:00:00,1541.91,"43419","Home Care Services","REDACTED DATA","FASTFLOW DE VERE CARE","",,""
"London Borough of Redbridge","http://opendatacommunities.org/doc/london-borough-council/redbridge","6BADULTSOCIA","Adult Social Care","6COTHADSERV","Other Adult Services","REV","Revenue","R4389","PCT Older Person Home Care","05-THIRD","Third Party Payments","05A","Independent units within the council","6502","Agency Homecare (Payments To Independent Units)","90304102","201211",16/02/2012 00:00:00,120.86,"53280","Nursing Agencies","REDACTED DATA","IMMACULATE HEALTHCARE SERVICES LIMITED","",,""
"London Borough of Redbridge","http://opendatacommunities.org/doc/london-borough-council/redbridge","3BNONSCHFUND","Non-School Funding","3CNONSCH","Non Schools","REV","Revenue","R3947","Loxford CC Nursery","01-EMPLOYEES","Employees","01A","Direct employee expenses","4","Agency Staff - Pay","60167026","201211",25/01/2012 00:00:00,350,"31230","Employment & Recruitment Agencies","REDACTED DATA","PROTOCOL EDUCATION LTD","2926583","http://opencorporates.com/companies/gb/2926583","764390315"
"London Borough of Redbridge","http://opendatacommunities.org/doc/london-borough-council/redbridge","6BADULTSOCIA","Adult Social Care","6CADLEARNDIS","Adults Under 65 with Learning Disabilities","REV","Revenue","R4240","Argyle Project","05-THIRD","Third Party Payments","05H","Private contractors","6902","Respite Care","90302406","201211",14/02/2012 00:00:00,-525,"17020","Charities and Voluntary Organisations","REDACTED DATA","REDBRIDGE COMMUNITY HOUSING LIMITED (RCHL)","",,""
"London Borough of Redbridge","http://opendatacommunities.org/doc/london-borough-council/redbridge","6BADULTSOCIA","Adult Social Care","6CADLEARNDIS","Adults Under 65 with Learning Disabilities","REV","Revenue","R4240","Argyle Project","05-THIRD","Third Party Payments","05H","Private contractors","6902","Respite Care","90302624","201211",27/02/2012 00:00:00,175,"17020","Charities and Voluntary Organisations","REDACTED DATA","REDBRIDGE COMMUNITY HOUSING LIMITED (RCHL)","",,""
"London Borough of Redbridge","http://opendatacommunities.org/doc/london-borough-council/redbridge","6BADULTSOCIA","Adult Social Care","6CADLEARNDIS","Adults Under 65 with Learning Disabilities","REV","Revenue","R4240","Argyle Project","05-THIRD","Third Party Payments","05H","Private contractors","6902","Respite Care","90302419","201211",14/02/2012 00:00:00,175,"17020","Charities and Voluntary Organisations","REDACTED DATA","REDBRIDGE COMMUNITY HOUSING LIMITED (RCHL)","",,""
"London Borough of Redbridge","http://opendatacommunities.org/doc/london-borough-council/redbridge","6BADULTSOCIA","Adult Social Care","6CADLEARNDIS","Adults Under 65 with Learning Disabilities","REV","Revenue","R4240","Argyle Project","05-THIRD","Third Party Payments","05H","Private contractors","6902","Respite Care","90302408","201211",14/02/2012 00:00:00,175,"17020","Charities and Voluntary Organisations","REDACTED DATA","REDBRIDGE COMMUNITY HOUSING LIMITED (RCHL)","",,""
"London Borough of Redbridge","http://opendatacommunities.org/doc/london-borough-council/redbridge","6BADULTSOCIA","Adult Social Care","6CADLEARNDIS","Adults Under 65 with Learning Disabilities","REV","Revenue","R4240","Argyle Project","05-THIRD","Third Party Payments","05H","Private contractors","6902","Respite Care","90302411","201211",14/02/2012 00:00:00,175,"17020","Charities and Voluntary Organisations","REDACTED DATA","REDBRIDGE COMMUNITY HOUSING LIMITED (RCHL)","",,""
"London Borough of Redbridge","http://opendatacommunities.org/doc/london-borough-council/redbridge","6BADULTSOCIA","Adult Social Care","6CADLEARNDIS","Adults Under 65 with Learning Disabilities","REV","Revenue","R4240","Argyle Project","05-THIRD","Third Party Payments","05H","Private contractors","6902","Respite Care","90302411","201211",14/02/2012 00:00:00,175,"17020","Charities and Voluntary Organisations","REDACTED DATA","REDBRIDGE COMMUNITY HOUSING LIMITED (RCHL)","",,""
"London Borough of Redbridge","http://opendatacommunities.org/doc/london-borough-council/redbridge","6BADULTSOCIA","Adult Social Care","6CADLEARNDIS","Adults Under 65 with Learning Disabilities","REV","Revenue","R4240","Argyle Project","05-THIRD","Third Party Payments","05H","Private contractors","6902","Respite Care","90302416","201211",14/02/2012 00:00:00,350,"17020","Charities and Voluntary Organisations","REDACTED DATA","REDBRIDGE COMMUNITY HOUSING LIMITED (RCHL)","",,""
"London Borough of Redbridge","http://opendatacommunities.org/doc/london-borough-council/redbridge","6BADULTSOCIA","Adult Social Care","6CADLEARNDIS","Adults Under 65 with Learning Disabilities","REV","Revenue","R4240","Argyle Project","05-THIRD","Third Party Payments","05H","Private contractors","6902","Respite Care","90302410","201211",14/02/2012 00:00:00,350,"17020","Charities and Voluntary Organisations","REDACTED DATA","REDBRIDGE COMMUNITY HOUSING LIMITED (RCHL)","",,""
"London Borough of Redbridge","http://opendatacommunities.org/doc/london-borough-council/redbridge","6BADULTSOCIA","Adult Social Care","6CADLEARNDIS","Adults Under 65 with Learning Disabilities","REV","Revenue","R4240","Argyle Project","05-THIRD","Third Party Payments","05H","Private contractors","6902","Respite Care","90302634","201211",27/02/2012 00:00:00,350,"17020","Charities and Voluntary Organisations","REDACTED DATA","REDBRIDGE COMMUNITY HOUSING LIMITED (RCHL)","",,""
"London Borough of Redbridge","http://opendatacommunities.org/doc/london-borough-council/redbridge","6BADULTSOCIA","Adult Social Care","6CADLEARNDIS","Adults Under 65 with Learning Disabilities","REV","Revenue","R4240","Argyle Project","05-THIRD","Third Party Payments","05H","Private contractors","6902","Respite Care","90302406","201211",14/02/2012 00:00:00,525,"17020","Charities and Voluntary Organisations","REDACTED DATA","REDBRIDGE COMMUNITY HOUSING LIMITED (RCHL)","",,""
"London Borough of Redbridge","http://opendatacommunities.org/doc/london-borough-council/redbridge","6BADULTSOCIA","Adult Social Care","6CADLEARNDIS","Adults Under 65 with Learning Disabilities","REV","Revenue","R4383","LD - External Day Care","05-THIRD","Third Party Payments","05H","Private contractors","6904","Day Centres","90301695","201211",31/01/2012 00:00:00,-56.27,"17020","Charities and Voluntary Organisations","REDACTED DATA","ELHAP","",,""
"London Borough of Redbridge","http://opendatacommunities.org/doc/london-borough-council/redbridge","6BADULTSOCIA","Adult Social Care","6CADLEARNDIS","Adults Under 65 with Learning Disabilities","REV","Revenue","R4383","LD - External Day Care","05-THIRD","Third Party Payments","05H","Private contractors","6904","Day Centres","90302573","201211",31/01/2012 00:00:00,2165.57,"24200","Day Centres","REDACTED DATA","OVERZEST LIMITED(OVERZEST COMMUNITY SERVICES)","6153313","http://opencorporates.com/companies/gb/6153313",""
"London Borough of Redbridge","http://opendatacommunities.org/doc/london-borough-council/redbridge","6BADULTSOCIA","Adult Social Care","6COTHADSERV","Other Adult Services","REV","Revenue","R4389","PCT Older Person Home Care","05-THIRD","Third Party Payments","05A","Independent units within the council","6502","Agency Homecare (Payments To Independent Units)","90304693","201211",24/02/2012 00:00:00,90.64,"53350","Nursing Homes","REDACTED DATA","ELEANOR NURSING & SOCIALCARE LTD","4393038","http://opencorporates.com/companies/gb/4393038",""
"London Borough of Redbridge","http://opendatacommunities.org/doc/london-borough-council/redbridge","6BADULTSOCIA","Adult Social Care","6COTHADSERV","Other Adult Services","REV","Revenue","R4389","PCT Older Person Home Care","05-THIRD","Third Party Payments","05A","Independent units within the council","6502","Agency Homecare (Payments To Independent Units)","90299639","201211",08/02/2012 00:00:00,112.12,"17020","Charities and Voluntary Organisations","REDACTED DATA","REDBRIDGE CROSSROADS CAS","2647932","http://opencorporates.com/companies/gb/2647932",""
"London Borough of Redbridge","http://opendatacommunities.org/doc/london-borough-council/redbridge","6BADULTSOCIA","Adult Social Care","6COTHADSERV","Other Adult Services","REV","Revenue","R4389","PCT Older Person Home Care","05-THIRD","Third Party Payments","05A","Independent units within the council","6502","Agency Homecare (Payments To Independent Units)","90304628","201211",21/02/2012 00:00:00,1168.82,"53350","Nursing Homes","REDACTED DATA","ELEANOR NURSING & SOCIALCARE LTD","4393038","http://opencorporates.com/companies/gb/4393038",""
"London Borough of Redbridge","http://opendatacommunities.org/doc/london-borough-council/redbridge","6BSOCIALSERV","Social Services","6CCHILLOOKED","Children Looked After","REV","Revenue","R2122","CLAFH - Corporate Parenting Social Care","06-TRANSFER","Transfer Payments","06B","Social Services Clients","7061","Support Package","60167530","201211",31/01/2012 00:00:00,100,"17780","Children's Homes","REDACTED DATA","KARTIKEYA SOLUTIONS LTD T/A UNIQUE CHILDREN'S HOME","5603295","http://opencorporates.com/companies/gb/5603295","868181685"
"London Borough of Redbridge","http://opendatacommunities.org/doc/london-borough-council/redbridge","6BSOCIALSERV","Social Services","6CCHILLOOKED","Children Looked After","REV","Revenue","R2140","CQ and F - Safeguarding and Care Planning Soc Care","04-SUPPLIES","Supplies And Services","04F","Communications and computing","5858","Phones","70037756","201211",04/02/2012 00:00:00,17.5,"51500","Mobile Phones - Personal Numbers","REDACTED DATA","EVERYTHING EVERYWHERE LTD (CAMBERLEY)","2382161","http://opencorporates.com/companies/gb/2382161","771592016"
"London Borough of Redbridge","http://opendatacommunities.org/doc/london-borough-council/redbridge","3BLEACENTFND","LEA Centrally Held School Funds","3CSUPPORTSEN","Supporting Special Education Needs","REV","Revenue","R3022","Home Tuition","01-EMPLOYEES","Employees","01A","Direct employee expenses","4","Agency Staff - Pay","60167686","201211",07/02/2012 00:00:00,716,"80900","Tuition - Private","REDACTED DATA","TEACH 247","4309594","http://opencorporates.com/companies/gb/4309594",""
"London Borough of Redbridge","http://opendatacommunities.org/doc/london-borough-council/redbridge","3BLEACENTFND","LEA Centrally Held School Funds","3CSUPPORTSEN","Supporting Special Education Needs","REV","Revenue","R3022","Home Tuition","01-EMPLOYEES","Employees","01A","Direct employee expenses","4","Agency Staff - Pay","60169033","201211",14/02/2012 00:00:00,716,"80900","Tuition - Private","REDACTED DATA","TEACH 247","4309594","http://opencorporates.com/companies/gb/4309594",""
"London Borough of Redbridge","http://opendatacommunities.org/doc/london-borough-council/redbridge","3BLEACENTFND","LEA Centrally Held School Funds","3CSUPPORTSEN","Supporting Special Education Needs","REV","Revenue","R3022","Home Tuition","01-EMPLOYEES","Employees","01A","Direct employee expenses","4","Agency Staff - Pay","60168771","201211",15/02/2012 00:00:00,895,"80900","Tuition - Private","REDACTED DATA","TEACH 247","4309594","http://opencorporates.com/companies/gb/4309594",""
"London Borough of Redbridge","http://opendatacommunities.org/doc/london-borough-council/redbridge","6BADULTSOCIA","Adult Social Care","6CADLEARNDIS","Adults Under 65 with Learning Disabilities","REV","Revenue","R4296","Mulberry Lodge","01-EMPLOYEES","Employees","01A","Direct employee expenses","409","Agency Staff Pay","60168589","201211",15/02/2012 00:00:00,433.7,"31230","Employment & Recruitment Agencies","REDACTED DATA","CRASTER RECRUITMENT LTD","7654534","http://opencorporates.com/companies/gb/7654534","119719983"
"London Borough of Redbridge","http://opendatacommunities.org/doc/london-borough-council/redbridge","9BNONBVO","Outside the BVACOP Objective Structure","9CNONBVO","Outside the BVACOP Objective Structure","REV","Revenue","R5132","Repairs and Maintenance - Other","02-PREMISES","Premises","02A","Repairs, alteration and maintenance of buildings","3037","Service Contracts","70037056","201211",30/01/2012 00:00:00,863.47,"61961","Property Maintenance & Repairs","REDACTED DATA","PLANNED MAINTENANCE ENG  LTD","737307","http://opencorporates.com/companies/gb/737307","100636617"
"London Borough of Redbridge","http://opendatacommunities.org/doc/london-borough-council/redbridge","6BADULTSOCIA","Adult Social Care","6COLDINCMENT","Older People (65 or over) incl. Older Mentally Ill","REV","Revenue","R4391","OP Home Care","05-THIRD","Third Party Payments","05A","Independent units within the council","6502","Agency Homecare (Payments To Independent Units)","90305363","201211",23/02/2012 00:00:00,55.63,"43419","Home Care Services","REDACTED DATA","ENARA LTD (ENARA COMMUNITY CARE)","65455420","http://opencorporates.com/companies/gb/65455420",""
"London Borough of Redbridge","http://opendatacommunities.org/doc/london-borough-council/redbridge","4BMANGT&SUPP","Management & Support Services","4CHIGHRDROUT","Highways/Roads (Routine)","REV","Revenue","R7070","Reactive Maintenance","05-THIRD","Third Party Payments","05H","Private contractors","6915","Contractor Payments","3221205","201211",28/02/2012 00:00:00,94.69,"18632","Civil Engineers","REDACTED DATA","KENSON CONTRACTORS BENINGTON LTD","1314691","http://opencorporates.com/companies/gb/1314691","301629589"
"London Borough of Redbridge","http://opendatacommunities.org/doc/london-borough-council/redbridge","9BNONBVO","Outside the BVACOP Objective Structure","9CNONBVO","Outside the BVACOP Objective Structure","REV","Revenue","R7702","Vehicle Workshop","04-SUPPLIES","Supplies And Services","04A","Equipment, furniture and materials","5510","Materials","630593","201211",03/02/2012 00:00:00,39.99,"20390","Commercial Vehicle Servicing, Repairs, Parts and Accessories","REDACTED DATA","STORMONT TRUCK & VAN LTD","4173907","http://opencorporates.com/companies/gb/4173907","770427138"
"London Borough of Redbridge","http://opendatacommunities.org/doc/london-borough-council/redbridge","6BADULTSOCIA","Adult Social Care","6COLDINCMENT","Older People (65 or over) incl. Older Mentally Ill","REV","Revenue","R4211","Older People Direct Payments","06-TRANSFER","Transfer Payments","06B","Social Services Clients","7053","Direct Payments","3218618","201211",13/02/2012 00:00:00,226,"56800","Payroll Services","REDACTED DATA","HUMAN MANAGEMENT ASSISTANCE-CLIENT ACCOUNT","4752026","http://opencorporates.com/companies/gb/4752026","815230071"
"London Borough of Redbridge","http://opendatacommunities.org/doc/london-borough-council/redbridge","6BADULTSOCIA","Adult Social Care","6CADPHYSDIS","Adults Under 65 with Phys Disab or Sensory Impair","REV","Revenue","R4214","PD Direct Payments","06-TRANSFER","Transfer Payments","06B","Social Services Clients","7053","Direct Payments","3218566","201211",13/02/2012 00:00:00,553.72,"56800","Payroll Services","REDACTED DATA","HUMAN MANAGEMENT ASSISTANCE-CLIENT ACCOUNT","4752026","http://opencorporates.com/companies/gb/4752026","815230071"
"London Borough of Redbridge","http://opendatacommunities.org/doc/london-borough-council/redbridge","6BADULTSOCIA","Adult Social Care","6CADPHYSDIS","Adults Under 65 with Phys Disab or Sensory Impair","REV","Revenue","R4214","PD Direct Payments","06-TRANSFER","Transfer Payments","06B","Social Services Clients","7053","Direct Payments","3218425","201211",13/02/2012 00:00:00,2800,"56800","Payroll Services","REDACTED DATA","HUMAN MANAGEMENT ASSISTANCE-CLIENT ACCOUNT","4752026","http://opencorporates.com/companies/gb/4752026","815230071"
"London Borough of Redbridge","http://opendatacommunities.org/doc/london-borough-council/redbridge","4BTRANSPORT","Transport Planning, Policy & Strategy","4CMANGT&SUPP","Management & Support Services","REV","Revenue","R7006","Lighting sched 2 Cartledge","05-THIRD","Third Party Payments","05H","Private contractors","6915","Contractor Payments","3217455","201211",01/02/2012 00:00:00,55.37,"21555","Construction Contractors - General","REDACTED DATA","MAY GURNEY LIMITED","873179","http://opencorporates.com/companies/gb/873179","105540018"
"London Borough of Redbridge","http://opendatacommunities.org/doc/london-borough-council/redbridge","6BADULTSOCIA","Adult Social Care","6CADLEARNDIS","Adults Under 65 with Learning Disabilities","REV","Revenue","R4215","LD Direct Payments","09-INCOME","Income","09C","Customer & Client Receipts","8545","Direct Payments Income","3218563","201211",13/02/2012 00:00:00,-89.24,"90005","Home Care Services DP","REDACTED DATA","REDACTED DATA","",,""
"London Borough of Redbridge","http://opendatacommunities.org/doc/london-borough-council/redbridge","6BADULTSOCIA","Adult Social Care","6CADLEARNDIS","Adults Under 65 with Learning Disabilities","REV","Revenue","R4215","LD Direct Payments","06-TRANSFER","Transfer Payments","06B","Social Services Clients","7053","Direct Payments","3218679","201211",13/02/2012 00:00:00,1112.32,"90005","Home Care Services DP","REDACTED DATA","REDACTED DATA","",,""
"London Borough of Redbridge","http://opendatacommunities.org/doc/london-borough-council/redbridge","1BOTHEROPI&E","Other Operating Income & Expenditure","1CTRADSURDEF","Trading Account Surpluses & Deficits","REV","Revenue","R9579","Predisposal Management","02-PREMISES","Premises","02A","Repairs, alteration and maintenance of buildings","3026","Minor Maintenance","60168678","201211",17/02/2012 00:00:00,1220,"32695","Estate Agents and Property Buyers","REDACTED DATA","SPENCER CRAIG PARTNERSHIP","5500269","http://opencorporates.com/companies/gb/5500269",""
"London Borough of Redbridge","http://opendatacommunities.org/doc/london-borough-council/redbridge","7BCDC","Corporate & Democratic Core","7CCORPMGT","Corporate Management","REV","Revenue","R9827","Pub Rels and Infn","04-SUPPLIES","Supplies And Services","04D","Printing, stationery and general office expenses","5708","Advertising Publicity and Promotions","60167385","201211",31/01/2012 00:00:00,512.84,"61055","Press Cutting Bureaux","REDACTED DATA","DURRANTS LTD","4143296","http://opencorporates.com/companies/gb/4143296","757158012"
"London Borough of Redbridge","http://opendatacommunities.org/doc/london-borough-council/redbridge","6BADULTSOCIA","Adult Social Care","6CADLEARNDIS","Adults Under 65 with Learning Disabilities","REV","Revenue","R4215","LD Direct Payments","06-TRANSFER","Transfer Payments","06B","Social Services Clients","7053","Direct Payments","3218589","201211",13/02/2012 00:00:00,-2712,"90005","Home Care Services DP","REDACTED DATA","REDACTED DATA","",,""
"London Borough of Redbridge","http://opendatacommunities.org/doc/london-borough-council/redbridge","6BADULTSOCIA","Adult Social Care","6CADLEARNDIS","Adults Under 65 with Learning Disabilities","REV","Revenue","R4215","LD Direct Payments","09-INCOME","Income","09C","Customer & Client Receipts","8545","Direct Payments Income","3218450","201211",13/02/2012 00:00:00,-100.84,"90005","Home Care Services DP","REDACTED DATA","REDACTED DATA","",,""
"London Borough of Redbridge","http://opendatacommunities.org/doc/london-borough-council/redbridge","6BADULTSOCIA","Adult Social Care","6COTHADSERV","Other Adult Services","REV","Revenue","R4390","PCT HIV Home Care","05-THIRD","Third Party Payments","05A","Independent units within the council","6502","Agency Homecare (Payments To Independent Units)","90298783","201211",07/02/2012 00:00:00,0,"31230","Employment & Recruitment Agencies","REDACTED DATA","TAYLOR GORDON & CO LTD T/AS PLAN PERSONNEL & PLAN CARE","",,"190680845"
"London Borough of Redbridge","http://opendatacommunities.org/doc/london-borough-council/redbridge","1BOTHEROPI&E","Other Operating Income & Expenditure","1CTRADSURDEF","Trading Account Surpluses & Deficits","REV","Revenue","R9831","Design Team","04-SUPPLIES","Supplies And Services","04H","Grants and subscriptions","5955","Fees","60166387","201211",20/01/2012 00:00:00,998,"61540","Printers","REDACTED DATA","REDLIN PRINT LTD","1389113","http://opencorporates.com/companies/gb/1389113",""
"London Borough of Redbridge","http://opendatacommunities.org/doc/london-borough-council/redbridge","6BADULTSOCIA","Adult Social Care","6CADMENHLTH","Adults Under 65 with Mental Health Needs","REV","Revenue","R4213","MH Direct Payments","09-INCOME","Income","09C","Customer & Client Receipts","8545","Direct Payments Income","3218864","201211",13/02/2012 00:00:00,-90.4,"56800","Payroll Services","REDACTED DATA","HUMAN MANAGEMENT ASSISTANCE-CLIENT ACCOUNT","4752026","http://opencorporates.com/companies/gb/4752026","815230071"
"London Borough of Redbridge","http://opendatacommunities.org/doc/london-borough-council/redbridge","6BADULTSOCIA","Adult Social Care","6CADMENHLTH","Adults Under 65 with Mental Health Needs","REV","Revenue","R4213","MH Direct Payments","06-TRANSFER","Transfer Payments","06B","Social Services Clients","7053","Direct Payments","3218619","201211",13/02/2012 00:00:00,90.4,"56800","Payroll Services","REDACTED DATA","HUMAN MANAGEMENT ASSISTANCE-CLIENT ACCOUNT","4752026","http://opencorporates.com/companies/gb/4752026","815230071"
"London Borough of Redbridge","http://opendatacommunities.org/doc/london-borough-council/redbridge","6BADULTSOCIA","Adult Social Care","6COLDINCMENT","Older People (65 or over) incl. Older Mentally Ill","REV","Revenue","R4391","OP Home Care","05-THIRD","Third Party Payments","05A","Independent units within the council","6502","Agency Homecare (Payments To Independent Units)","90305132","201211",14/02/2012 00:00:00,62.5,"43419","Home Care Services","REDACTED DATA","ENARA LTD (ENARA COMMUNITY CARE)","65455420","http://opencorporates.com/companies/gb/65455420",""
"London Borough of Redbridge","http://opendatacommunities.org/doc/london-borough-council/redbridge","9BNONBVO","Outside the BVACOP Objective Structure","9CNONBVO","Outside the BVACOP Objective Structure","REV","Revenue","R7751","Catering Service","04-SUPPLIES","Supplies And Services","04B","Catering","5601","Catering Provisions (Food & Drink)","60167522","201211",06/02/2012 00:00:00,161.24,"16250","Catering Food and Drink Suppliers","REDACTED DATA","BRAKE BROS FOODSERVICE LTD","",,""
"London Borough of Redbridge","http://opendatacommunities.org/doc/london-borough-council/redbridge","9BNONBVO","Outside the BVACOP Objective Structure","9CNONBVO","Outside the BVACOP Objective Structure","REV","Revenue","R7751","Catering Service","04-SUPPLIES","Supplies And Services","04B","Catering","5601","Catering Provisions (Food & Drink)","60167523","201211",02/02/2012 00:00:00,391.65,"16250","Catering Food and Drink Suppliers","REDACTED DATA","BRAKE BROS FOODSERVICE LTD","",,""
"London Borough of Redbridge","http://opendatacommunities.org/doc/london-borough-council/redbridge","1BOTHEROPI&E","Other Operating Income & Expenditure","1CTRADSURDEF","Trading Account Surpluses & Deficits","REV","Revenue","R9831","Design Team","04-SUPPLIES","Supplies And Services","04D","Printing, stationery and general office expenses","5710","Stationery","3221518","201211",15/02/2012 00:00:00,22.22,"53770","Office Stationery Supplies","REDACTED DATA","OFFICE DEPOT UK LTD (EX-GUILBERT UK)","2654682","http://opencorporates.com/companies/gb/2654682","673478594"
"London Borough of Redbridge","http://opendatacommunities.org/doc/london-borough-council/redbridge","6BADULTSOCIA","Adult Social Care","6CADPHYSDIS","Adults Under 65 with Phys Disab or Sensory Impair","REV","Revenue","R4214","PD Direct Payments","06-TRANSFER","Transfer Payments","06B","Social Services Clients","7053","Direct Payments","3218511","201211",13/02/2012 00:00:00,-839.45,"56800","Payroll Services","REDACTED DATA","HUMAN MANAGEMENT ASSISTANCE-CLIENT ACCOUNT","4752026","http://opencorporates.com/companies/gb/4752026","815230071"
"London Borough of Redbridge","http://opendatacommunities.org/doc/london-borough-council/redbridge","6BADULTSOCIA","Adult Social Care","6CADPHYSDIS","Adults Under 65 with Phys Disab or Sensory Impair","REV","Revenue","R4214","PD Direct Payments","09-INCOME","Income","09C","Customer & Client Receipts","8545","Direct Payments Income","3218373","201211",13/02/2012 00:00:00,-81.08,"56800","Payroll Services","REDACTED DATA","HUMAN MANAGEMENT ASSISTANCE-CLIENT ACCOUNT","4752026","http://opencorporates.com/companies/gb/4752026","815230071"
"London Borough of Redbridge","http://opendatacommunities.org/doc/london-borough-council/redbridge","3BLEACENTFND","LEA Centrally Held School Funds","3CSUPPORTSEN","Supporting Special Education Needs","REV","Revenue","R3022","Home Tuition","01-EMPLOYEES","Employees","01A","Direct employee expenses","4","Agency Staff - Pay","60167683","201211",02/02/2012 00:00:00,439.5,"31230","Employment & Recruitment Agencies","REDACTED DATA","OFFICE ANGELS","1985032","http://opencorporates.com/companies/gb/1985032","524020109"
"London Borough of Redbridge","http://opendatacommunities.org/doc/london-borough-council/redbridge","1BOTHEROPI&E","Other Operating Income & Expenditure","1CTRADSURDEF","Trading Account Surpluses & Deficits","REV","Revenue","R9605","497-499 Ley Street","04-SUPPLIES","Supplies And Services","04D","Printing, stationery and general office expenses","5710","Stationery","3221518","201211",24/02/2012 00:00:00,9.5,"53770","Office Stationery Supplies","REDACTED DATA","OFFICE DEPOT UK LTD (EX-GUILBERT UK)","2654682","http://opencorporates.com/companies/gb/2654682","673478594"
"London Borough of Redbridge","http://opendatacommunities.org/doc/london-borough-council/redbridge","6BSOCIALSERV","Social Services","6CCHILLOOKED","Children Looked After","REV","Revenue","R2132","CLAFH - Asylum Seekers Non Grant Funded","06-TRANSFER","Transfer Payments","06B","Social Services Clients","7061","Support Package","3217790","201211",16/01/2012 00:00:00,30,"43419","Home Care Services","REDACTED DATA","LCS PARTNERSHIPS LTD (LONDON CARE SOLUTIONS)","6820538","http://opencorporates.com/companies/gb/6820538","975528279"
"London Borough of Redbridge","http://opendatacommunities.org/doc/london-borough-council/redbridge","6BADULTSOCIA","Adult Social Care","6COLDINCMENT","Older People (65 or over) incl. Older Mentally Ill","REV","Revenue","R4211","Older People Direct Payments","09-INCOME","Income","09C","Customer & Client Receipts","8545","Direct Payments Income","3218909","201211",13/02/2012 00:00:00,-474.6,"56800","Payroll Services","REDACTED DATA","HUMAN MANAGEMENT ASSISTANCE-CLIENT ACCOUNT","4752026","http://opencorporates.com/companies/gb/4752026","815230071"
"London Borough of Redbridge","http://opendatacommunities.org/doc/london-borough-council/redbridge","6BADULTSOCIA","Adult Social Care","6COLDINCMENT","Older People (65 or over) incl. Older Mentally Ill","REV","Revenue","R4211","Older People Direct Payments","06-TRANSFER","Transfer Payments","06B","Social Services Clients","7053","Direct Payments","3218593","201211",13/02/2012 00:00:00,395.52,"56800","Payroll Services","REDACTED DATA","HUMAN MANAGEMENT ASSISTANCE-CLIENT ACCOUNT","4752026","http://opencorporates.com/companies/gb/4752026","815230071"
"London Borough of Redbridge","http://opendatacommunities.org/doc/london-borough-council/redbridge","4BMANGT&SUPP","Management & Support Services","4CHIGHRDROUT","Highways/Roads (Routine)","REV","Revenue","R7070","Reactive Maintenance","05-THIRD","Third Party Payments","05H","Private contractors","6915","Contractor Payments","3219535","201211",08/02/2012 00:00:00,266.68,"18632","Civil Engineers","REDACTED DATA","KENSON CONTRACTORS BENINGTON LTD","1314691","http://opencorporates.com/companies/gb/1314691","301629589"
"London Borough of Redbridge","http://opendatacommunities.org/doc/london-borough-council/redbridge","6BADULTSOCIA","Adult Social Care","6COLDINCMENT","Older People (65 or over) incl. Older Mentally Ill","REV","Revenue","R4391","OP Home Care","05-THIRD","Third Party Payments","05A","Independent units within the council","6502","Agency Homecare (Payments To Independent Units)","90298083","201211",10/02/2012 00:00:00,158.06,"43419","Home Care Services","REDACTED DATA","ALLIED HEALTHCARE GROUP LTD","1689856","http://opencorporates.com/companies/gb/1689856","813058355"
"London Borough of Redbridge","http://opendatacommunities.org/doc/london-borough-council/redbridge","6BADULTSOCIA","Adult Social Care","6CADMENHLTH","Adults Under 65 with Mental Health Needs","REV","Revenue","R4163","Extra Care","01-EMPLOYEES","Employees","01B","Indirect employee expenses","2405","Professional Subscriptions","60167514","201211",11/01/2012 00:00:00,52.5,"79500","Trade Assoc & Regulatory Bodies","REDACTED DATA","CARE QUALITY COMMISSION","",,""
"London Borough of Redbridge","http://opendatacommunities.org/doc/london-borough-council/redbridge","6BADULTSOCIA","Adult Social Care","6CADMENHLTH","Adults Under 65 with Mental Health Needs","REV","Revenue","R4058","Carers Elderly Mentally ill Direct Payments","06-TRANSFER","Transfer Payments","06B","Social Services Clients","7053","Direct Payments","3218901","201211",13/02/2012 00:00:00,271.2,"56800","Payroll Services","REDACTED DATA","HUMAN MANAGEMENT ASSISTANCE-CLIENT ACCOUNT","4752026","http://opencorporates.com/companies/gb/4752026","815230071"
"London Borough of Redbridge","http://opendatacommunities.org/doc/london-borough-council/redbridge","6BADULTSOCIA","Adult Social Care","6COLDINCMENT","Older People (65 or over) incl. Older Mentally Ill","REV","Revenue","R4211","Older People Direct Payments","09-INCOME","Income","09C","Customer & Client Receipts","8545","Direct Payments Income","3218370","201211",13/02/2012 00:00:00,-1400,"56800","Payroll Services","REDACTED DATA","HUMAN MANAGEMENT ASSISTANCE-CLIENT ACCOUNT","4752026","http://opencorporates.com/companies/gb/4752026","815230071"
"London Borough of Redbridge","http://opendatacommunities.org/doc/london-borough-council/redbridge","6BADULTSOCIA","Adult Social Care","6COLDINCMENT","Older People (65 or over) incl. Older Mentally Ill","REV","Revenue","R4211","Older People Direct Payments","09-INCOME","Income","09C","Customer & Client Receipts","8545","Direct Payments Income","3218480","201211",13/02/2012 00:00:00,-186.12,"56800","Payroll Services","REDACTED DATA","HUMAN MANAGEMENT ASSISTANCE-CLIENT ACCOUNT","4752026","http://opencorporates.com/companies/gb/4752026","815230071"
"London Borough of Redbridge","http://opendatacommunities.org/doc/london-borough-council/redbridge","6BADULTSOCIA","Adult Social Care","6COLDINCMENT","Older People (65 or over) incl. Older Mentally Ill","REV","Revenue","R4211","Older People Direct Payments","06-TRANSFER","Transfer Payments","06B","Social Services Clients","7053","Direct Payments","3218735","201211",13/02/2012 00:00:00,836.2,"56800","Payroll Services","REDACTED DATA","HUMAN MANAGEMENT ASSISTANCE-CLIENT ACCOUNT","4752026","http://opencorporates.com/companies/gb/4752026","815230071"
"London Borough of Redbridge","http://opendatacommunities.org/doc/london-borough-council/redbridge","3BOPTIONHLDG","Optional Holding Accounts","3CYOUTH","Youth Service","REV","Revenue","R3367","Targeted Prevention (Core)","01-EMPLOYEES","Employees","01B","Indirect employee expenses","2403","External Training","60167531","201211",08/02/2012 00:00:00,450,"79980","Training Services","REDACTED DATA","WARDELL ASSOCIATES","",,"932392032"
"London Borough of Redbridge","http://opendatacommunities.org/doc/london-borough-council/redbridge","9BNONBVO","Outside the BVACOP Objective Structure","9CNONBVO","Outside the BVACOP Objective Structure","REV","Revenue","R7702","Vehicle Workshop","04-SUPPLIES","Supplies And Services","04A","Equipment, furniture and materials","5510","Materials","630550","201211",25/01/2012 00:00:00,0.24,"2600","Agricultural Machinery - Sales and Service","REDACTED DATA","P TUCKWELL LIMITED","",,""
"London Borough of Redbridge","http://opendatacommunities.org/doc/london-borough-council/redbridge","3BNONSCHFUND","Non-School Funding","3CNONSCH","Non Schools","REV","Revenue","R3951","Aldersbrook After School Club","04-SUPPLIES","Supplies And Services","04D","Printing, stationery and general office expenses","5710","Stationery","60168990","201211",24/02/2012 00:00:00,28.99,"57614","Photocopiers","REDACTED DATA","CANON UK LTD","1264300","http://opencorporates.com/companies/gb/1264300","523797128"
"London Borough of Redbridge","http://opendatacommunities.org/doc/london-borough-council/redbridge","6BADULTSOCIA","Adult Social Care","6CADMENHLTH","Adults Under 65 with Mental Health Needs","REV","Revenue","R4015","MH Home Care","05-THIRD","Third Party Payments","05A","Independent units within the council","6502","Agency Homecare (Payments To Independent Units)","90300989","201211",31/01/2012 00:00:00,43.75,"53350","Nursing Homes","REDACTED DATA","ELEANOR NURSING & SOCIALCARE LTD","4393038","http://opencorporates.com/companies/gb/4393038",""
"London Borough of Redbridge","http://opendatacommunities.org/doc/london-borough-council/redbridge","3BOPTIONHLDG","Optional Holding Accounts","3CYOUTH","Youth Service","REV","Revenue","R3368","Projects (CSC/YiP)","04-SUPPLIES","Supplies And Services","04F","Communications and computing","5858","Phones","70036782","201211",22/01/2012 00:00:00,51.07,"76510","Telecommunication Services","REDACTED DATA","BRITISH TELECOM (DURHAM)","",,"245719348"
"London Borough of Redbridge","http://opendatacommunities.org/doc/london-borough-council/redbridge","1BOTHEROPI&E","Other Operating Income & Expenditure","1CTRADSURDEF","Trading Account Surpluses & Deficits","REV","Revenue","R9600","Town Hall","04-SUPPLIES","Supplies And Services","04A","Equipment, furniture and materials","5502","Equipment Purchase","60167636","201211",02/02/2012 00:00:00,55,"30570","Electrical Wholesalers","REDACTED DATA","BEW BALHAM ELECTRICAL WHOLESALERS LTD.(BEW)","1073444","http://opencorporates.com/companies/gb/1073444","372665824"
"London Borough of Redbridge","http://opendatacommunities.org/doc/london-borough-council/redbridge","3BNONSCHFUND","Non-School Funding","3CNONSCH","Non Schools","REV","Revenue","R3953","2 Year Old Funding","05-THIRD","Third Party Payments","05H","Private contractors","6908","Private Nurseries & Childminders","60168098","201211",06/02/2012 00:00:00,144,"59760","Playgroups, Nurseries and Creches","REDACTED DATA","ST PAUL'S CHRISTIAN PLAYGROUP","",,""
"London Borough of Redbridge","http://opendatacommunities.org/doc/london-borough-council/redbridge","3BNONSCHFUND","Non-School Funding","3CNONSCH","Non Schools","REV","Revenue","R3953","2 Year Old Funding","05-THIRD","Third Party Payments","05H","Private contractors","6908","Private Nurseries & Childminders","60168096","201211",09/02/2012 00:00:00,240,"17020","Charities and Voluntary Organisations","REDACTED DATA","VISION REDBRIDGE CULTURE AND LEISURE","6032714","http://opencorporates.com/companies/gb/6032714","906429031"
"London Borough of Redbridge","http://opendatacommunities.org/doc/london-borough-council/redbridge","3BNONSCHFUND","Non-School Funding","3CNONSCH","Non Schools","REV","Revenue","R3953","2 Year Old Funding","05-THIRD","Third Party Payments","05H","Private contractors","6908","Private Nurseries & Childminders","60168094","201211",09/02/2012 00:00:00,270,"53088","Nurseries & Creches","REDACTED DATA","BARNEY BEARS NURSERY'S LTD","4793063","http://opencorporates.com/companies/gb/4793063",""
"London Borough of Redbridge","http://opendatacommunities.org/doc/london-borough-council/redbridge","3BLEACENTFND","LEA Centrally Held School Funds","3CSCHSTRATMG","Schools Strategic Management","REV","Revenue","R3001","Bldgs and Dev Branch","01-EMPLOYEES","Employees","01A","Direct employee expenses","4","Agency Staff - Pay","3218965","201211",10/02/2012 00:00:00,283.31,"31230","Employment & Recruitment Agencies","REDACTED DATA","ADECCO UK LIMITED","",,"232347975"
"London Borough of Redbridge","http://opendatacommunities.org/doc/london-borough-council/redbridge","3BNONSCHFUND","Non-School Funding","3CNONSCH","Non Schools","REV","Revenue","R3953","2 Year Old Funding","05-THIRD","Third Party Payments","05H","Private contractors","6908","Private Nurseries & Childminders","60168092","201211",31/01/2012 00:00:00,360,"59760","Playgroups, Nurseries and Creches","REDACTED DATA","ST PAULS BUSY BEES PLAYGROUP","",,""
"London Borough of Redbridge","http://opendatacommunities.org/doc/london-borough-council/redbridge","3BNONSCHFUND","Non-School Funding","3CNONSCH","Non Schools","REV","Revenue","R3953","2 Year Old Funding","05-THIRD","Third Party Payments","05H","Private contractors","6908","Private Nurseries & Childminders","60168086","201211",31/01/2012 00:00:00,360,"59760","Playgroups, Nurseries and Creches","REDACTED DATA","ST PAULS BUSY BEES PLAYGROUP","",,""
"London Borough of Redbridge","http://opendatacommunities.org/doc/london-borough-council/redbridge","3BLEACENTFND","LEA Centrally Held School Funds","3CASSURACCES","Assuring Access to Schools","REV","Revenue","R3265","Drama Centre Del","02-PREMISES","Premises","02B","Energy costs","4000","Electricity","60167670","201211",02/02/2012 00:00:00,491.36,"39564","Gas Companies","REDACTED DATA","KENT COUNTY COUNCIL (GAS & ELECTRIC)","",,"204269191"
"London Borough of Redbridge","http://opendatacommunities.org/doc/london-borough-council/redbridge","3BNONSCHFUND","Non-School Funding","3CNONSCH","Non Schools","REV","Revenue","R3953","2 Year Old Funding","05-THIRD","Third Party Payments","05H","Private contractors","6908","Private Nurseries & Childminders","60167243","201211",01/02/2012 00:00:00,540,"59760","Playgroups, Nurseries and Creches","REDACTED DATA","LITTLE RASCALS (ILFORD) LTD","5813376","http://opencorporates.com/companies/gb/5813376",""
"London Borough of Redbridge","http://opendatacommunities.org/doc/london-borough-council/redbridge","3BLEACENTFND","LEA Centrally Held School Funds","3CASSURACCES","Assuring Access to Schools","REV","Revenue","R3265","Drama Centre Del","02-PREMISES","Premises","02B","Energy costs","4000","Electricity","60167669","201211",02/02/2012 00:00:00,616.47,"39564","Gas Companies","REDACTED DATA","KENT COUNTY COUNCIL (GAS & ELECTRIC)","",,"204269191"
"London Borough of Redbridge","http://opendatacommunities.org/doc/london-borough-council/redbridge","1BOTHEROPI&E","Other Operating Income & Expenditure","1CTRADSURDEF","Trading Account Surpluses & Deficits","REV","Revenue","R9578","Misc Properties","04-SUPPLIES","Supplies And Services","04H","Grants and subscriptions","5954","Professional Fees","60168328","201211",15/02/2012 00:00:00,720,"32695","Estate Agents and Property Buyers","REDACTED DATA","SPENCER CRAIG PARTNERSHIP","5500269","http://opencorporates.com/companies/gb/5500269",""
"London Borough of Redbridge","http://opendatacommunities.org/doc/london-borough-council/redbridge","6BSOCIALSERV","Social Services","6CCHILLOOKED","Children Looked After","REV","Revenue","R2117","SEN and CD Care and Support Packages Social Care","06-TRANSFER","Transfer Payments","06B","Social Services Clients","7050","Agency Homecare","3218094","201211",04/02/2012 00:00:00,820.5,"31230","Employment & Recruitment Agencies","REDACTED DATA","SHARED CARE SERVICES LTD","4704680","http://opencorporates.com/companies/gb/4704680",""
"London Borough of Redbridge","http://opendatacommunities.org/doc/london-borough-council/redbridge","6BSOCIALSERV","Social Services","6CCHILLOOKED","Children Looked After","REV","Revenue","R2117","SEN and CD Care and Support Packages Social Care","06-TRANSFER","Transfer Payments","06B","Social Services Clients","7050","Agency Homecare","3220750","201211",24/02/2012 00:00:00,824.75,"31230","Employment & Recruitment Agencies","REDACTED DATA","HOPE SUPER JOBS LTD","",,"872555205"
"London Borough of Redbridge","http://opendatacommunities.org/doc/london-borough-council/redbridge","1BCENTRALPUB","Central Services to the Public","1CTRADSURDEF","Trading Account Surpluses & Deficits","REV","Revenue","R5820","Customer Services Team","01-EMPLOYEES","Employees","01A","Direct employee expenses","4","Agency Staff - Pay","60168408","201211",27/01/2012 00:00:00,1493.88,"69240","Security Services","REDACTED DATA","CHARTER SECURITY","1530957","http://opencorporates.com/companies/gb/1530957","342117968"
"London Borough of Redbridge","http://opendatacommunities.org/doc/london-borough-council/redbridge","9BNONBVO","Outside the BVACOP Objective Structure","9CNONBVO","Outside the BVACOP Objective Structure","CAP","Capital","C1182","Central Libary-Replace termimal reheat and VAV Contri","99-NONBV","Capital, Balance Sheet and Control","50E","Capital - Contract Payments","9150","Main Contract","787091","201211",27/01/2012 00:00:00,13993.5,"94521","Control Panels","REDACTED DATA","A.C.L. ELECTRICAL LTD","",,""
"London Borough of Redbridge","http://opendatacommunities.org/doc/london-borough-council/redbridge","9BNONBVO","Outside the BVACOP Objective Structure","9CNONBVO","Outside the BVACOP Objective Structure","CAP","Capital","C2247","Gants Hill TFL","99-NONBV","Capital, Balance Sheet and Control","50E","Capital - Contract Payments","9150","Main Contract","3220375","201211",22/02/2012 00:00:00,20000,"18632","Civil Engineers","REDACTED DATA","KENSON CONTRACTORS BENINGTON LTD","1314691","http://opencorporates.com/companies/gb/1314691","301629589"
"London Borough of Redbridge","http://opendatacommunities.org/doc/london-borough-council/redbridge","6BADULTSOCIA","Adult Social Care","6CADLEARNDIS","Adults Under 65 with Learning Disabilities","REV","Revenue","R4296","Mulberry Lodge","01-EMPLOYEES","Employees","01A","Direct employee expenses","409","Agency Staff Pay","60169023","201211",22/02/2012 00:00:00,342,"43419","Home Care Services","REDACTED DATA","FASTFLOW DE VERE CARE","",,""
"London Borough of Redbridge","http://opendatacommunities.org/doc/london-borough-council/redbridge","9BNONBVO","Outside the BVACOP Objective Structure","9CNONBVO","Outside the BVACOP Objective Structure","REV","Revenue","R7702","Vehicle Workshop","04-SUPPLIES","Supplies And Services","04A","Equipment, furniture and materials","5510","Materials","630599","201211",03/02/2012 00:00:00,77.4,"20390","Commercial Vehicle Servicing, Repairs, Parts and Accessories","REDACTED DATA","FORD RETAIL UK LTD T/A@FIRST PARTS SOLUTIONSDAGEN","191595","http://opencorporates.com/companies/gb/191595","833053650"
"London Borough of Redbridge","http://opendatacommunities.org/doc/london-borough-council/redbridge","9BNONBVO","Outside the BVACOP Objective Structure","9CNONBVO","Outside the BVACOP Objective Structure","REV","Revenue","R7702","Vehicle Workshop","04-SUPPLIES","Supplies And Services","04A","Equipment, furniture and materials","5510","Materials","630762","201211",08/02/2012 00:00:00,441.15,"20390","Commercial Vehicle Servicing, Repairs, Parts and Accessories","REDACTED DATA","S & B  COMMERCIALS PLC","1635078","http://opencorporates.com/companies/gb/1635078",""
"London Borough of Redbridge","http://opendatacommunities.org/doc/london-borough-council/redbridge","3BNONSCHFUND","Non-School Funding","3CNONSCH","Non Schools","REV","Revenue","R3931","Wanstead CC","04-SUPPLIES","Supplies And Services","04A","Equipment, furniture and materials","5502","Equipment Purchase","60167167","201211",27/01/2012 00:00:00,111.95,"29340","Educational Equipment & Supplies","REDACTED DATA","FINDEL EDUCATION LTD","1135827","http://opencorporates.com/companies/gb/1135827","125688644"
"London Borough of Redbridge","http://opendatacommunities.org/doc/london-borough-council/redbridge","6BADULTSOCIA","Adult Social Care","6CADLEARNDIS","Adults Under 65 with Learning Disabilities","REV","Revenue","R4298","Mildmay Centre","01-EMPLOYEES","Employees","01A","Direct employee expenses","409","Agency Staff Pay","60167902","201211",08/02/2012 00:00:00,379.5,"31230","Employment & Recruitment Agencies","REDACTED DATA","CRASTER RECRUITMENT LTD","7654534","http://opencorporates.com/companies/gb/7654534","119719983"
"London Borough of Redbridge","http://opendatacommunities.org/doc/london-borough-council/redbridge","6BADULTSOCIA","Adult Social Care","6CADLEARNDIS","Adults Under 65 with Learning Disabilities","REV","Revenue","R4297","Out There Project","01-EMPLOYEES","Employees","01A","Direct employee expenses","4","Agency Staff - Pay","60168779","201211",22/02/2012 00:00:00,477.75,"31230","Employment & Recruitment Agencies","REDACTED DATA","CRASTER RECRUITMENT LTD","7654534","http://opencorporates.com/companies/gb/7654534","119719983"
"London Borough of Redbridge","http://opendatacommunities.org/doc/london-borough-council/redbridge","6BADULTSOCIA","Adult Social Care","6CADPHYSDIS","Adults Under 65 with Phys Disab or Sensory Impair","REV","Revenue","R4393","PD Home Care","05-THIRD","Third Party Payments","05A","Independent units within the council","6502","Agency Homecare (Payments To Independent Units)","90298431","201211",05/01/2012 00:00:00,-77.48,"31230","Employment & Recruitment Agencies","REDACTED DATA","TAYLOR GORDON & CO LTD T/AS PLAN PERSONNEL & PLAN CARE","",,"190680845"
"London Borough of Redbridge","http://opendatacommunities.org/doc/london-borough-council/redbridge","6BADULTSOCIA","Adult Social Care","6CADPHYSDIS","Adults Under 65 with Phys Disab or Sensory Impair","REV","Revenue","R4393","PD Home Care","05-THIRD","Third Party Payments","05A","Independent units within the council","6502","Agency Homecare (Payments To Independent Units)","90299307","201211",10/02/2012 00:00:00,12.76,"43419","Home Care Services","REDACTED DATA","FASTFLOW DE VERE CARE","",,""
"London Borough of Redbridge","http://opendatacommunities.org/doc/london-borough-council/redbridge","6BADULTSOCIA","Adult Social Care","6CADPHYSDIS","Adults Under 65 with Phys Disab or Sensory Impair","REV","Revenue","R4393","PD Home Care","05-THIRD","Third Party Payments","05A","Independent units within the council","6502","Agency Homecare (Payments To Independent Units)","90304381","201211",10/02/2012 00:00:00,112.74,"31230","Employment & Recruitment Agencies","REDACTED DATA","RANDSTAD CARE  LTD","2462482","http://opencorporates.com/companies/gb/2462482","523365558"
"London Borough of Redbridge","http://opendatacommunities.org/doc/london-borough-council/redbridge","6BADULTSOCIA","Adult Social Care","6CADPHYSDIS","Adults Under 65 with Phys Disab or Sensory Impair","REV","Revenue","R4393","PD Home Care","05-THIRD","Third Party Payments","05A","Independent units within the council","6502","Agency Homecare (Payments To Independent Units)","90298910","201211",13/02/2012 00:00:00,135.59,"31230","Employment & Recruitment Agencies","REDACTED DATA","TAYLOR GORDON & CO LTD T/AS PLAN PERSONNEL & PLAN CARE","",,"190680845"
"London Borough of Redbridge","http://opendatacommunities.org/doc/london-borough-council/redbridge","6BADULTSOCIA","Adult Social Care","6CADPHYSDIS","Adults Under 65 with Phys Disab or Sensory Impair","REV","Revenue","R4393","PD Home Care","05-THIRD","Third Party Payments","05A","Independent units within the council","6502","Agency Homecare (Payments To Independent Units)","90303382","201211",23/02/2012 00:00:00,135.59,"31230","Employment & Recruitment Agencies","REDACTED DATA","TAYLOR GORDON & CO LTD T/AS PLAN PERSONNEL & PLAN CARE","",,"190680845"
"London Borough of Redbridge","http://opendatacommunities.org/doc/london-borough-council/redbridge","6BADULTSOCIA","Adult Social Care","6CADPHYSDIS","Adults Under 65 with Phys Disab or Sensory Impair","REV","Revenue","R4393","PD Home Care","05-THIRD","Third Party Payments","05A","Independent units within the council","6502","Agency Homecare (Payments To Independent Units)","90299570","201211",10/02/2012 00:00:00,142.44,"43419","Home Care Services","REDACTED DATA","FASTFLOW DE VERE CARE","",,""
"London Borough of Redbridge","http://opendatacommunities.org/doc/london-borough-council/redbridge","6BADULTSOCIA","Adult Social Care","6CADLEARNDIS","Adults Under 65 with Learning Disabilities","REV","Revenue","R4215","LD Direct Payments","06-TRANSFER","Transfer Payments","06B","Social Services Clients","7053","Direct Payments","3218845","201211",13/02/2012 00:00:00,99,"90005","Home Care Services DP","REDACTED DATA","REDACTED DATA","",,""
"London Borough of Redbridge","http://opendatacommunities.org/doc/london-borough-council/redbridge","6BADULTSOCIA","Adult Social Care","6CADLEARNDIS","Adults Under 65 with Learning Disabilities","REV","Revenue","R4215","LD Direct Payments","06-TRANSFER","Transfer Payments","06B","Social Services Clients","7053","Direct Payments","3218432","201211",13/02/2012 00:00:00,723.2,"90005","Home Care Services DP","REDACTED DATA","REDACTED DATA","",,""
"London Borough of Redbridge","http://opendatacommunities.org/doc/london-borough-council/redbridge","6BADULTSOCIA","Adult Social Care","6CADPHYSDIS","Adults Under 65 with Phys Disab or Sensory Impair","REV","Revenue","R4214","PD Direct Payments","06-TRANSFER","Transfer Payments","06B","Social Services Clients","7053","Direct Payments","3218431","201211",13/02/2012 00:00:00,971.8,"56800","Payroll Services","REDACTED DATA","HUMAN MANAGEMENT ASSISTANCE-CLIENT ACCOUNT","4752026","http://opencorporates.com/companies/gb/4752026","815230071"
"London Borough of Redbridge","http://opendatacommunities.org/doc/london-borough-council/redbridge","6BADULTSOCIA","Adult Social Care","6CADLEARNDIS","Adults Under 65 with Learning Disabilities","REV","Revenue","R4215","LD Direct Payments","06-TRANSFER","Transfer Payments","06B","Social Services Clients","7053","Direct Payments","3218797","201211",13/02/2012 00:00:00,2960.48,"56800","Payroll Services","REDACTED DATA","HUMAN MANAGEMENT ASSISTANCE-CLIENT ACCOUNT","4752026","http://opencorporates.com/companies/gb/4752026","815230071"
"London Borough of Redbridge","http://opendatacommunities.org/doc/london-borough-council/redbridge","6BSOCIALSERV","Social Services","6CCHILLOOKED","Children Looked After","REV","Revenue","R2113","SEN and CD - Section 5 and 6 Care Packages","05-THIRD","Third Party Payments","05A","Independent units within the council","6502","Agency Homecare (Payments To Independent Units)","3217972","201211",18/01/2012 00:00:00,181.2,"31230","Employment & Recruitment Agencies","REDACTED DATA","HOPE SUPER JOBS LTD","",,"872555205"
"London Borough of Redbridge","http://opendatacommunities.org/doc/london-borough-council/redbridge","6BADULTSOCIA","Adult Social Care","6COLDINCMENT","Older People (65 or over) incl. Older Mentally Ill","REV","Revenue","R4378","OP Residential","09-INCOME","Income","09C","Customer & Client Receipts","8555","Accommodation Charges","90301904","201211",01/02/2012 00:00:00,-58.8,"64710","Residential Care Homes","REDACTED DATA","CUNNINGHAM HOUSE (ABBEYFIELD EPPING SOCIETY)","",,""
"London Borough of Redbridge","http://opendatacommunities.org/doc/london-borough-council/redbridge","6BADULTSOCIA","Adult Social Care","6COLDINCMENT","Older People (65 or over) incl. Older Mentally Ill","REV","Revenue","R4378","OP Residential","05-THIRD","Third Party Payments","05F","Voluntary associations","6802","Residential Homes","90301914","201211",01/02/2012 00:00:00,1951.32,"64710","Residential Care Homes","REDACTED DATA","ST MICHAELS HOMES LTD","",,""
"London Borough of Redbridge","http://opendatacommunities.org/doc/london-borough-council/redbridge","6BADULTSOCIA","Adult Social Care","6COLDINCMENT","Older People (65 or over) incl. Older Mentally Ill","REV","Revenue","R4378","OP Residential","05-THIRD","Third Party Payments","05F","Voluntary associations","6802","Residential Homes","90302360","201211",07/02/2012 00:00:00,2361.67,"53350","Nursing Homes","REDACTED DATA","JEWISH CARE (MERIT  HOUSE)","2447900","http://opencorporates.com/companies/gb/2447900","587033133"
"London Borough of Redbridge","http://opendatacommunities.org/doc/london-borough-council/redbridge","4BMANGT&SUPP","Management & Support Services","4CHIGHRDROUT","Highways/Roads (Routine)","REV","Revenue","R7070","Reactive Maintenance","05-THIRD","Third Party Payments","05H","Private contractors","6915","Contractor Payments","3220919","201211",28/02/2012 00:00:00,9.91,"18632","Civil Engineers","REDACTED DATA","KENSON CONTRACTORS BENINGTON LTD","1314691","http://opencorporates.com/companies/gb/1314691","301629589"
"London Borough of Redbridge","http://opendatacommunities.org/doc/london-borough-council/redbridge","4BMANGT&SUPP","Management & Support Services","4CHIGHRDROUT","Highways/Roads (Routine)","REV","Revenue","R7070","Reactive Maintenance","05-THIRD","Third Party Payments","05H","Private contractors","6915","Contractor Payments","3219646","201211",08/02/2012 00:00:00,85.52,"18632","Civil Engineers","REDACTED DATA","KENSON CONTRACTORS BENINGTON LTD","1314691","http://opencorporates.com/companies/gb/1314691","301629589"
"London Borough of Redbridge","http://opendatacommunities.org/doc/london-borough-council/redbridge","6BADULTSOCIA","Adult Social Care","6COLDINCMENT","Older People (65 or over) incl. Older Mentally Ill","REV","Revenue","R4364","CCAC - Building","04-SUPPLIES","Supplies And Services","04A","Equipment, furniture and materials","5502","Equipment Purchase","60166911","201211",27/01/2012 00:00:00,59.95,"76520","Telecommunications Equipment & Systems","REDACTED DATA","FONELINE","",,"367725616"
"London Borough of Redbridge","http://opendatacommunities.org/doc/london-borough-council/redbridge","6BADULTSOCIA","Adult Social Care","6COLDINCMENT","Older People (65 or over) incl. Older Mentally Ill","REV","Revenue","R4211","Older People Direct Payments","09-INCOME","Income","09C","Customer & Client Receipts","8545","Direct Payments Income","3218793","201211",13/02/2012 00:00:00,-632.8,"56800","Payroll Services","REDACTED DATA","HUMAN MANAGEMENT ASSISTANCE-CLIENT ACCOUNT","4752026","http://opencorporates.com/companies/gb/4752026","815230071"
"London Borough of Redbridge","http://opendatacommunities.org/doc/london-borough-council/redbridge","6BADULTSOCIA","Adult Social Care","6COLDINCMENT","Older People (65 or over) incl. Older Mentally Ill","REV","Revenue","R4211","Older People Direct Payments","06-TRANSFER","Transfer Payments","06B","Social Services Clients","7053","Direct Payments","3218793","201211",13/02/2012 00:00:00,632.8,"56800","Payroll Services","REDACTED DATA","HUMAN MANAGEMENT ASSISTANCE-CLIENT ACCOUNT","4752026","http://opencorporates.com/companies/gb/4752026","815230071"
"London Borough of Redbridge","http://opendatacommunities.org/doc/london-borough-council/redbridge","6BADULTSOCIA","Adult Social Care","6CADLEARNDIS","Adults Under 65 with Learning Disabilities","REV","Revenue","R4218","LD Individual Budgets","06-TRANSFER","Transfer Payments","06B","Social Services Clients","7053","Direct Payments","90301713","201211",31/01/2012 00:00:00,1209,"24200","Day Centres","REDACTED DATA","INCLUSIVE COMMUNITIES LTD","6642491","http://opencorporates.com/companies/gb/6642491",""
"London Borough of Redbridge","http://opendatacommunities.org/doc/london-borough-council/redbridge","6BSOCIALSERV","Social Services","6CCHILLOOKED","Children Looked After","REV","Revenue","R2117","SEN and CD Care and Support Packages Social Care","06-TRANSFER","Transfer Payments","06B","Social Services Clients","7050","Agency Homecare","3220293","201211",10/02/2012 00:00:00,1273.5,"43419","Home Care Services","REDACTED DATA","FASTFLOW DE VERE CARE","",,""
"London Borough of Redbridge","http://opendatacommunities.org/doc/london-borough-council/redbridge","6BSOCIALSERV","Social Services","6CCHILLOOKED","Children Looked After","REV","Revenue","R2171","Ray Lodge (W) - Integrated Team Social Care","06-TRANSFER","Transfer Payments","06B","Social Services Clients","7057","Section 17 Payments","60167401","201211",03/02/2012 00:00:00,1733.9,"53350","Nursing Homes","REDACTED DATA","JUSTICE ASSESSMENT & SUPPORT SERVICES LTD","6382678","http://opencorporates.com/companies/gb/6382678","992524687"
"London Borough of Redbridge","http://opendatacommunities.org/doc/london-borough-council/redbridge","6BADULTSOCIA","Adult Social Care","6CADLEARNDIS","Adults Under 65 with Learning Disabilities","REV","Revenue","R4293","Woodbine Club House","01-EMPLOYEES","Employees","01A","Direct employee expenses","4","Agency Staff - Pay","60167944","201211",05/02/2012 00:00:00,322.11,"31230","Employment & Recruitment Agencies","REDACTED DATA","TAYLOR GORDON & CO LTD T/AS PLAN PERSONNEL & PLAN CARE","",,"190680845"
"London Borough of Redbridge","http://opendatacommunities.org/doc/london-borough-council/redbridge","6BADULTSOCIA","Adult Social Care","6CADLEARNDIS","Adults Under 65 with Learning Disabilities","REV","Revenue","R4293","Woodbine Club House","01-EMPLOYEES","Employees","01A","Direct employee expenses","4","Agency Staff - Pay","60169074","201211",19/02/2012 00:00:00,391.95,"31230","Employment & Recruitment Agencies","REDACTED DATA","TAYLOR GORDON & CO LTD T/AS PLAN PERSONNEL & PLAN CARE","",,"190680845"
"London Borough of Redbridge","http://opendatacommunities.org/doc/london-borough-council/redbridge","6BADULTSOCIA","Adult Social Care","6CADLEARNDIS","Adults Under 65 with Learning Disabilities","REV","Revenue","R4293","Woodbine Club House","01-EMPLOYEES","Employees","01A","Direct employee expenses","45","Sessional Staff","60167367","201211",31/01/2012 00:00:00,600,"77630","Theatre Companies","REDACTED DATA","PAULINE WARREN","",,""
"London Borough of Redbridge","http://opendatacommunities.org/doc/london-borough-council/redbridge","6BADULTSOCIA","Adult Social Care","6CADLEARNDIS","Adults Under 65 with Learning Disabilities","REV","Revenue","R4185","LD - Supported Living","09-INCOME","Income","09C","Customer & Client Receipts","8553","Care Package Charges","90301884","201211",01/02/2012 00:00:00,-251.92,"64710","Residential Care Homes","REDACTED DATA","CARETECH COMMUNITY SERVICES LTD","2804415","http://opencorporates.com/companies/gb/2804415",""
"London Borough of Redbridge","http://opendatacommunities.org/doc/london-borough-council/redbridge","6BADULTSOCIA","Adult Social Care","6CADLEARNDIS","Adults Under 65 with Learning Disabilities","REV","Revenue","R4185","LD - Supported Living","06-TRANSFER","Transfer Payments","06B","Social Services Clients","7066","Supportive Lodgings (Transfer Payments)","90301722","201211",31/01/2012 00:00:00,1913.14,"43419","Home Care Services","REDACTED DATA","KINGS LODGE","",,""
"London Borough of Redbridge","http://opendatacommunities.org/doc/london-borough-council/redbridge","6BADULTSOCIA","Adult Social Care","6COLDINCMENT","Older People (65 or over) incl. Older Mentally Ill","REV","Revenue","R4020","Carers Older People Direct Payments","06-TRANSFER","Transfer Payments","06B","Social Services Clients","7053","Direct Payments","3218902","201211",13/02/2012 00:00:00,180.8,"90005","Home Care Services DP","REDACTED DATA","REDACTED DATA","",,""
"London Borough of Redbridge","http://opendatacommunities.org/doc/london-borough-council/redbridge","6BADULTSOCIA","Adult Social Care","6COLDINCMENT","Older People (65 or over) incl. Older Mentally Ill","REV","Revenue","R4020","Carers Older People Direct Payments","06-TRANSFER","Transfer Payments","06B","Social Services Clients","7053","Direct Payments","3218860","201211",13/02/2012 00:00:00,271.2,"90005","Home Care Services DP","REDACTED DATA","REDACTED DATA","",,""
"London Borough of Redbridge","http://opendatacommunities.org/doc/london-borough-council/redbridge","4BTRANSPORT","Transport Planning, Policy & Strategy","4CMANGT&SUPP","Management & Support Services","REV","Revenue","R7007","Lighting Testing","05-THIRD","Third Party Payments","05H","Private contractors","6915","Contractor Payments","3220753","201211",28/02/2012 00:00:00,17655.17,"30350","Electrical Testing & Inspecting","REDACTED DATA","CABLE TEST LTD","4934614","http://opencorporates.com/companies/gb/4934614","832334548"
"London Borough of Redbridge","http://opendatacommunities.org/doc/london-borough-council/redbridge","1BOTHEROPI&E","Other Operating Income & Expenditure","1CTRADSURDEF","Trading Account Surpluses & Deficits","REV","Revenue","R9604","22-26 Clements Rd","02-PREMISES","Premises","02B","Energy costs","4002","Gas","70036930","201211",18/01/2012 00:00:00,33.84,"39564","Gas Companies","REDACTED DATA","KENT COUNTY COUNCIL (GAS & ELECTRIC)","",,"204269191"
"London Borough of Redbridge","http://opendatacommunities.org/doc/london-borough-council/redbridge","6BADULTSOCIA","Adult Social Care","6COLDINCMENT","Older People (65 or over) incl. Older Mentally Ill","REV","Revenue","R4144","Laundry Service","05-THIRD","Third Party Payments","05D","Health authorities","6700","Health Service/Trusts","60169324","201211",19/02/2012 00:00:00,120,"47260","Laundries & Launderettes","REDACTED DATA","P J WOOD","",,""
"London Borough of Redbridge","http://opendatacommunities.org/doc/london-borough-council/redbridge","4BMANGT&SUPP","Management & Support Services","4CHIGHRDROUT","Highways/Roads (Routine)","REV","Revenue","R7070","Reactive Maintenance","05-THIRD","Third Party Payments","05H","Private contractors","6915","Contractor Payments","3220935","201211",28/02/2012 00:00:00,130.52,"18632","Civil Engineers","REDACTED DATA","KENSON CONTRACTORS BENINGTON LTD","1314691","http://opencorporates.com/companies/gb/1314691","301629589"
"London Borough of Redbridge","http://opendatacommunities.org/doc/london-borough-council/redbridge","9BNONBVO","Outside the BVACOP Objective Structure","9CNONBVO","Outside the BVACOP Objective Structure","REV","Revenue","R5031","Central Heating HRA","02-PREMISES","Premises","02B","Energy costs","4001","Electricity - "Economy 7" Tariff","3220110","201211",02/02/2012 00:00:00,151.68,"30586","Electricity Companies","REDACTED DATA","EDF ENERGY 1 LTD (PO BOX 3956 PLYMOUTH)","",,"523041202"
"London Borough of Redbridge","http://opendatacommunities.org/doc/london-borough-council/redbridge","9BNONBVO","Outside the BVACOP Objective Structure","9CNONBVO","Outside the BVACOP Objective Structure","REV","Revenue","R5031","Central Heating HRA","02-PREMISES","Premises","02B","Energy costs","4001","Electricity - "Economy 7" Tariff","3220100","201211",02/02/2012 00:00:00,222.62,"30586","Electricity Companies","REDACTED DATA","EDF ENERGY 1 LTD (PO BOX 3956 PLYMOUTH)","",,"523041202"
"London Borough of Redbridge","http://opendatacommunities.org/doc/london-borough-council/redbridge","1BOTHEROPI&E","Other Operating Income & Expenditure","1CELECTIONS","Elections","REV","Revenue","R9362","Electoral Registration","04-SUPPLIES","Supplies And Services","04D","Printing, stationery and general office expenses","5705","Postage","60168171","201211",08/02/2012 00:00:00,500,"24510","Delivery Services","REDACTED DATA","ROYAL MAIL GROUP LTD","4138203","http://opencorporates.com/companies/gb/4138203","243170002"
"London Borough of Redbridge","http://opendatacommunities.org/doc/london-borough-council/redbridge","4BMANGT&SUPP","Management & Support Services","4CHIGHRDROUT","Highways/Roads (Routine)","REV","Revenue","R7070","Reactive Maintenance","05-THIRD","Third Party Payments","05H","Private contractors","6915","Contractor Payments","3217273","201211",01/02/2012 00:00:00,44.05,"18632","Civil Engineers","REDACTED DATA","KENSON CONTRACTORS BENINGTON LTD","1314691","http://opencorporates.com/companies/gb/1314691","301629589"
"London Borough of Redbridge","http://opendatacommunities.org/doc/london-borough-council/redbridge","4BTRAFMGT&RS","Traffic Management & Road Safety","4CPUBLICTRAN","Public Transport","REV","Revenue","R4248","Blue Badges","04-SUPPLIES","Supplies And Services","04A","Equipment, furniture and materials","5502","Equipment Purchase","60167599","201211",07/02/2012 00:00:00,119.9,"76520","Telecommunications Equipment & Systems","REDACTED DATA","FONELINE","",,"367725616"
"London Borough of Redbridge","http://opendatacommunities.org/doc/london-borough-council/redbridge","6BADULTSOCIA","Adult Social Care","6CADLEARNDIS","Adults Under 65 with Learning Disabilities","REV","Revenue","R4383","LD - External Day Care","05-THIRD","Third Party Payments","05H","Private contractors","6904","Day Centres","90302577","201211",31/01/2012 00:00:00,-17.71,"24200","Day Centres","REDACTED DATA","ROSY CARE LTD","6506929","http://opencorporates.com/companies/gb/6506929",""
"London Borough of Redbridge","http://opendatacommunities.org/doc/london-borough-council/redbridge","6BADULTSOCIA","Adult Social Care","6CADLEARNDIS","Adults Under 65 with Learning Disabilities","REV","Revenue","R4383","LD - External Day Care","05-THIRD","Third Party Payments","05H","Private contractors","6904","Day Centres","90302048","201211",01/02/2012 00:00:00,1040.4,"17020","Charities and Voluntary Organisations","REDACTED DATA","NORWOOD RAVENWOOD SERVICES LTD","",,""
"London Borough of Redbridge","http://opendatacommunities.org/doc/london-borough-council/redbridge","6BADULTSOCIA","Adult Social Care","6COLDINCMENT","Older People (65 or over) incl. Older Mentally Ill","REV","Revenue","R4391","OP Home Care","05-THIRD","Third Party Payments","05A","Independent units within the council","6502","Agency Homecare (Payments To Independent Units)","90301099","201211",01/02/2012 00:00:00,25.6,"43419","Home Care Services","REDACTED DATA","CAREWATCH CARE SERVICES LTD","2949558","http://opencorporates.com/companies/gb/2949558","927457005"
"London Borough of Redbridge","http://opendatacommunities.org/doc/london-borough-council/redbridge","1BOTHEROPI&E","Other Operating Income & Expenditure","1CTRADSURDEF","Trading Account Surpluses & Deficits","REV","Revenue","R9605","497-499 Ley Street","04-SUPPLIES","Supplies And Services","04D","Printing, stationery and general office expenses","5703","Reprographics","60167365","201211",16/01/2012 00:00:00,325.43,"57614","Photocopiers","REDACTED DATA","RICOH UK LTD","473236","http://opencorporates.com/companies/gb/473236","524161280"
"London Borough of Redbridge","http://opendatacommunities.org/doc/london-borough-council/redbridge","6BADULTSOCIA","Adult Social Care","6COLDINCMENT","Older People (65 or over) incl. Older Mentally Ill","REV","Revenue","R4211","Older People Direct Payments","09-INCOME","Income","09C","Customer & Client Receipts","8545","Direct Payments Income","3218758","201211",13/02/2012 00:00:00,-133.04,"56800","Payroll Services","REDACTED DATA","HUMAN MANAGEMENT ASSISTANCE-CLIENT ACCOUNT","4752026","http://opencorporates.com/companies/gb/4752026","815230071"
"London Borough of Redbridge","http://opendatacommunities.org/doc/london-borough-council/redbridge","6BADULTSOCIA","Adult Social Care","6COLDINCMENT","Older People (65 or over) incl. Older Mentally Ill","REV","Revenue","R4211","Older People Direct Payments","06-TRANSFER","Transfer Payments","06B","Social Services Clients","7053","Direct Payments","3218658","201211",13/02/2012 00:00:00,1265.6,"56800","Payroll Services","REDACTED DATA","HUMAN MANAGEMENT ASSISTANCE-CLIENT ACCOUNT","4752026","http://opencorporates.com/companies/gb/4752026","815230071"
"London Borough of Redbridge","http://opendatacommunities.org/doc/london-borough-council/redbridge","6BADULTSOCIA","Adult Social Care","6CADLEARNDIS","Adults Under 65 with Learning Disabilities","REV","Revenue","R4383","LD - External Day Care","05-THIRD","Third Party Payments","05H","Private contractors","6904","Day Centres","90302558","201211",31/01/2012 00:00:00,22.6,"24200","Day Centres","REDACTED DATA","EASTWAY CARE LTD","",,""
"London Borough of Redbridge","http://opendatacommunities.org/doc/london-borough-council/redbridge","4BMANGT&SUPP","Management & Support Services","4CHIGHRDROUT","Highways/Roads (Routine)","REV","Revenue","R7070","Reactive Maintenance","05-THIRD","Third Party Payments","05H","Private contractors","6915","Contractor Payments","3219308","201211",13/02/2012 00:00:00,62.82,"18632","Civil Engineers","REDACTED DATA","KENSON CONTRACTORS BENINGTON LTD","1314691","http://opencorporates.com/companies/gb/1314691","301629589"
"London Borough of Redbridge","http://opendatacommunities.org/doc/london-borough-council/redbridge","3BNONSCHFUND","Non-School Funding","3CNONSCH","Non Schools","REV","Revenue","R3934","StLukes/Loxford CC","02-PREMISES","Premises","02A","Repairs, alteration and maintenance of buildings","3040","Tenant Maintenance","787247","201211",31/01/2012 00:00:00,21.65,"61961","Property Maintenance & Repairs","REDACTED DATA","PLANNED MAINTENANCE ENG  LTD","737307","http://opencorporates.com/companies/gb/737307","100636617"
"London Borough of Redbridge","http://opendatacommunities.org/doc/london-borough-council/redbridge","3BNONSCHFUND","Non-School Funding","3CNONSCH","Non Schools","REV","Revenue","R3933","Peabody CC","04-SUPPLIES","Supplies And Services","04A","Equipment, furniture and materials","5502","Equipment Purchase","60168711","201211",16/02/2012 00:00:00,46.89,"29340","Educational Equipment & Supplies","REDACTED DATA","FINDEL EDUCATION LTD","1135827","http://opencorporates.com/companies/gb/1135827","125688644"
"London Borough of Redbridge","http://opendatacommunities.org/doc/london-borough-council/redbridge","6BADULTSOCIA","Adult Social Care","6CADPHYSDIS","Adults Under 65 with Phys Disab or Sensory Impair","REV","Revenue","R4214","PD Direct Payments","06-TRANSFER","Transfer Payments","06B","Social Services Clients","7053","Direct Payments","3218495","201211",13/02/2012 00:00:00,135.6,"56800","Payroll Services","REDACTED DATA","HUMAN MANAGEMENT ASSISTANCE-CLIENT ACCOUNT","4752026","http://opencorporates.com/companies/gb/4752026","815230071"
"London Borough of Redbridge","http://opendatacommunities.org/doc/london-borough-council/redbridge","6BADULTSOCIA","Adult Social Care","6CADPHYSDIS","Adults Under 65 with Phys Disab or Sensory Impair","REV","Revenue","R4214","PD Direct Payments","06-TRANSFER","Transfer Payments","06B","Social Services Clients","7053","Direct Payments","3218481","201211",13/02/2012 00:00:00,180.8,"56800","Payroll Services","REDACTED DATA","HUMAN MANAGEMENT ASSISTANCE-CLIENT ACCOUNT","4752026","http://opencorporates.com/companies/gb/4752026","815230071"
"London Borough of Redbridge","http://opendatacommunities.org/doc/london-borough-council/redbridge","6BADULTSOCIA","Adult Social Care","6COLDINCMENT","Older People (65 or over) incl. Older Mentally Ill","REV","Revenue","R4211","Older People Direct Payments","06-TRANSFER","Transfer Payments","06B","Social Services Clients","7053","Direct Payments","3218480","201211",13/02/2012 00:00:00,248.6,"56800","Payroll Services","REDACTED DATA","HUMAN MANAGEMENT ASSISTANCE-CLIENT ACCOUNT","4752026","http://opencorporates.com/companies/gb/4752026","815230071"
"London Borough of Redbridge","http://opendatacommunities.org/doc/london-borough-council/redbridge","6BADULTSOCIA","Adult Social Care","6COLDINCMENT","Older People (65 or over) incl. Older Mentally Ill","REV","Revenue","R4211","Older People Direct Payments","06-TRANSFER","Transfer Payments","06B","Social Services Clients","7053","Direct Payments","3218880","201211",13/02/2012 00:00:00,474.6,"90005","Home Care Services DP","REDACTED DATA","REDACTED DATA","",,""
"London Borough of Redbridge","http://opendatacommunities.org/doc/london-borough-council/redbridge","6BADULTSOCIA","Adult Social Care","6COLDINCMENT","Older People (65 or over) incl. Older Mentally Ill","REV","Revenue","R4211","Older People Direct Payments","06-TRANSFER","Transfer Payments","06B","Social Services Clients","7053","Direct Payments","3218441","201211",13/02/2012 00:00:00,2237.4,"56800","Payroll Services","REDACTED DATA","HUMAN MANAGEMENT ASSISTANCE-CLIENT ACCOUNT","4752026","http://opencorporates.com/companies/gb/4752026","815230071"
"London Borough of Redbridge","http://opendatacommunities.org/doc/london-borough-council/redbridge","6BADULTSOCIA","Adult Social Care","6COLDINCMENT","Older People (65 or over) incl. Older Mentally Ill","REV","Revenue","R4391","OP Home Care","05-THIRD","Third Party Payments","05A","Independent units within the council","6502","Agency Homecare (Payments To Independent Units)","90301380","201211",31/01/2012 00:00:00,-100,"43419","Home Care Services","REDACTED DATA","ENARA LTD (ENARA COMMUNITY CARE)","65455420","http://opencorporates.com/companies/gb/65455420",""
"London Borough of Redbridge","http://opendatacommunities.org/doc/london-borough-council/redbridge","3BLEACENTFND","LEA Centrally Held School Funds","3CSCHSTRATMG","Schools Strategic Management","REV","Revenue","R3279","IT Unit - Trading Acc","04-SUPPLIES","Supplies And Services","04A","Equipment, furniture and materials","5502","Equipment Purchase","60167894","201211",09/02/2012 00:00:00,67.22,"20703","Computer Systems and Software","REDACTED DATA","CAPITA IT SERVICES(BSF) LTD","1855936","http://opencorporates.com/companies/gb/1855936","618184140"
"London Borough of Redbridge","http://opendatacommunities.org/doc/london-borough-council/redbridge","3BLEACENTFND","LEA Centrally Held School Funds","3CSUPPORTSEN","Supporting Special Education Needs","REV","Revenue","R3434","Pupil Referral Unit (KS3)","04-SUPPLIES","Supplies And Services","04A","Equipment, furniture and materials","5503","Equipment Rentals","60167349","201211",25/01/2012 00:00:00,18.9,"84070","Water Suppliers - Bottled","REDACTED DATA","EDEN SPRINGS (UK) LTD (NATURE SPRING)","2899075","http://opencorporates.com/companies/gb/2899075","232160411"
"London Borough of Redbridge","http://opendatacommunities.org/doc/london-borough-council/redbridge","6BADULTSOCIA","Adult Social Care","6CADMENHLTH","Adults Under 65 with Mental Health Needs","REV","Revenue","R4213","MH Direct Payments","09-INCOME","Income","09C","Customer & Client Receipts","8545","Direct Payments Income","3218620","201211",13/02/2012 00:00:00,-114.84,"56800","Payroll Services","REDACTED DATA","HUMAN MANAGEMENT ASSISTANCE-CLIENT ACCOUNT","4752026","http://opencorporates.com/companies/gb/4752026","815230071"
"London Borough of Redbridge","http://opendatacommunities.org/doc/london-borough-council/redbridge","6BADULTSOCIA","Adult Social Care","6CADMENHLTH","Adults Under 65 with Mental Health Needs","REV","Revenue","R4213","MH Direct Payments","06-TRANSFER","Transfer Payments","06B","Social Services Clients","7053","Direct Payments","3218733","201211",13/02/2012 00:00:00,45.76,"56800","Payroll Services","REDACTED DATA","HUMAN MANAGEMENT ASSISTANCE-CLIENT ACCOUNT","4752026","http://opencorporates.com/companies/gb/4752026","815230071"
"London Borough of Redbridge","http://opendatacommunities.org/doc/london-borough-council/redbridge","6BADULTSOCIA","Adult Social Care","6CADLEARNDIS","Adults Under 65 with Learning Disabilities","REV","Revenue","R4394","LD - Homecare","05-THIRD","Third Party Payments","05A","Independent units within the council","6502","Agency Homecare (Payments To Independent Units)","90304562","201211",21/02/2012 00:00:00,2184,"31230","Employment & Recruitment Agencies","REDACTED DATA","HOPE SUPER JOBS LTD","",,"872555205"
"London Borough of Redbridge","http://opendatacommunities.org/doc/london-borough-council/redbridge","6BSOCIALSERV","Social Services","6CCHILLOOKED","Children Looked After","REV","Revenue","R2132","CLAFH - Asylum Seekers Non Grant Funded","06-TRANSFER","Transfer Payments","06B","Social Services Clients","7061","Support Package","60168137","201211",31/01/2012 00:00:00,3374.73,"1880","Adoption and Fostering","REDACTED DATA","BANYA","",,""
"London Borough of Redbridge","http://opendatacommunities.org/doc/london-borough-council/redbridge","6BADULTSOCIA","Adult Social Care","6CADLEARNDIS","Adults Under 65 with Learning Disabilities","REV","Revenue","R4218","LD Individual Budgets","06-TRANSFER","Transfer Payments","06B","Social Services Clients","7053","Direct Payments","90301717","201211",31/01/2012 00:00:00,379.75,"24200","Day Centres","REDACTED DATA","INCLUSIVE COMMUNITIES LTD","6642491","http://opencorporates.com/companies/gb/6642491",""
"London Borough of Redbridge","http://opendatacommunities.org/doc/london-borough-council/redbridge","4BMANGT&SUPP","Management & Support Services","4CHIGHRDROUT","Highways/Roads (Routine)","REV","Revenue","R7070","Reactive Maintenance","05-THIRD","Third Party Payments","05H","Private contractors","6915","Contractor Payments","3221060","201211",28/02/2012 00:00:00,76.99,"18632","Civil Engineers","REDACTED DATA","KENSON CONTRACTORS BENINGTON LTD","1314691","http://opencorporates.com/companies/gb/1314691","301629589"
"London Borough of Redbridge","http://opendatacommunities.org/doc/london-borough-council/redbridge","6BSOCIALSERV","Social Services","6CCHILLOOKED","Children Looked After","REV","Revenue","R2127","CLAFH - Fostering and Adoption","05-THIRD","Third Party Payments","05H","Private contractors","6917","Fostering Costs - Agency","60168889","201211",09/02/2012 00:00:00,2122.12,"1880","Adoption and Fostering","REDACTED DATA","FOCUS ON FOSTERING LTD","4371679","http://opencorporates.com/companies/gb/4371679",""
"London Borough of Redbridge","http://opendatacommunities.org/doc/london-borough-council/redbridge","6BADULTSOCIA","Adult Social Care","6CADPHYSDIS","Adults Under 65 with Phys Disab or Sensory Impair","REV","Revenue","R4393","PD Home Care","05-THIRD","Third Party Payments","05A","Independent units within the council","6502","Agency Homecare (Payments To Independent Units)","90297714","201211",09/02/2012 00:00:00,255.23,"31230","Employment & Recruitment Agencies","REDACTED DATA","SHARED CARE SERVICES LTD","4704680","http://opencorporates.com/companies/gb/4704680",""
"London Borough of Redbridge","http://opendatacommunities.org/doc/london-borough-council/redbridge","3BLEACENTFND","LEA Centrally Held School Funds","3CNONSCH","Non Schools","REV","Revenue","R2006","SEN Assessment Team DSG","04-SUPPLIES","Supplies And Services","04D","Printing, stationery and general office expenses","5705","Postage","60168682","201211",13/02/2012 00:00:00,9.44,"24510","Delivery Services","REDACTED DATA","ROYAL MAIL GROUP LTD","4138203","http://opencorporates.com/companies/gb/4138203","243170002"
"London Borough of Redbridge","http://opendatacommunities.org/doc/london-borough-council/redbridge","6BADULTSOCIA","Adult Social Care","6CADPHYSDIS","Adults Under 65 with Phys Disab or Sensory Impair","REV","Revenue","R4214","PD Direct Payments","06-TRANSFER","Transfer Payments","06B","Social Services Clients","7053","Direct Payments","3218629","201211",13/02/2012 00:00:00,293.8,"56800","Payroll Services","REDACTED DATA","HUMAN MANAGEMENT ASSISTANCE-CLIENT ACCOUNT","4752026","http://opencorporates.com/companies/gb/4752026","815230071"
"London Borough of Redbridge","http://opendatacommunities.org/doc/london-borough-council/redbridge","6BADULTSOCIA","Adult Social Care","6CADPHYSDIS","Adults Under 65 with Phys Disab or Sensory Impair","REV","Revenue","R4214","PD Direct Payments","09-INCOME","Income","09C","Customer & Client Receipts","8545","Direct Payments Income","3218473","201211",13/02/2012 00:00:00,689.41,"56800","Payroll Services","REDACTED DATA","HUMAN MANAGEMENT ASSISTANCE-CLIENT ACCOUNT","4752026","http://opencorporates.com/companies/gb/4752026","815230071"
"London Borough of Redbridge","http://opendatacommunities.org/doc/london-borough-council/redbridge","6BADULTSOCIA","Adult Social Care","6CADLEARNDIS","Adults Under 65 with Learning Disabilities","REV","Revenue","R4296","Mulberry Lodge","01-EMPLOYEES","Employees","01A","Direct employee expenses","409","Agency Staff Pay","60168420","201211",10/02/2012 00:00:00,379.5,"43419","Home Care Services","REDACTED DATA","REDSPOT HOMECARE LTD","3966475","http://opencorporates.com/companies/gb/3966475",""
"London Borough of Redbridge","http://opendatacommunities.org/doc/london-borough-council/redbridge","6BSOCIALSERV","Social Services","6CCHILLOOKED","Children Looked After","REV","Revenue","R2120","CLAFH - Care Purchasing","05-THIRD","Third Party Payments","05H","Private contractors","6907","Private Homes","60167435","201211",01/02/2012 00:00:00,9611.47,"64710","Residential Care Homes","REDACTED DATA","LITTLE ACORNS LONDON BEACH FARM LTD","4377528","http://opencorporates.com/companies/gb/4377528",""
"London Borough of Redbridge","http://opendatacommunities.org/doc/london-borough-council/redbridge","6BSOCIALSERV","Social Services","6CCHILLOOKED","Children Looked After","REV","Revenue","R2110","SEN and CD - Business and Finance Social Care","04-SUPPLIES","Supplies And Services","04F","Communications and computing","5854","Exchange Line Rental","60167884","201211",17/01/2012 00:00:00,-64.07,"51500","Mobile Phones - Personal Numbers","REDACTED DATA","EVERYTHING EVERYWHERE LTD (CAMBERLEY)","2382161","http://opencorporates.com/companies/gb/2382161","771592016"
"London Borough of Redbridge","http://opendatacommunities.org/doc/london-borough-council/redbridge","3BNONSCHFUND","Non-School Funding","3CNONSCH","Non Schools","REV","Revenue","R2054","Psych - Management LEA","04-SUPPLIES","Supplies And Services","04F","Communications and computing","5858","Phones","60167880","201211",04/01/2012 00:00:00,6.46,"51500","Mobile Phones - Personal Numbers","REDACTED DATA","EVERYTHING EVERYWHERE LTD (CAMBERLEY)","2382161","http://opencorporates.com/companies/gb/2382161","771592016"
"London Borough of Redbridge","http://opendatacommunities.org/doc/london-borough-council/redbridge","3BNONSCHFUND","Non-School Funding","3CNONSCH","Non Schools","REV","Revenue","R2070","Vulnerable Childrens LEA","04-SUPPLIES","Supplies And Services","04F","Communications and computing","5858","Phones","70036978","201211",04/01/2012 00:00:00,47.89,"51500","Mobile Phones - Personal Numbers","REDACTED DATA","EVERYTHING EVERYWHERE LTD (CAMBERLEY)","2382161","http://opencorporates.com/companies/gb/2382161","771592016"
"London Borough of Redbridge","http://opendatacommunities.org/doc/london-borough-council/redbridge","6BSOCIALSERV","Social Services","6CCHILLOOKED","Children Looked After","REV","Revenue","R2112","SEN and CD - Indigo Project","05-THIRD","Third Party Payments","05A","Independent units within the council","6502","Agency Homecare (Payments To Independent Units)","70037161","201211",27/01/2012 00:00:00,60376.65,"17020","Charities and Voluntary Organisations","REDACTED DATA","BARNARDOS (TANNERS LANE)","1227919","http://opencorporates.com/companies/gb/1227919","507477337"
"London Borough of Redbridge","http://opendatacommunities.org/doc/london-borough-council/redbridge","6BADULTSOCIA","Adult Social Care","6CADLEARNDIS","Adults Under 65 with Learning Disabilities","REV","Revenue","R4394","LD - Homecare","05-THIRD","Third Party Payments","05A","Independent units within the council","6502","Agency Homecare (Payments To Independent Units)","90297733","201211",03/02/2012 00:00:00,80.71,"17020","Charities and Voluntary Organisations","REDACTED DATA","OUTWARD","2151434","http://opencorporates.com/companies/gb/2151434",""
"London Borough of Redbridge","http://opendatacommunities.org/doc/london-borough-council/redbridge","6BADULTSOCIA","Adult Social Care","6CADLEARNDIS","Adults Under 65 with Learning Disabilities","REV","Revenue","R4394","LD - Homecare","05-THIRD","Third Party Payments","05A","Independent units within the council","6502","Agency Homecare (Payments To Independent Units)","90302968","201211",28/02/2012 00:00:00,86.46,"43419","Home Care Services","REDACTED DATA","ALLIED HEALTHCARE GROUP LTD","1689856","http://opencorporates.com/companies/gb/1689856","813058355"
"London Borough of Redbridge","http://opendatacommunities.org/doc/london-borough-council/redbridge","6BADULTSOCIA","Adult Social Care","6CADLEARNDIS","Adults Under 65 with Learning Disabilities","REV","Revenue","R4394","LD - Homecare","05-THIRD","Third Party Payments","05A","Independent units within the council","6502","Agency Homecare (Payments To Independent Units)","90304569","201211",23/02/2012 00:00:00,103.29,"43419","Home Care Services","REDACTED DATA","CARE CENTRAL LTD","5836846","http://opencorporates.com/companies/gb/5836846",""
"London Borough of Redbridge","http://opendatacommunities.org/doc/london-borough-council/redbridge","6BADULTSOCIA","Adult Social Care","6CADLEARNDIS","Adults Under 65 with Learning Disabilities","REV","Revenue","R4394","LD - Homecare","05-THIRD","Third Party Payments","05A","Independent units within the council","6502","Agency Homecare (Payments To Independent Units)","90300930","201211",02/02/2012 00:00:00,134.78,"31230","Employment & Recruitment Agencies","REDACTED DATA","HOPE SUPER JOBS LTD","",,"872555205"
"London Borough of Redbridge","http://opendatacommunities.org/doc/london-borough-council/redbridge","6BADULTSOCIA","Adult Social Care","6CADLEARNDIS","Adults Under 65 with Learning Disabilities","REV","Revenue","R4394","LD - Homecare","05-THIRD","Third Party Payments","05A","Independent units within the council","6502","Agency Homecare (Payments To Independent Units)","90299034","201211",09/02/2012 00:00:00,231.12,"17020","Charities and Voluntary Organisations","REDACTED DATA","REDBRIDGE COMMUNITY HOUSING LIMITED (RCHL)","",,""
"London Borough of Redbridge","http://opendatacommunities.org/doc/london-borough-council/redbridge","6BADULTSOCIA","Adult Social Care","6CADLEARNDIS","Adults Under 65 with Learning Disabilities","REV","Revenue","R4394","LD - Homecare","05-THIRD","Third Party Payments","05A","Independent units within the council","6502","Agency Homecare (Payments To Independent Units)","90304053","201211",27/02/2012 00:00:00,290.46,"17580","Childcare Services","REDACTED DATA","DIGNITY CARE PLUS LTD (SURECARE ILFORD)","7342446","http://opencorporates.com/companies/gb/7342446",""
"London Borough of Redbridge","http://opendatacommunities.org/doc/london-borough-council/redbridge","6BADULTSOCIA","Adult Social Care","6CADLEARNDIS","Adults Under 65 with Learning Disabilities","REV","Revenue","R4394","LD - Homecare","05-THIRD","Third Party Payments","05A","Independent units within the council","6502","Agency Homecare (Payments To Independent Units)","90299051","201211",09/02/2012 00:00:00,342.4,"17020","Charities and Voluntary Organisations","REDACTED DATA","REDBRIDGE COMMUNITY HOUSING LIMITED (RCHL)","",,""
"London Borough of Redbridge","http://opendatacommunities.org/doc/london-borough-council/redbridge","6BADULTSOCIA","Adult Social Care","6CADLEARNDIS","Adults Under 65 with Learning Disabilities","REV","Revenue","R4394","LD - Homecare","05-THIRD","Third Party Payments","05A","Independent units within the council","6502","Agency Homecare (Payments To Independent Units)","90304049","201211",23/02/2012 00:00:00,348.96,"17580","Childcare Services","REDACTED DATA","DIGNITY CARE PLUS LTD (SURECARE ILFORD)","7342446","http://opencorporates.com/companies/gb/7342446",""
"London Borough of Redbridge","http://opendatacommunities.org/doc/london-borough-council/redbridge","6BADULTSOCIA","Adult Social Care","6CADLEARNDIS","Adults Under 65 with Learning Disabilities","REV","Revenue","R4394","LD - Homecare","05-THIRD","Third Party Payments","05A","Independent units within the council","6502","Agency Homecare (Payments To Independent Units)","90303757","201211",24/02/2012 00:00:00,349.61,"43419","Home Care Services","REDACTED DATA","FASTFLOW DE VERE CARE","",,""
"London Borough of Redbridge","http://opendatacommunities.org/doc/london-borough-council/redbridge","6BADULTSOCIA","Adult Social Care","6CADLEARNDIS","Adults Under 65 with Learning Disabilities","REV","Revenue","R4394","LD - Homecare","05-THIRD","Third Party Payments","05A","Independent units within the council","6502","Agency Homecare (Payments To Independent Units)","90304563","201211",23/02/2012 00:00:00,2184,"31230","Employment & Recruitment Agencies","REDACTED DATA","HOPE SUPER JOBS LTD","",,"872555205"
"London Borough of Redbridge","http://opendatacommunities.org/doc/london-borough-council/redbridge","5BGFHOUSING","General Fund Housing","5CHOUSADVICE","Housing Advice","REV","Revenue","R5530","HAC Temporary Accomodation","05-THIRD","Third Party Payments","05H","Private contractors","6912","Bed & Breakfast Charges","70037737","201211",30/11/2011 00:00:00,8773.98,"47846","Letting Agents","REDACTED DATA","FINEFAIR CONSULTANCY  LTD(NIGHTLY LETS)","4661895","http://opencorporates.com/companies/gb/4661895","809945391"
"London Borough of Redbridge","http://opendatacommunities.org/doc/london-borough-council/redbridge","1BOTHEROPI&E","Other Operating Income & Expenditure","1CTRADSURDEF","Trading Account Surpluses & Deficits","REV","Revenue","R9605","497-499 Ley Street","02-PREMISES","Premises","02H","Cleaning and domestic supplies","4620","Cleaning Contract Payments","60169085","201211",29/02/2012 00:00:00,3048.15,"15269","Cleaning Services - Commercial","REDACTED DATA","ISS FACILITY SERVICES LTD","890885","http://opencorporates.com/companies/gb/890885","809727795"
"London Borough of Redbridge","http://opendatacommunities.org/doc/london-borough-council/redbridge","6BADULTSOCIA","Adult Social Care","6CADMENHLTH","Adults Under 65 with Mental Health Needs","REV","Revenue","R4271","Abury House","04-SUPPLIES","Supplies And Services","04A","Equipment, furniture and materials","5502","Equipment Purchase","60169209","201211",26/02/2012 00:00:00,139.54,"15970","Catalogue Showrooms","REDACTED DATA","ARGOS BUSINESS SOLUTIONS","1081551","http://opencorporates.com/companies/gb/1081551","145899025"
"London Borough of Redbridge","http://opendatacommunities.org/doc/london-borough-council/redbridge","6BADULTSOCIA","Adult Social Care","6COLDINCMENT","Older People (65 or over) incl. Older Mentally Ill","REV","Revenue","R4169","Intermediate Care","04-SUPPLIES","Supplies And Services","04D","Printing, stationery and general office expenses","5710","Stationery","3221518","201211",02/02/2012 00:00:00,57.1,"53770","Office Stationery Supplies","REDACTED DATA","OFFICE DEPOT UK LTD (EX-GUILBERT UK)","2654682","http://opencorporates.com/companies/gb/2654682","673478594"
"London Borough of Redbridge","http://opendatacommunities.org/doc/london-borough-council/redbridge","4BMANGT&SUPP","Management & Support Services","4CHIGHRDROUT","Highways/Roads (Routine)","REV","Revenue","R7070","Reactive Maintenance","05-THIRD","Third Party Payments","05H","Private contractors","6915","Contractor Payments","3220825","201211",28/02/2012 00:00:00,80.26,"18632","Civil Engineers","REDACTED DATA","KENSON CONTRACTORS BENINGTON LTD","1314691","http://opencorporates.com/companies/gb/1314691","301629589"
"London Borough of Redbridge","http://opendatacommunities.org/doc/london-borough-council/redbridge","9BNONBVO","Outside the BVACOP Objective Structure","9CNONBVO","Outside the BVACOP Objective Structure","REV","Revenue","R7702","Vehicle Workshop","04-SUPPLIES","Supplies And Services","04A","Equipment, furniture and materials","5510","Materials","630593","201211",03/02/2012 00:00:00,0.28,"20390","Commercial Vehicle Servicing, Repairs, Parts and Accessories","REDACTED DATA","STORMONT TRUCK & VAN LTD","4173907","http://opencorporates.com/companies/gb/4173907","770427138"
"London Borough of Redbridge","http://opendatacommunities.org/doc/london-borough-council/redbridge","9BNONBVO","Outside the BVACOP Objective Structure","9CNONBVO","Outside the BVACOP Objective Structure","REV","Revenue","R7702","Vehicle Workshop","04-SUPPLIES","Supplies And Services","04A","Equipment, furniture and materials","5510","Materials","630681","201211",18/01/2012 00:00:00,6.24,"48980","Machine Tools - Sales","REDACTED DATA","W L COOKE PRECISION TOOLS LTD","",,""
"London Borough of Redbridge","http://opendatacommunities.org/doc/london-borough-council/redbridge","9BNONBVO","Outside the BVACOP Objective Structure","9CNONBVO","Outside the BVACOP Objective Structure","REV","Revenue","R7702","Vehicle Workshop","04-SUPPLIES","Supplies And Services","04A","Equipment, furniture and materials","5510","Materials","630661","201211",01/02/2012 00:00:00,7.6,"51950","Mot Testing Centres","REDACTED DATA","PROSOL UK LTD T/A PROSOL UK","6544295","http://opencorporates.com/companies/gb/6544295","534029368"
"London Borough of Redbridge","http://opendatacommunities.org/doc/london-borough-council/redbridge","9BNONBVO","Outside the BVACOP Objective Structure","9CNONBVO","Outside the BVACOP Objective Structure","REV","Revenue","R7702","Vehicle Workshop","04-SUPPLIES","Supplies And Services","04A","Equipment, furniture and materials","5510","Materials","630600","201211",02/02/2012 00:00:00,13.16,"20390","Commercial Vehicle Servicing, Repairs, Parts and Accessories","REDACTED DATA","S & B  COMMERCIALS PLC","1635078","http://opencorporates.com/companies/gb/1635078",""
"London Borough of Redbridge","http://opendatacommunities.org/doc/london-borough-council/redbridge","9BNONBVO","Outside the BVACOP Objective Structure","9CNONBVO","Outside the BVACOP Objective Structure","REV","Revenue","R7702","Vehicle Workshop","04-SUPPLIES","Supplies And Services","04A","Equipment, furniture and materials","5510","Materials","630724","201211",09/02/2012 00:00:00,29.87,"13240","Car Accessories and Parts","REDACTED DATA","SYTNER LTD T/AS SYTNER CHIGWELL","813696","http://opencorporates.com/companies/gb/813696","610625086"
"London Borough of Redbridge","http://opendatacommunities.org/doc/london-borough-council/redbridge","9BNONBVO","Outside the BVACOP Objective Structure","9CNONBVO","Outside the BVACOP Objective Structure","REV","Revenue","R7702","Vehicle Workshop","04-SUPPLIES","Supplies And Services","04A","Equipment, furniture and materials","5510","Materials","630616","201211",31/01/2012 00:00:00,30,"47905","Lifting Equipment","REDACTED DATA","ATLAS REPAIRS LTD","3585044","http://opencorporates.com/companies/gb/3585044","681632036"
"London Borough of Redbridge","http://opendatacommunities.org/doc/london-borough-council/redbridge","9BNONBVO","Outside the BVACOP Objective Structure","9CNONBVO","Outside the BVACOP Objective Structure","REV","Revenue","R7702","Vehicle Workshop","04-SUPPLIES","Supplies And Services","04A","Equipment, furniture and materials","5510","Materials","630626","201211",31/01/2012 00:00:00,30,"47905","Lifting Equipment","REDACTED DATA","ATLAS REPAIRS LTD","3585044","http://opencorporates.com/companies/gb/3585044","681632036"
"London Borough of Redbridge","http://opendatacommunities.org/doc/london-borough-council/redbridge","9BNONBVO","Outside the BVACOP Objective Structure","9CNONBVO","Outside the BVACOP Objective Structure","REV","Revenue","R7702","Vehicle Workshop","04-SUPPLIES","Supplies And Services","04A","Equipment, furniture and materials","5510","Materials","630594","201211",02/02/2012 00:00:00,111.38,"20390","Commercial Vehicle Servicing, Repairs, Parts and Accessories","REDACTED DATA","HARRIS COMMERCIAL REPAIRS LTD","1154158","http://opencorporates.com/companies/gb/1154158",""
"London Borough of Redbridge","http://opendatacommunities.org/doc/london-borough-council/redbridge","6BADULTSOCIA","Adult Social Care","6COLDINCMENT","Older People (65 or over) incl. Older Mentally Ill","REV","Revenue","R4391","OP Home Care","05-THIRD","Third Party Payments","05A","Independent units within the council","6502","Agency Homecare (Payments To Independent Units)","90304287","201211",08/02/2012 00:00:00,-77.66,"31230","Employment & Recruitment Agencies","REDACTED DATA","RANDSTAD CARE  LTD","2462482","http://opencorporates.com/companies/gb/2462482","523365558"
"London Borough of Redbridge","http://opendatacommunities.org/doc/london-borough-council/redbridge","6BADULTSOCIA","Adult Social Care","6COLDINCMENT","Older People (65 or over) incl. Older Mentally Ill","REV","Revenue","R4391","OP Home Care","05-THIRD","Third Party Payments","05A","Independent units within the council","6502","Agency Homecare (Payments To Independent Units)","90304883","201211",27/02/2012 00:00:00,153.81,"43419","Home Care Services","REDACTED DATA","CAREWATCH CARE SERVICES LTD","2949558","http://opencorporates.com/companies/gb/2949558","927457005"
"London Borough of Redbridge","http://opendatacommunities.org/doc/london-borough-council/redbridge","6BADULTSOCIA","Adult Social Care","6CADPHYSDIS","Adults Under 65 with Phys Disab or Sensory Impair","REV","Revenue","R4206","PCT Physical Disability and Sensory Home  Care","05-THIRD","Third Party Payments","05A","Independent units within the council","6502","Agency Homecare (Payments To Independent Units)","90304622","201211",15/02/2012 00:00:00,218.82,"53350","Nursing Homes","REDACTED DATA","ELEANOR NURSING & SOCIALCARE LTD","4393038","http://opencorporates.com/companies/gb/4393038",""
"London Borough of Redbridge","http://opendatacommunities.org/doc/london-borough-council/redbridge","6BADULTSOCIA","Adult Social Care","6CADPHYSDIS","Adults Under 65 with Phys Disab or Sensory Impair","REV","Revenue","R4206","PCT Physical Disability and Sensory Home  Care","05-THIRD","Third Party Payments","05A","Independent units within the council","6502","Agency Homecare (Payments To Independent Units)","90300691","201211",08/02/2012 00:00:00,282.7,"31230","Employment & Recruitment Agencies","REDACTED DATA","RANDSTAD CARE  LTD","2462482","http://opencorporates.com/companies/gb/2462482","523365558"
"London Borough of Redbridge","http://opendatacommunities.org/doc/london-borough-council/redbridge","6BADULTSOCIA","Adult Social Care","6CADLEARNDIS","Adults Under 65 with Learning Disabilities","REV","Revenue","R4215","LD Direct Payments","09-INCOME","Income","09C","Customer & Client Receipts","8545","Direct Payments Income","3218602","201211",13/02/2012 00:00:00,-100.84,"56800","Payroll Services","REDACTED DATA","HUMAN MANAGEMENT ASSISTANCE-CLIENT ACCOUNT","4752026","http://opencorporates.com/companies/gb/4752026","815230071"
"London Borough of Redbridge","http://opendatacommunities.org/doc/london-borough-council/redbridge","6BADULTSOCIA","Adult Social Care","6CADLEARNDIS","Adults Under 65 with Learning Disabilities","REV","Revenue","R4215","LD Direct Payments","06-TRANSFER","Transfer Payments","06B","Social Services Clients","7053","Direct Payments","3218605","201211",13/02/2012 00:00:00,1372.16,"56800","Payroll Services","REDACTED DATA","HUMAN MANAGEMENT ASSISTANCE-CLIENT ACCOUNT","4752026","http://opencorporates.com/companies/gb/4752026","815230071"
"London Borough of Redbridge","http://opendatacommunities.org/doc/london-borough-council/redbridge","3BLEACENTFND","LEA Centrally Held School Funds","3CNONSCH","Non Schools","REV","Revenue","R2010","Spec Transport LEA","01-EMPLOYEES","Employees","01A","Direct employee expenses","4","Agency Staff - Pay","60167584","201211",11/01/2012 00:00:00,91.5,"31230","Employment & Recruitment Agencies","REDACTED DATA","HOPE SUPER JOBS LTD","",,"872555205"
"London Borough of Redbridge","http://opendatacommunities.org/doc/london-borough-council/redbridge","1BOTHEROPI&E","Other Operating Income & Expenditure","1CTRADSURDEF","Trading Account Surpluses & Deficits","REV","Revenue","R9609","Queen Victoria House","02-PREMISES","Premises","02B","Energy costs","4002","Gas","70036935","201211",18/01/2012 00:00:00,16.59,"39564","Gas Companies","REDACTED DATA","KENT COUNTY COUNCIL (GAS & ELECTRIC)","",,"204269191"
"London Borough of Redbridge","http://opendatacommunities.org/doc/london-borough-council/redbridge","6BADULTSOCIA","Adult Social Care","6COLDINCMENT","Older People (65 or over) incl. Older Mentally Ill","REV","Revenue","R4211","Older People Direct Payments","06-TRANSFER","Transfer Payments","06B","Social Services Clients","7053","Direct Payments","3218469","201211",13/02/2012 00:00:00,282.52,"56800","Payroll Services","REDACTED DATA","HUMAN MANAGEMENT ASSISTANCE-CLIENT ACCOUNT","4752026","http://opencorporates.com/companies/gb/4752026","815230071"
"London Borough of Redbridge","http://opendatacommunities.org/doc/london-borough-council/redbridge","6BADULTSOCIA","Adult Social Care","6CADPHYSDIS","Adults Under 65 with Phys Disab or Sensory Impair","REV","Revenue","R4214","PD Direct Payments","06-TRANSFER","Transfer Payments","06B","Social Services Clients","7053","Direct Payments","3218455","201211",13/02/2012 00:00:00,452,"56800","Payroll Services","REDACTED DATA","HUMAN MANAGEMENT ASSISTANCE-CLIENT ACCOUNT","4752026","http://opencorporates.com/companies/gb/4752026","815230071"
"London Borough of Redbridge","http://opendatacommunities.org/doc/london-borough-council/redbridge","6BADULTSOCIA","Adult Social Care","6CADPHYSDIS","Adults Under 65 with Phys Disab or Sensory Impair","REV","Revenue","R4214","PD Direct Payments","06-TRANSFER","Transfer Payments","06B","Social Services Clients","7053","Direct Payments","3218678","201211",13/02/2012 00:00:00,485.92,"56800","Payroll Services","REDACTED DATA","HUMAN MANAGEMENT ASSISTANCE-CLIENT ACCOUNT","4752026","http://opencorporates.com/companies/gb/4752026","815230071"
"London Borough of Redbridge","http://opendatacommunities.org/doc/london-borough-council/redbridge","6BADULTSOCIA","Adult Social Care","6COLDINCMENT","Older People (65 or over) incl. Older Mentally Ill","REV","Revenue","R4211","Older People Direct Payments","06-TRANSFER","Transfer Payments","06B","Social Services Clients","7053","Direct Payments","3218592","201211",13/02/2012 00:00:00,632.8,"56800","Payroll Services","REDACTED DATA","HUMAN MANAGEMENT ASSISTANCE-CLIENT ACCOUNT","4752026","http://opencorporates.com/companies/gb/4752026","815230071"
"London Borough of Redbridge","http://opendatacommunities.org/doc/london-borough-council/redbridge","6BADULTSOCIA","Adult Social Care","6CADPHYSDIS","Adults Under 65 with Phys Disab or Sensory Impair","REV","Revenue","R4214","PD Direct Payments","06-TRANSFER","Transfer Payments","06B","Social Services Clients","7053","Direct Payments","3218385","201211",13/02/2012 00:00:00,678,"90005","Home Care Services DP","REDACTED DATA","REDACTED DATA","",,""
"London Borough of Redbridge","http://opendatacommunities.org/doc/london-borough-council/redbridge","6BADULTSOCIA","Adult Social Care","6CADPHYSDIS","Adults Under 65 with Phys Disab or Sensory Impair","REV","Revenue","R4214","PD Direct Payments","06-TRANSFER","Transfer Payments","06B","Social Services Clients","7053","Direct Payments","3218783","201211",13/02/2012 00:00:00,723.2,"56800","Payroll Services","REDACTED DATA","HUMAN MANAGEMENT ASSISTANCE-CLIENT ACCOUNT","4752026","http://opencorporates.com/companies/gb/4752026","815230071"
"London Borough of Redbridge","http://opendatacommunities.org/doc/london-borough-council/redbridge","1BOTHEROPI&E","Other Operating Income & Expenditure","1CTRADSURDEF","Trading Account Surpluses & Deficits","REV","Revenue","R9147","Invoices Holding Account Leisure","02-PREMISES","Premises","02I","Grounds maintenance costs","4753","Trees / Recreational","60166508","201211",24/01/2012 00:00:00,52.5,"53090","Nurseries - Wholesale","REDACTED DATA","JAMES COLES & SONS (NURSERIES) LIMITED","",,"290261862"
"London Borough of Redbridge","http://opendatacommunities.org/doc/london-borough-council/redbridge","6BADULTSOCIA","Adult Social Care","6CADLEARNDIS","Adults Under 65 with Learning Disabilities","REV","Revenue","R4215","LD Direct Payments","06-TRANSFER","Transfer Payments","06B","Social Services Clients","7053","Direct Payments","3218518","201211",13/02/2012 00:00:00,-6619.38,"56800","Payroll Services","REDACTED DATA","HUMAN MANAGEMENT ASSISTANCE-CLIENT ACCOUNT","4752026","http://opencorporates.com/companies/gb/4752026","815230071"
"London Borough of Redbridge","http://opendatacommunities.org/doc/london-borough-council/redbridge","6BADULTSOCIA","Adult Social Care","6CADLEARNDIS","Adults Under 65 with Learning Disabilities","REV","Revenue","R4218","LD Individual Budgets","06-TRANSFER","Transfer Payments","06B","Social Services Clients","7053","Direct Payments","90301709","201211",31/01/2012 00:00:00,423.99,"24200","Day Centres","REDACTED DATA","INCLUSIVE COMMUNITIES LTD","6642491","http://opencorporates.com/companies/gb/6642491",""
"London Borough of Redbridge","http://opendatacommunities.org/doc/london-borough-council/redbridge","1BOTHEROPI&E","Other Operating Income & Expenditure","1CTRADSURDEF","Trading Account Surpluses & Deficits","REV","Revenue","R9251","IT Consumables","04-SUPPLIES","Supplies And Services","04K","Miscellaneous expenses","6259","Service Management Exp","60167591","201211",31/01/2012 00:00:00,183.2,"20703","Computer Systems and Software","REDACTED DATA","INSIGHT DIRECT (UK) LTD.","",,""
"London Borough of Redbridge","http://opendatacommunities.org/doc/london-borough-council/redbridge","6BADULTSOCIA","Adult Social Care","6CADPHYSDIS","Adults Under 65 with Phys Disab or Sensory Impair","REV","Revenue","R4393","PD Home Care","05-THIRD","Third Party Payments","05A","Independent units within the council","6502","Agency Homecare (Payments To Independent Units)","90299387","201211",13/02/2012 00:00:00,19.14,"43419","Home Care Services","REDACTED DATA","FASTFLOW DE VERE CARE","",,""
"London Borough of Redbridge","http://opendatacommunities.org/doc/london-borough-council/redbridge","4BMANGT&SUPP","Management & Support Services","4CHIGHRDROUT","Highways/Roads (Routine)","REV","Revenue","R7070","Reactive Maintenance","05-THIRD","Third Party Payments","05H","Private contractors","6915","Contractor Payments","3221177","201211",28/02/2012 00:00:00,206.39,"18632","Civil Engineers","REDACTED DATA","KENSON CONTRACTORS BENINGTON LTD","1314691","http://opencorporates.com/companies/gb/1314691","301629589"
"London Borough of Redbridge","http://opendatacommunities.org/doc/london-borough-council/redbridge","6BADULTSOCIA","Adult Social Care","6CADLEARNDIS","Adults Under 65 with Learning Disabilities","REV","Revenue","R4296","Mulberry Lodge","01-EMPLOYEES","Employees","01A","Direct employee expenses","409","Agency Staff Pay","60167860","201211",08/02/2012 00:00:00,356.5,"31230","Employment & Recruitment Agencies","REDACTED DATA","CRASTER RECRUITMENT LTD","7654534","http://opencorporates.com/companies/gb/7654534","119719983"
"London Borough of Redbridge","http://opendatacommunities.org/doc/london-borough-council/redbridge","6BADULTSOCIA","Adult Social Care","6CADLEARNDIS","Adults Under 65 with Learning Disabilities","REV","Revenue","R4296","Mulberry Lodge","01-EMPLOYEES","Employees","01A","Direct employee expenses","409","Agency Staff Pay","60168421","201211",05/02/2012 00:00:00,473.04,"31230","Employment & Recruitment Agencies","REDACTED DATA","TAYLOR GORDON & CO LTD T/AS PLAN PERSONNEL & PLAN CARE","",,"190680845"
"London Borough of Redbridge","http://opendatacommunities.org/doc/london-borough-council/redbridge","6BADULTSOCIA","Adult Social Care","6COLDINCMENT","Older People (65 or over) incl. Older Mentally Ill","REV","Revenue","R4144","Laundry Service","05-THIRD","Third Party Payments","05D","Health authorities","6700","Health Service/Trusts","60169349","201211",28/02/2012 00:00:00,548.25,"81810","Car Valet Services","REDACTED DATA","AS GOOD AS NEW","",,""
"London Borough of Redbridge","http://opendatacommunities.org/doc/london-borough-council/redbridge","6BSOCIALSERV","Social Services","6COLDINCMENT","Older People (65 or over) incl. Older Mentally Ill","REV","Revenue","R4059","Elderly Mentally ill Home Care","05-THIRD","Third Party Payments","05A","Independent units within the council","6502","Agency Homecare (Payments To Independent Units)","90298724","201211",01/02/2012 00:00:00,0,"31230","Employment & Recruitment Agencies","REDACTED DATA","TAYLOR GORDON & CO LTD T/AS PLAN PERSONNEL & PLAN CARE","",,"190680845"
"London Borough of Redbridge","http://opendatacommunities.org/doc/london-borough-council/redbridge","3BOPTIONHLDG","Optional Holding Accounts","3CYOUTH","Youth Service","REV","Revenue","R3370","GOL Extremism Grant","04-SUPPLIES","Supplies And Services","04D","Printing, stationery and general office expenses","5710","Stationery","3221518","201211",02/02/2012 00:00:00,13.3,"53770","Office Stationery Supplies","REDACTED DATA","OFFICE DEPOT UK LTD (EX-GUILBERT UK)","2654682","http://opencorporates.com/companies/gb/2654682","673478594"
"London Borough of Redbridge","http://opendatacommunities.org/doc/london-borough-council/redbridge","3BOPTIONHLDG","Optional Holding Accounts","3CYOUTH","Youth Service","REV","Revenue","R3371","LBR Costs","04-SUPPLIES","Supplies And Services","04F","Communications and computing","5858","Phones","70036784","201211",04/01/2012 00:00:00,24.72,"51500","Mobile Phones - Personal Numbers","REDACTED DATA","EVERYTHING EVERYWHERE LTD (CAMBERLEY)","2382161","http://opencorporates.com/companies/gb/2382161","771592016"
"London Borough of Redbridge","http://opendatacommunities.org/doc/london-borough-council/redbridge","3BOPTIONHLDG","Optional Holding Accounts","3CYOUTH","Youth Service","REV","Revenue","R3366","M Power (Triage/YiSP)","04-SUPPLIES","Supplies And Services","04F","Communications and computing","5858","Phones","70036783","201211",04/01/2012 00:00:00,27.82,"51500","Mobile Phones - Personal Numbers","REDACTED DATA","EVERYTHING EVERYWHERE LTD (CAMBERLEY)","2382161","http://opencorporates.com/companies/gb/2382161","771592016"
"London Borough of Redbridge","http://opendatacommunities.org/doc/london-borough-council/redbridge","3BOPTIONHLDG","Optional Holding Accounts","3CYOUTH","Youth Service","REV","Revenue","R3371","LBR Costs","04-SUPPLIES","Supplies And Services","04F","Communications and computing","5858","Phones","60168116","201211",31/01/2012 00:00:00,31.2,"76520","Telecommunications Equipment & Systems","REDACTED DATA","3CUBED LTD","4438272","http://opencorporates.com/companies/gb/4438272","787885736"
"London Borough of Redbridge","http://opendatacommunities.org/doc/london-borough-council/redbridge","3BOPTIONHLDG","Optional Holding Accounts","3CYOUTH","Youth Service","REV","Revenue","R3369","YCPT Fusion","04-SUPPLIES","Supplies And Services","04F","Communications and computing","5858","Phones","60167731","201211",03/02/2012 00:00:00,197.91,"17020","Charities and Voluntary Organisations","REDACTED DATA","ADDACTION","2580377","http://opencorporates.com/companies/gb/2580377","735842515"
"London Borough of Redbridge","http://opendatacommunities.org/doc/london-borough-council/redbridge","3BOPTIONHLDG","Optional Holding Accounts","3CYOUTH","Youth Service","REV","Revenue","R3366","M Power (Triage/YiSP)","04-SUPPLIES","Supplies And Services","04K","Miscellaneous expenses","6263","Supportive Activities","60167146","201211",27/01/2012 00:00:00,449.85,"54820","Outdoor Pursuit Organisers & Equipment","REDACTED DATA","ACTION DAYS LTD","6433073","http://opencorporates.com/companies/gb/6433073","937592187"
"London Borough of Redbridge","http://opendatacommunities.org/doc/london-borough-council/redbridge","3BOPTIONHLDG","Optional Holding Accounts","3CYOUTH","Youth Service","REV","Revenue","R3375","Family Intervention Programme","01-EMPLOYEES","Employees","01A","Direct employee expenses","4","Agency Staff - Pay","3220752","201211",29/02/2012 00:00:00,1105.57,"31230","Employment & Recruitment Agencies","REDACTED DATA","MATRIX SCM LTD","2227962","http://opencorporates.com/companies/gb/2227962","918498476"
"London Borough of Redbridge","http://opendatacommunities.org/doc/london-borough-council/redbridge","6BADULTSOCIA","Adult Social Care","6CADLEARNDIS","Adults Under 65 with Learning Disabilities","REV","Revenue","R4383","LD - External Day Care","05-THIRD","Third Party Payments","05H","Private contractors","6904","Day Centres","90301656","201211",01/02/2012 00:00:00,1089.44,"17020","Charities and Voluntary Organisations","REDACTED DATA","MENCAP","550457","http://opencorporates.com/companies/gb/550457","233010136"
"London Borough of Redbridge","http://opendatacommunities.org/doc/london-borough-council/redbridge","6BADULTSOCIA","Adult Social Care","6COLDINCMENT","Older People (65 or over) incl. Older Mentally Ill","REV","Revenue","R4391","OP Home Care","05-THIRD","Third Party Payments","05A","Independent units within the council","6502","Agency Homecare (Payments To Independent Units)","90299250","201211",10/02/2012 00:00:00,38.28,"43419","Home Care Services","REDACTED DATA","FASTFLOW DE VERE CARE","",,""
"London Borough of Redbridge","http://opendatacommunities.org/doc/london-borough-council/redbridge","6BADULTSOCIA","Adult Social Care","6COLDINCMENT","Older People (65 or over) incl. Older Mentally Ill","REV","Revenue","R4391","OP Home Care","05-THIRD","Third Party Payments","05A","Independent units within the council","6502","Agency Homecare (Payments To Independent Units)","90303131","201211",17/02/2012 00:00:00,45.22,"31230","Employment & Recruitment Agencies","REDACTED DATA","TAYLOR GORDON & CO LTD T/AS PLAN PERSONNEL & PLAN CARE","",,"190680845"
"London Borough of Redbridge","http://opendatacommunities.org/doc/london-borough-council/redbridge","6BADULTSOCIA","Adult Social Care","6COTHADSERV","Other Adult Services","REV","Revenue","R4389","PCT Older Person Home Care","05-THIRD","Third Party Payments","05A","Independent units within the council","6502","Agency Homecare (Payments To Independent Units)","90304175","201211",24/02/2012 00:00:00,29.16,"53280","Nursing Agencies","REDACTED DATA","IMMACULATE HEALTHCARE SERVICES LIMITED","",,""
"London Borough of Redbridge","http://opendatacommunities.org/doc/london-borough-council/redbridge","6BADULTSOCIA","Adult Social Care","6COTHADSERV","Other Adult Services","REV","Revenue","R4389","PCT Older Person Home Care","05-THIRD","Third Party Payments","05A","Independent units within the council","6502","Agency Homecare (Payments To Independent Units)","90301010","201211",31/01/2012 00:00:00,406.38,"53350","Nursing Homes","REDACTED DATA","ELEANOR NURSING & SOCIALCARE LTD","4393038","http://opencorporates.com/companies/gb/4393038",""
"London Borough of Redbridge","http://opendatacommunities.org/doc/london-borough-council/redbridge","6BADULTSOCIA","Adult Social Care","6COTHADSERV","Other Adult Services","REV","Revenue","R4389","PCT Older Person Home Care","05-THIRD","Third Party Payments","05A","Independent units within the council","6502","Agency Homecare (Payments To Independent Units)","90304586","201211",14/02/2012 00:00:00,568.89,"53350","Nursing Homes","REDACTED DATA","ELEANOR NURSING & SOCIALCARE LTD","4393038","http://opencorporates.com/companies/gb/4393038",""
"London Borough of Redbridge","http://opendatacommunities.org/doc/london-borough-council/redbridge","6BADULTSOCIA","Adult Social Care","6COLDINCMENT","Older People (65 or over) incl. Older Mentally Ill","REV","Revenue","R4391","OP Home Care","05-THIRD","Third Party Payments","05A","Independent units within the council","6502","Agency Homecare (Payments To Independent Units)","90303689","201211",15/02/2012 00:00:00,19.14,"43419","Home Care Services","REDACTED DATA","FASTFLOW DE VERE CARE","",,""
"London Borough of Redbridge","http://opendatacommunities.org/doc/london-borough-council/redbridge","6BADULTSOCIA","Adult Social Care","6COLDINCMENT","Older People (65 or over) incl. Older Mentally Ill","REV","Revenue","R4391","OP Home Care","05-THIRD","Third Party Payments","05A","Independent units within the council","6502","Agency Homecare (Payments To Independent Units)","90301058","201211",09/02/2012 00:00:00,81.25,"53350","Nursing Homes","REDACTED DATA","ELEANOR NURSING & SOCIALCARE LTD","4393038","http://opencorporates.com/companies/gb/4393038",""
"London Borough of Redbridge","http://opendatacommunities.org/doc/london-borough-council/redbridge","6BADULTSOCIA","Adult Social Care","6CADLEARNDIS","Adults Under 65 with Learning Disabilities","REV","Revenue","R4293","Woodbine Club House","01-EMPLOYEES","Employees","01A","Direct employee expenses","4","Agency Staff - Pay","60169077","201211",19/02/2012 00:00:00,387.73,"31230","Employment & Recruitment Agencies","REDACTED DATA","TAYLOR GORDON & CO LTD T/AS PLAN PERSONNEL & PLAN CARE","",,"190680845"
"London Borough of Redbridge","http://opendatacommunities.org/doc/london-borough-council/redbridge","4BMANGT&SUPP","Management & Support Services","4CHIGHRDROUT","Highways/Roads (Routine)","REV","Revenue","R7070","Reactive Maintenance","05-THIRD","Third Party Payments","05H","Private contractors","6915","Contractor Payments","3221042","201211",28/02/2012 00:00:00,39.65,"18632","Civil Engineers","REDACTED DATA","KENSON CONTRACTORS BENINGTON LTD","1314691","http://opencorporates.com/companies/gb/1314691","301629589"
"London Borough of Redbridge","http://opendatacommunities.org/doc/london-borough-council/redbridge","2BPLAN&DEVEL","Planning & Development Services","2CCOMMDEVT","Community Development","REV","Revenue","R9853","Community Development","04-SUPPLIES","Supplies And Services","04D","Printing, stationery and general office expenses","5710","Stationery","3221518","201211",08/02/2012 00:00:00,21.5,"53770","Office Stationery Supplies","REDACTED DATA","OFFICE DEPOT UK LTD (EX-GUILBERT UK)","2654682","http://opencorporates.com/companies/gb/2654682","673478594"
"London Borough of Redbridge","http://opendatacommunities.org/doc/london-borough-council/redbridge","9BNONBVO","Outside the BVACOP Objective Structure","9CNONBVO","Outside the BVACOP Objective Structure","REV","Revenue","R5132","Repairs and Maintenance - Other","02-PREMISES","Premises","02A","Repairs, alteration and maintenance of buildings","3038","Service Repairs","70037616","201211",31/01/2012 00:00:00,40.75,"11700","Burglar and Intruder Alarm Systems","REDACTED DATA","CARTEL SECURITY SYSTEMS LTD","3376202","http://opencorporates.com/companies/gb/3376202","696815967"
"London Borough of Redbridge","http://opendatacommunities.org/doc/london-borough-council/redbridge","1BOTHEROPI&E","Other Operating Income & Expenditure","1CTRADSURDEF","Trading Account Surpluses & Deficits","REV","Revenue","R9801","Area Commit Run Costs","04-SUPPLIES","Supplies And Services","04E","Services","5759","Hire Of Venues","60167623","201211",26/01/2012 00:00:00,58.34,"17020","Charities and Voluntary Organisations","REDACTED DATA","VISION REDBRIDGE CULTURE AND LEISURE","6032714","http://opencorporates.com/companies/gb/6032714","906429031"
"London Borough of Redbridge","http://opendatacommunities.org/doc/london-borough-council/redbridge","3BLEACENTFND","LEA Centrally Held School Funds","3CNONSCH","Non Schools","REV","Revenue","R2010","Spec Transport LEA","04-SUPPLIES","Supplies And Services","04A","Equipment, furniture and materials","5501","Equipment Provision","60168243","201211",10/02/2012 00:00:00,13.5,"0","Not Classified","REDACTED DATA","CRELLING HARNESSES LTD","",,""
"London Borough of Redbridge","http://opendatacommunities.org/doc/london-borough-council/redbridge","3BLEACENTFND","LEA Centrally Held School Funds","3CNONSCH","Non Schools","REV","Revenue","R2010","Spec Transport LEA","04-SUPPLIES","Supplies And Services","04F","Communications and computing","5851","Computer Equipment - Purchases","60169150","201211",21/02/2012 00:00:00,1332,"20703","Computer Systems and Software","REDACTED DATA","CENTERPRISE INTERNATIONAL LTD","1738519","http://opencorporates.com/companies/gb/1738519","849772272"
"London Borough of Redbridge","http://opendatacommunities.org/doc/london-borough-council/redbridge","1BOTHEROPI&E","Other Operating Income & Expenditure","1CTRADSURDEF","Trading Account Surpluses & Deficits","REV","Revenue","R9605","497-499 Ley Street","02-PREMISES","Premises","02A","Repairs, alteration and maintenance of buildings","3037","Service Contracts","787142","201211",30/01/2012 00:00:00,400.53,"61961","Property Maintenance & Repairs","REDACTED DATA","PLANNED MAINTENANCE ENG  LTD","737307","http://opencorporates.com/companies/gb/737307","100636617"
"London Borough of Redbridge","http://opendatacommunities.org/doc/london-borough-council/redbridge","6BADULTSOCIA","Adult Social Care","6CADPHYSDIS","Adults Under 65 with Phys Disab or Sensory Impair","REV","Revenue","R4206","PCT Physical Disability and Sensory Home  Care","05-THIRD","Third Party Payments","05A","Independent units within the council","6502","Agency Homecare (Payments To Independent Units)","90299896","201211",26/01/2012 00:00:00,30.62,"53280","Nursing Agencies","REDACTED DATA","IMMACULATE HEALTHCARE SERVICES LIMITED","",,""
"London Borough of Redbridge","http://opendatacommunities.org/doc/london-borough-council/redbridge","6BADULTSOCIA","Adult Social Care","6CADPHYSDIS","Adults Under 65 with Phys Disab or Sensory Impair","REV","Revenue","R4206","PCT Physical Disability and Sensory Home  Care","05-THIRD","Third Party Payments","05A","Independent units within the council","6502","Agency Homecare (Payments To Independent Units)","90303722","201211",24/02/2012 00:00:00,255.2,"43419","Home Care Services","REDACTED DATA","FASTFLOW DE VERE CARE","",,""
"London Borough of Redbridge","http://opendatacommunities.org/doc/london-borough-council/redbridge","6BADULTSOCIA","Adult Social Care","6CADPHYSDIS","Adults Under 65 with Phys Disab or Sensory Impair","REV","Revenue","R4206","PCT Physical Disability and Sensory Home  Care","05-THIRD","Third Party Payments","05A","Independent units within the council","6502","Agency Homecare (Payments To Independent Units)","90305442","201211",27/02/2012 00:00:00,959.85,"43419","Home Care Services","REDACTED DATA","HOMECARE & DOMESTIC SERVICES LTD (VOUCHERS PAYMENT)","3161761","http://opencorporates.com/companies/gb/3161761",""
"London Borough of Redbridge","http://opendatacommunities.org/doc/london-borough-council/redbridge","6BADULTSOCIA","Adult Social Care","6COLDINCMENT","Older People (65 or over) incl. Older Mentally Ill","REV","Revenue","R4378","OP Residential","09-INCOME","Income","09C","Customer & Client Receipts","8555","Accommodation Charges","90302388","201211",07/02/2012 00:00:00,-474,"53350","Nursing Homes","REDACTED DATA","JEWISH CARE (MERIT  HOUSE)","2447900","http://opencorporates.com/companies/gb/2447900","587033133"
"London Borough of Redbridge","http://opendatacommunities.org/doc/london-borough-council/redbridge","6BADULTSOCIA","Adult Social Care","6COLDINCMENT","Older People (65 or over) incl. Older Mentally Ill","REV","Revenue","R4378","OP Residential","05-THIRD","Third Party Payments","05F","Voluntary associations","6802","Residential Homes","90302002","201211",01/02/2012 00:00:00,2249.24,"53350","Nursing Homes","REDACTED DATA","JEWISH CARE (MERIT  HOUSE)","2447900","http://opencorporates.com/companies/gb/2447900","587033133"
"London Borough of Redbridge","http://opendatacommunities.org/doc/london-borough-council/redbridge","6BSOCIALSERV","Social Services","6CCHILLOOKED","Children Looked After","REV","Revenue","R2132","CLAFH - Asylum Seekers Non Grant Funded","06-TRANSFER","Transfer Payments","06B","Social Services Clients","7061","Support Package","3217775","201211",16/01/2012 00:00:00,786.24,"43419","Home Care Services","REDACTED DATA","LCS PARTNERSHIPS LTD (LONDON CARE SOLUTIONS)","6820538","http://opencorporates.com/companies/gb/6820538","975528279"
"London Borough of Redbridge","http://opendatacommunities.org/doc/london-borough-council/redbridge","5BGFHOUSING","General Fund Housing","5CHOUSADVICE","Housing Advice","REV","Revenue","R5530","HAC Temporary Accomodation","05-THIRD","Third Party Payments","05H","Private contractors","6912","Bed & Breakfast Charges","70037152","201211",01/01/2012 00:00:00,1980,"47846","Letting Agents","REDACTED DATA","FINE FAIR MANAGEMENT LTD T/A MAYFAIR HOTEL","4003130","http://opencorporates.com/companies/gb/4003130",""
"London Borough of Redbridge","http://opendatacommunities.org/doc/london-borough-council/redbridge","6BADULTSOCIA","Adult Social Care","6CADLEARNDIS","Adults Under 65 with Learning Disabilities","REV","Revenue","R4296","Mulberry Lodge","02-PREMISES","Premises","02A","Repairs, alteration and maintenance of buildings","3037","Service Contracts","787296","201211",31/01/2012 00:00:00,42.85,"35290","Fire Alarm Systems","REDACTED DATA","MULTI-ALARM SYSTEMS (GB) LTD","1020755","http://opencorporates.com/companies/gb/1020755","358056637"
"London Borough of Redbridge","http://opendatacommunities.org/doc/london-borough-council/redbridge","6BADULTSOCIA","Adult Social Care","6CADLEARNDIS","Adults Under 65 with Learning Disabilities","REV","Revenue","R4218","LD Individual Budgets","06-TRANSFER","Transfer Payments","06B","Social Services Clients","7053","Direct Payments","90302583","201211",31/01/2012 00:00:00,-256,"17020","Charities and Voluntary Organisations","REDACTED DATA","UNITING FRIENDS LTD","6495763","http://opencorporates.com/companies/gb/6495763",""
"London Borough of Redbridge","http://opendatacommunities.org/doc/london-borough-council/redbridge","6BADULTSOCIA","Adult Social Care","6CADLEARNDIS","Adults Under 65 with Learning Disabilities","REV","Revenue","R4218","LD Individual Budgets","06-TRANSFER","Transfer Payments","06B","Social Services Clients","7053","Direct Payments","90301715","201211",31/01/2012 00:00:00,-238.93,"24200","Day Centres","REDACTED DATA","INCLUSIVE COMMUNITIES LTD","6642491","http://opencorporates.com/companies/gb/6642491",""
"London Borough of Redbridge","http://opendatacommunities.org/doc/london-borough-council/redbridge","6BADULTSOCIA","Adult Social Care","6CADLEARNDIS","Adults Under 65 with Learning Disabilities","REV","Revenue","R4218","LD Individual Budgets","06-TRANSFER","Transfer Payments","06B","Social Services Clients","7053","Direct Payments","90302588","201211",31/01/2012 00:00:00,1464.13,"17020","Charities and Voluntary Organisations","REDACTED DATA","UNITING FRIENDS LTD","6495763","http://opencorporates.com/companies/gb/6495763",""
"London Borough of Redbridge","http://opendatacommunities.org/doc/london-borough-council/redbridge","6BADULTSOCIA","Adult Social Care","6CADLEARNDIS","Adults Under 65 with Learning Disabilities","REV","Revenue","R4218","LD Individual Budgets","06-TRANSFER","Transfer Payments","06B","Social Services Clients","7053","Direct Payments","3218525","201211",13/02/2012 00:00:00,15028.44,"56800","Payroll Services","REDACTED DATA","HUMAN MANAGEMENT ASSISTANCE-CLIENT ACCOUNT","4752026","http://opencorporates.com/companies/gb/4752026","815230071"
"London Borough of Redbridge","http://opendatacommunities.org/doc/london-borough-council/redbridge","3BSCHOSLOCAL","Schools Expenditure Outside Local Schools Budget","3CNONDELGRNT","Non-Delegated School Grants","REV","Revenue","R2206","LEA Init Spec Equipment","04-SUPPLIES","Supplies And Services","04A","Equipment, furniture and materials","5502","Equipment Purchase","60168544","201211",20/02/2012 00:00:00,153,"29340","Educational Equipment & Supplies","REDACTED DATA","A GRIFFITHS T/AS A1ACTIVE","",,"126871206"
"London Borough of Redbridge","http://opendatacommunities.org/doc/london-borough-council/redbridge","6BADULTSOCIA","Adult Social Care","6CADPHYSDIS","Adults Under 65 with Phys Disab or Sensory Impair","REV","Revenue","R4214","PD Direct Payments","09-INCOME","Income","09C","Customer & Client Receipts","8545","Direct Payments Income","3218775","201211",13/02/2012 00:00:00,-43.4,"56800","Payroll Services","REDACTED DATA","HUMAN MANAGEMENT ASSISTANCE-CLIENT ACCOUNT","4752026","http://opencorporates.com/companies/gb/4752026","815230071"
"London Borough of Redbridge","http://opendatacommunities.org/doc/london-borough-council/redbridge","6BADULTSOCIA","Adult Social Care","6CADPHYSDIS","Adults Under 65 with Phys Disab or Sensory Impair","REV","Revenue","R4214","PD Direct Payments","06-TRANSFER","Transfer Payments","06B","Social Services Clients","7053","Direct Payments","3218669","201211",13/02/2012 00:00:00,316.4,"56800","Payroll Services","REDACTED DATA","HUMAN MANAGEMENT ASSISTANCE-CLIENT ACCOUNT","4752026","http://opencorporates.com/companies/gb/4752026","815230071"
"London Borough of Redbridge","http://opendatacommunities.org/doc/london-borough-council/redbridge","4BMANGT&SUPP","Management & Support Services","4CHIGHRDSTR","Highways/Roads (Structural)","REV","Revenue","R7092","Footway Crossing Works","05-THIRD","Third Party Payments","05H","Private contractors","6915","Contractor Payments","3220418","201211",22/02/2012 00:00:00,979.66,"18632","Civil Engineers","REDACTED DATA","KENSON CONTRACTORS BENINGTON LTD","1314691","http://opencorporates.com/companies/gb/1314691","301629589"
"London Borough of Redbridge","http://opendatacommunities.org/doc/london-borough-council/redbridge","6BSOCIALSERV","Social Services","6CCHILLOOKED","Children Looked After","REV","Revenue","R2113","SEN and CD - Section 5 and 6 Care Packages","05-THIRD","Third Party Payments","05A","Independent units within the council","6502","Agency Homecare (Payments To Independent Units)","3219133","201211",01/02/2012 00:00:00,88,"31230","Employment & Recruitment Agencies","REDACTED DATA","HOPE SUPER JOBS LTD","",,"872555205"
"London Borough of Redbridge","http://opendatacommunities.org/doc/london-borough-council/redbridge","6BSOCIALSERV","Social Services","4CMANGT&SUPP","Management & Support Services","REV","Revenue","R2151","CQ and F Workforce Development","04-SUPPLIES","Supplies And Services","04D","Printing, stationery and general office expenses","5710","Stationery","3221518","201211",03/02/2012 00:00:00,158.8,"53770","Office Stationery Supplies","REDACTED DATA","OFFICE DEPOT UK LTD (EX-GUILBERT UK)","2654682","http://opencorporates.com/companies/gb/2654682","673478594"
"London Borough of Redbridge","http://opendatacommunities.org/doc/london-borough-council/redbridge","3BLEACENTFND","LEA Centrally Held School Funds","3CNONSCH","Non Schools","REV","Revenue","R3258","ISS Paid School Meals","05-THIRD","Third Party Payments","05A","Independent units within the council","6513","Agency & Contracted Services","70036795","201211",03/02/2012 00:00:00,53991.07,"16270","Catering Schools","REDACTED DATA","ISS CATERHOUSE - ISS MEDICLEAN LTD(EDUCATION CATERING CASH COLLECTIONS)","1659837","http://opencorporates.com/companies/gb/1659837",""
"London Borough of Redbridge","http://opendatacommunities.org/doc/london-borough-council/redbridge","6BADULTSOCIA","Adult Social Care","6CADPHYSDIS","Adults Under 65 with Phys Disab or Sensory Impair","REV","Revenue","R4138","Integrated Community Equipment Services (ICES)","04-SUPPLIES","Supplies And Services","04K","Miscellaneous expenses","6239","Occupational Therapy Equip","3220639","201211",02/02/2012 00:00:00,39,"17440","Chemists - Dispensing","REDACTED DATA","LAVILLE LTD ( BRITANNIA PHARMACY-LOXFORD POLYCLINIC","2902747","http://opencorporates.com/companies/gb/2902747","649143818"
"London Borough of Redbridge","http://opendatacommunities.org/doc/london-borough-council/redbridge","6BADULTSOCIA","Adult Social Care","6CADLEARNDIS","Adults Under 65 with Learning Disabilities","REV","Revenue","R4394","LD - Homecare","05-THIRD","Third Party Payments","05A","Independent units within the council","6502","Agency Homecare (Payments To Independent Units)","90299703","201211",09/02/2012 00:00:00,208.68,"17020","Charities and Voluntary Organisations","REDACTED DATA","REDBRIDGE CROSSROADS CAS","2647932","http://opencorporates.com/companies/gb/2647932",""
"London Borough of Redbridge","http://opendatacommunities.org/doc/london-borough-council/redbridge","9BNONBVO","Outside the BVACOP Objective Structure","9CNONBVO","Outside the BVACOP Objective Structure","REV","Revenue","R7704","Veh Contracted Servs","03-TRANSPORT","Transport","03C","Contract hire and operating leases","5205","Coaches - General","630868","201211",10/02/2012 00:00:00,1487.8,"51250","Mini Cabs","REDACTED DATA","I.H.S CORPORATION LTD","5136537","http://opencorporates.com/companies/gb/5136537","909064522"
"London Borough of Redbridge","http://opendatacommunities.org/doc/london-borough-council/redbridge","5BGFHOUSING","General Fund Housing","5CHOUSSTRAT","Housing Strategy","REV","Revenue","R5524","ELRP Handy Person Scheme","05-THIRD","Third Party Payments","05A","Independent units within the council","6513","Agency & Contracted Services","60168161","201211",31/01/2012 00:00:00,6416.67,"47846","Letting Agents","REDACTED DATA","ATLANTIC LODGE(HOUSING) LTD","5373917","http://opencorporates.com/companies/gb/5373917",""
"London Borough of Redbridge","http://opendatacommunities.org/doc/london-borough-council/redbridge","6BADULTSOCIA","Adult Social Care","6CADLEARNDIS","Adults Under 65 with Learning Disabilities","REV","Revenue","R4296","Mulberry Lodge","01-EMPLOYEES","Employees","01A","Direct employee expenses","409","Agency Staff Pay","60167045","201211",22/01/2012 00:00:00,473.04,"31230","Employment & Recruitment Agencies","REDACTED DATA","TAYLOR GORDON & CO LTD T/AS PLAN PERSONNEL & PLAN CARE","",,"190680845"
"London Borough of Redbridge","http://opendatacommunities.org/doc/london-borough-council/redbridge","2BENVIRONMEN","Environmental Services","2CWASTECOLLN","Waste Collection","REV","Revenue","R6152","MRS - Commercial Waste","04-SUPPLIES","Supplies And Services","04A","Equipment, furniture and materials","5508","General Consumables","60168817","201211",22/02/2012 00:00:00,1622,"83450","Waste Disposal Units - Installation & Repair","REDACTED DATA","DELTASTAR LTD","2824399","http://opencorporates.com/companies/gb/2824399","637816021"
"London Borough of Redbridge","http://opendatacommunities.org/doc/london-borough-council/redbridge","2BENVIRONMEN","Environmental Services","2CWASTECOLLN","Waste Collection","REV","Revenue","R6151","MRS - Household Waste","05-THIRD","Third Party Payments","05H","Private contractors","6915","Contractor Payments","60166972","201211",23/12/2011 00:00:00,196264.09,"83380","Waste Disposal Services","REDACTED DATA","MRS ENVIRONMENTAL SERVICES LTD","2175295","http://opencorporates.com/companies/gb/2175295","524394641"
"London Borough of Redbridge","http://opendatacommunities.org/doc/london-borough-council/redbridge","6BSOCIALSERV","Social Services","6CCHILLOOKED","Children Looked After","REV","Revenue","R2176","Ray Lodge (N) - Integrated Team Social Care","01-EMPLOYEES","Employees","01A","Direct employee expenses","4","Agency Staff - Pay","3220752","201211",29/02/2012 00:00:00,1063.3,"31230","Employment & Recruitment Agencies","REDACTED DATA","MATRIX SCM LTD","2227962","http://opencorporates.com/companies/gb/2227962","918498476"
"London Borough of Redbridge","http://opendatacommunities.org/doc/london-borough-council/redbridge","6BSOCIALSERV","Social Services","6CCHILLOOKED","Children Looked After","REV","Revenue","R2176","Ray Lodge (N) - Integrated Team Social Care","01-EMPLOYEES","Employees","01A","Direct employee expenses","4","Agency Staff - Pay","3220752","201211",29/02/2012 00:00:00,1217.65,"31230","Employment & Recruitment Agencies","REDACTED DATA","MATRIX SCM LTD","2227962","http://opencorporates.com/companies/gb/2227962","918498476"
"London Borough of Redbridge","http://opendatacommunities.org/doc/london-borough-council/redbridge","4BMANGT&SUPP","Management & Support Services","4CHIGHRDROUT","Highways/Roads (Routine)","REV","Revenue","R7070","Reactive Maintenance","05-THIRD","Third Party Payments","05H","Private contractors","6915","Contractor Payments","3219613","201211",08/02/2012 00:00:00,213,"18632","Civil Engineers","REDACTED DATA","KENSON CONTRACTORS BENINGTON LTD","1314691","http://opencorporates.com/companies/gb/1314691","301629589"
"London Borough of Redbridge","http://opendatacommunities.org/doc/london-borough-council/redbridge","6BADULTSOCIA","Adult Social Care","6COLDINCMENT","Older People (65 or over) incl. Older Mentally Ill","REV","Revenue","R4211","Older People Direct Payments","09-INCOME","Income","09C","Customer & Client Receipts","8545","Direct Payments Income","3218690","201211",13/02/2012 00:00:00,-109.16,"56800","Payroll Services","REDACTED DATA","HUMAN MANAGEMENT ASSISTANCE-CLIENT ACCOUNT","4752026","http://opencorporates.com/companies/gb/4752026","815230071"
